Body,Body Name,Date,Transaction Number,Invoice Number,Amount,Supplier Name,Supplier ID ,VAT Registration Number ,Expense Area,Expense Type,Expense Code,Purchase Order
http://statistics.data.gov.uk/id/local-authority/29UP,Tonbridge & Malling Borough Council,11/1/2023,0011047165/1,11047165, 589.41,Kings Hill Recruitment,01738900,,Temporary Staff,Personnel Sals&Overheads,D01ABDB0311300,
http://statistics.data.gov.uk/id/local-authority/29UP,Tonbridge & Malling Borough Council,11/1/2023,0011047165/2,11047165, 589.41,Kings Hill Recruitment,01738900,,Temporary Staff,Personnel Sals&Overheads,D01ABDB0311300,
http://statistics.data.gov.uk/id/local-authority/29UP,Tonbridge & Malling Borough Council,11/1/2023,0011047166/1,11047166, 2297.21,Royal Mail,00086200,,Purchases,Mailsort Stock Account,K37BR000001002,
http://statistics.data.gov.uk/id/local-authority/29UP,Tonbridge & Malling Borough Council,11/1/2023,0011047166/2,11047166, 24.39,Royal Mail,00086200,,Purchases,Mailsort Stock Account,K37BR000001002,
http://statistics.data.gov.uk/id/local-authority/29UP,Tonbridge & Malling Borough Council,11/1/2023,0011047166/3,11047166, 4.20,Royal Mail,00086200,,Purchases,Mailsort Stock Account,K37BR000001002,
http://statistics.data.gov.uk/id/local-authority/29UP,Tonbridge & Malling Borough Council,11/1/2023,0011047167/1,11047167, 54.20,Royal Mail,00086200,,Postages - Business Reply,Electoral Registration,D31MF000045003,
http://statistics.data.gov.uk/id/local-authority/29UP,Tonbridge & Malling Borough Council,11/1/2023,0011047167/2,11047167, 13.00,Royal Mail,00086200,,Purchases,Business Reply Stock Account,K14AT000001002,
http://statistics.data.gov.uk/id/local-authority/29UP,Tonbridge & Malling Borough Council,11/1/2023,0011047168/1,11047168, 1159.52,Scottish Water Business Stream Ltd,01641100,,Sewerage Charges,Buildings,D21FEDD1024003,
http://statistics.data.gov.uk/id/local-authority/29UP,Tonbridge & Malling Borough Council,11/1/2023,0011047169/1,11047169, 56.00,Margate Charter Trustees,00563900,,Hospitality,Mayoral & Other Member Support,D29LX000048003,
http://statistics.data.gov.uk/id/local-authority/29UP,Tonbridge & Malling Borough Council,11/1/2023,0011047170/1,11047170, 249.10,Scottish Water Business Stream Ltd,01641100,,Sewerage Charges,Buildings,D21FEDD6024003,
http://statistics.data.gov.uk/id/local-authority/29UP,Tonbridge & Malling Borough Council,11/1/2023,0011047171/1,11047171, 3001.33,Chubb Fire & Security Ltd,00115400,174605362,BRREP Servicing-IntruderAlarm,Larkfield Leisure Centre,M15HDP20001939,110070588
http://statistics.data.gov.uk/id/local-authority/29UP,Tonbridge & Malling Borough Council,11/1/2023,0011047172/1,11047172, 456.00,ATS Heritage,01847400,,Leasing Charges,Tonbridge Castle Gatehouse,B40TG000044038,110070251
http://statistics.data.gov.uk/id/local-authority/29UP,Tonbridge & Malling Borough Council,11/1/2023,0011047173/1,11047173, 112.00,East Sussex Fire Ltd,01843100,,Repairs & Mtce to Buildings,Homelessness,C01AATNHS20101,110070238
http://statistics.data.gov.uk/id/local-authority/29UP,Tonbridge & Malling Borough Council,11/1/2023,0011047175/1,11047175, 838.48,Canon (UK) Limited,00298700,,Purchases - Paper,Printing,D22GA000040102,
http://statistics.data.gov.uk/id/local-authority/29UP,Tonbridge & Malling Borough Council,11/1/2023,0011047176/1,11047176, 255.84,Scottish Water Business Stream Ltd,01641100,,Sewerage Charges,Buildings,D21FEDD5024003,
http://statistics.data.gov.uk/id/local-authority/29UP,Tonbridge & Malling Borough Council,11/1/2023,0011047177/1,11047177, 26.66,Scottish Water Business Stream Ltd,01641100,,Estate Management Charge,Land Review,D40PS000020400,
http://statistics.data.gov.uk/id/local-authority/29UP,Tonbridge & Malling Borough Council,11/1/2023,0011047178/1,11047178, 32.45,KCS Education/CSG Global Education Ltd,01897200,408845925,Cleaning & Domestic Supplies,Cleaning & Security,D21FD000026001,
http://statistics.data.gov.uk/id/local-authority/29UP,Tonbridge & Malling Borough Council,11/1/2023,0011047179/1,11047179, 180.17,Scottish Water Business Stream Ltd,01641100,,Estate Management Charge,Land Review,D40PS000020400,
http://statistics.data.gov.uk/id/local-authority/29UP,Tonbridge & Malling Borough Council,11/1/2023,0011047180/1,11047180, 1450.00,GreenFish Consulting part of JCML Consul,01627700,,BRREP General Maintenance,Larkfield Leisure Centre,M15HDP10001900,110070466
http://statistics.data.gov.uk/id/local-authority/29UP,Tonbridge & Malling Borough Council,11/1/2023,0011047181/1,11047181, 127.00,KCC Street Lighting Dept.,01890600,,Initiatives,UK Shared Prosperity Fund,D52TH000048135,110070518
http://statistics.data.gov.uk/id/local-authority/29UP,Tonbridge & Malling Borough Council,11/1/2023,0011047182/1,11047182, 23.91,REDACTED PERSONAL DATA,01683000,,Castle Catering Provisions,Ton Castle Council Chamber,D21FC000041015,
http://statistics.data.gov.uk/id/local-authority/29UP,Tonbridge & Malling Borough Council,11/1/2023,0011047183/1,11047183, 5153.93,Chubb Fire & Security Ltd,00115400,174605362,BRREP Servicing-IntruderAlarm,Larkfield Leisure Centre,M15HDP20001939,110070171
http://statistics.data.gov.uk/id/local-authority/29UP,Tonbridge & Malling Borough Council,11/1/2023,0012008759/1,12008759, 399.90,CCS Media Ltd,00018000,,Purchases,Information Technology,D27KD000040101,410032424
http://statistics.data.gov.uk/id/local-authority/29UP,Tonbridge & Malling Borough Council,11/1/2023,0012008759/2,12008759, 9.95,CCS Media Ltd,00018000,,Delivery Expenses,Information Technology,D27KD000044069,410032424
http://statistics.data.gov.uk/id/local-authority/29UP,Tonbridge & Malling Borough Council,11/1/2023,0012008875/1,12008875, 3.00,O2 UK Ltd,01268000,,Telephones - General,Open Spaces & Amenity Areas,B22LE000045010,
http://statistics.data.gov.uk/id/local-authority/29UP,Tonbridge & Malling Borough Council,11/1/2023,0012008875/10,12008875, 9.10,O2 UK Ltd,01268000,,Mobile Telephones,Technical Sals&Overheads,D01AEDE0245013,
http://statistics.data.gov.uk/id/local-authority/29UP,Tonbridge & Malling Borough Council,11/1/2023,0012008875/11,12008875, 42.00,O2 UK Ltd,01268000,,Mobile Telephones,Technical Sals&Overheads,D01AEDE0445013,
http://statistics.data.gov.uk/id/local-authority/29UP,Tonbridge & Malling Borough Council,11/1/2023,0012008875/12,12008875, 3.00,O2 UK Ltd,01268000,,Mobile Telephones,Technical Sals&Overheads,D01AEDE0545013,
http://statistics.data.gov.uk/id/local-authority/29UP,Tonbridge & Malling Borough Council,11/1/2023,0012008875/13,12008875, 12.00,O2 UK Ltd,01268000,,Mobile Telephones,Finance Sals&Overheads,D01AFDF0045013,
http://statistics.data.gov.uk/id/local-authority/29UP,Tonbridge & Malling Borough Council,11/1/2023,0012008875/14,12008875, 6.00,O2 UK Ltd,01268000,,Mobile Telephones,Finance Sals&Overheads,D01AFDF0945013,
http://statistics.data.gov.uk/id/local-authority/29UP,Tonbridge & Malling Borough Council,11/1/2023,0012008875/15,12008875, 12.00,O2 UK Ltd,01268000,,Mobile Telephones,St Scene & Leis Sals&Overheads,D01AGDG0045013,
http://statistics.data.gov.uk/id/local-authority/29UP,Tonbridge & Malling Borough Council,11/1/2023,0012008875/16,12008875, 12.00,O2 UK Ltd,01268000,,Mobile Telephones,St Scene & Leis Sals&Overheads,D01AGDG0145013,
http://statistics.data.gov.uk/id/local-authority/29UP,Tonbridge & Malling Borough Council,11/1/2023,0012008875/17,12008875, 9.00,O2 UK Ltd,01268000,,Mobile Telephones,St Scene & Leis Sals&Overheads,D01AGDG0445013,
http://statistics.data.gov.uk/id/local-authority/29UP,Tonbridge & Malling Borough Council,11/1/2023,0012008875/18,12008875, 36.10,O2 UK Ltd,01268000,,Mobile Telephones,St Scene & Leis Sals&Overheads,D01AGDG2045013,
http://statistics.data.gov.uk/id/local-authority/29UP,Tonbridge & Malling Borough Council,11/1/2023,0012008875/19,12008875, 9.00,O2 UK Ltd,01268000,,Mobile Telephones,Planning Sals&Overheads,D01AJDJ0045013,
http://statistics.data.gov.uk/id/local-authority/29UP,Tonbridge & Malling Borough Council,11/1/2023,0012008875/2,12008875, 3.00,O2 UK Ltd,01268000,,Mobile Telephones,Admin & Prop Sals&Overheads,D01AADA0045013,
http://statistics.data.gov.uk/id/local-authority/29UP,Tonbridge & Malling Borough Council,11/1/2023,0012008875/20,12008875, 12.00,O2 UK Ltd,01268000,,Mobile Telephones,Planning Sals&Overheads,D01AJDJ0245013,
http://statistics.data.gov.uk/id/local-authority/29UP,Tonbridge & Malling Borough Council,11/1/2023,0012008875/21,12008875, 6.00,O2 UK Ltd,01268000,,Mobile Telephones,Legal Sals&Overheads,D01ARDR0045013,
http://statistics.data.gov.uk/id/local-authority/29UP,Tonbridge & Malling Borough Council,11/1/2023,0012008875/22,12008875, 12.00,O2 UK Ltd,01268000,,Mobile Telephones,Legal Sals&Overheads,D01ARDR0445013,
http://statistics.data.gov.uk/id/local-authority/29UP,Tonbridge & Malling Borough Council,11/1/2023,0012008875/23,12008875, 3.00,O2 UK Ltd,01268000,,Mobile Telephones,Legal Sals&Overheads,D01ARDR0745013,
http://statistics.data.gov.uk/id/local-authority/29UP,Tonbridge & Malling Borough Council,11/1/2023,0012008875/24,12008875, 3.00,O2 UK Ltd,01268000,,Mobile Telephones,Env Hlth & Hsg Sals&Overheads,D01AVDV0045013,
http://statistics.data.gov.uk/id/local-authority/29UP,Tonbridge & Malling Borough Council,11/1/2023,0012008875/25,12008875, 9.00,O2 UK Ltd,01268000,,Mobile Telephones,Env Hlth & Hsg Sals&Overheads,D01AVDV0145013,
http://statistics.data.gov.uk/id/local-authority/29UP,Tonbridge & Malling Borough Council,11/1/2023,0012008875/26,12008875, 6.00,O2 UK Ltd,01268000,,Mobile Telephones,Env Hlth & Hsg Sals&Overheads,D01AVDV0345013,
http://statistics.data.gov.uk/id/local-authority/29UP,Tonbridge & Malling Borough Council,11/1/2023,0012008875/27,12008875, 3.00,O2 UK Ltd,01268000,,Mobile Telephones,Env Hlth & Hsg Sals&Overheads,D01AVDV0745013,
http://statistics.data.gov.uk/id/local-authority/29UP,Tonbridge & Malling Borough Council,11/1/2023,0012008875/28,12008875, 6.00,O2 UK Ltd,01268000,,Mobile Telephones,Env Hlth & Hsg Sals&Overheads,D01AVDV0945013,
http://statistics.data.gov.uk/id/local-authority/29UP,Tonbridge & Malling Borough Council,11/1/2023,0012008875/29,12008875, 9.40,O2 UK Ltd,01268000,,Mobile Telephones,Customer Services,D23CS000045013,
http://statistics.data.gov.uk/id/local-authority/29UP,Tonbridge & Malling Borough Council,11/1/2023,0012008875/3,12008875, 3.00,O2 UK Ltd,01268000,,Mobile Telephones,Admin & Prop Sals&Overheads,D01AADA1045013,
http://statistics.data.gov.uk/id/local-authority/29UP,Tonbridge & Malling Borough Council,11/1/2023,0012008875/30,12008875, 3.00,O2 UK Ltd,01268000,,Mobile Telephones,Tonbridge Gateway,D23TG000045013,
http://statistics.data.gov.uk/id/local-authority/29UP,Tonbridge & Malling Borough Council,11/1/2023,0012008875/31,12008875, 627.00,O2 UK Ltd,01268000,,Leased Lines & Modems,Information Technology,D27KD000045011,
http://statistics.data.gov.uk/id/local-authority/29UP,Tonbridge & Malling Borough Council,11/1/2023,0012008875/32,12008875, 3.00,O2 UK Ltd,01268000,,Mobile Telephones,Mayoral & Other Member Support,D29LX000045013,
http://statistics.data.gov.uk/id/local-authority/29UP,Tonbridge & Malling Borough Council,11/1/2023,0012008875/33,12008875, 3.00,O2 UK Ltd,01268000,,Emergency Out of Hours Recharg,Refuse Collection,H20SA000045030,
http://statistics.data.gov.uk/id/local-authority/29UP,Tonbridge & Malling Borough Council,11/1/2023,0012008875/34,12008875, 3.00,O2 UK Ltd,01268000,,Emergency Out of Hours Recharg,Street Scene,H23SD000045030,
http://statistics.data.gov.uk/id/local-authority/29UP,Tonbridge & Malling Borough Council,11/1/2023,0012008875/4,12008875, 9.00,O2 UK Ltd,01268000,,Mobile Telephones,Admin & Prop Sals&Overheads,D01AADA1245013,
http://statistics.data.gov.uk/id/local-authority/29UP,Tonbridge & Malling Borough Council,11/1/2023,0012008875/5,12008875, 3.00,O2 UK Ltd,01268000,,Mobile Telephones,Chief Exec Sals&Overheads,D01ACDC0045013,
http://statistics.data.gov.uk/id/local-authority/29UP,Tonbridge & Malling Borough Council,11/1/2023,0012008875/6,12008875, 3.00,O2 UK Ltd,01268000,,Mobile Telephones,Chief Exec Sals&Overheads,D01ACDC0145013,
http://statistics.data.gov.uk/id/local-authority/29UP,Tonbridge & Malling Borough Council,11/1/2023,0012008875/7,12008875, 3.00,O2 UK Ltd,01268000,,Mobile Telephones,Chief Exec Sals&Overheads,D01ACDC0245013,
http://statistics.data.gov.uk/id/local-authority/29UP,Tonbridge & Malling Borough Council,11/1/2023,0012008875/8,12008875, 3.00,O2 UK Ltd,01268000,,Mobile Telephones,Technical Sals&Overheads,D01AEDE0045013,
http://statistics.data.gov.uk/id/local-authority/29UP,Tonbridge & Malling Borough Council,11/1/2023,0012008875/9,12008875, 6.00,O2 UK Ltd,01268000,,Mobile Telephones,Technical Sals&Overheads,D01AEDE0145013,
http://statistics.data.gov.uk/id/local-authority/29UP,Tonbridge & Malling Borough Council,11/1/2023,0012008876/1,12008876, 102.32,Bytes Software Services,01676900,823818226,Software Hire & Support,Information Technology,D27KD000044059,410032504
http://statistics.data.gov.uk/id/local-authority/29UP,Tonbridge & Malling Borough Council,11/1/2023,0012008877/1,12008877, 4918.43,NEC Software Solutions UK Ltd,01073900,202159745,Software Hire & Support,Information Technology,D27KD000044059,410032488
http://statistics.data.gov.uk/id/local-authority/29UP,Tonbridge & Malling Borough Council,11/1/2023,0012008878/1,12008878, 356.71,NEC Software Solutions UK Ltd,01073900,202159745,Software Hire & Support,Information Technology,D27KD000044059,410032489
http://statistics.data.gov.uk/id/local-authority/29UP,Tonbridge & Malling Borough Council,11/1/2023,0012008878/2,12008878, 778.25,NEC Software Solutions UK Ltd,01073900,202159745,Software Hire & Support,Information Technology,D27KD000044059,410032489
http://statistics.data.gov.uk/id/local-authority/29UP,Tonbridge & Malling Borough Council,11/1/2023,0021038917/1,21038917, 6911.63,Webb-Flint Building & Maintenance Ltd,01913100,,Other Expenses,Disabled Facilities Grant Mand,P03AC000009908,
http://statistics.data.gov.uk/id/local-authority/29UP,Tonbridge & Malling Borough Council,11/1/2023,0021038918/1,21038918, 3017.28,Town & Country Housing Group,01385400,,Other Expenses,Disabled Facilities Grant Mand,P03AC000009908,
http://statistics.data.gov.uk/id/local-authority/29UP,Tonbridge & Malling Borough Council,11/1/2023,0021038919/1,21038919, 250.00,Alltree Consultancy Ltd,01668300,,Health & Safety - Trees,Countryside/Woodland Mgt,B22LG000044045,210057433
http://statistics.data.gov.uk/id/local-authority/29UP,Tonbridge & Malling Borough Council,11/1/2023,0021038920/1,21038920, 250.00,SWS Countryside & Landscape,01567200,,Health & Safety - Trees,Countryside/Woodland Mgt,B22LG000044045,210057449
http://statistics.data.gov.uk/id/local-authority/29UP,Tonbridge & Malling Borough Council,11/1/2023,0021038921/3,21038921, 111.45,KCC - L.A.S.E.R Commercial Services ,00184300,,Electricity,Open Spaces & Amenity Areas,B22LE000021002,
http://statistics.data.gov.uk/id/local-authority/29UP,Tonbridge & Malling Borough Council,11/1/2023,0021038922/1,21038922, 1750.00,Green Leaf Tree & Landscapes Limited,01860500,,Health & Safety - Trees,Countryside/Woodland Mgt,B22LG000044045,210057399
http://statistics.data.gov.uk/id/local-authority/29UP,Tonbridge & Malling Borough Council,11/1/2023,0021038923/1,21038923, 2313.32,Trafalgar Cleaning Equipment Ltd,01160900,,Initial Furniture & Equipment,Capital Renewals Leisure,P05KGBC0209906,210057415
http://statistics.data.gov.uk/id/local-authority/29UP,Tonbridge & Malling Borough Council,11/1/2023,0021038924/1,21038924, 797.00,Streetmaster (South Wales) Ltd,00222100,,Maintenance of Grounds,Tonbridge Castle Grounds,B22LB000020402,210057335
http://statistics.data.gov.uk/id/local-authority/29UP,Tonbridge & Malling Borough Council,11/1/2023,0021038925/1,21038925, 73.00,Streetmaster (South Wales) Ltd,00222100,,Maintenance of Grounds,Open Spaces & Amenity Areas,B22LE000020402,210057319
http://statistics.data.gov.uk/id/local-authority/29UP,Tonbridge & Malling Borough Council,11/1/2023,0021038926/1,21038926, 803.00,Fenland Leisure Products Ltd,01675100,,Maintenance of Play Equipment,Open Spaces & Amenity Areas,B22LE000020503,210057328
http://statistics.data.gov.uk/id/local-authority/29UP,Tonbridge & Malling Borough Council,11/1/2023,0021038927/1,21038927, 3984.81,J&C Joel Limited UK,01918100,185201773,Initial Furniture & Equipment,Capital Renewals Leisure,P05KGBC0109906,210057417
http://statistics.data.gov.uk/id/local-authority/29UP,Tonbridge & Malling Borough Council,11/1/2023,0021038928/1,21038928, 23064.02,Landscape Services Ltd,00057600,,Grounds Maintenance Contract,Sports Grounds,B13ET000050103,
http://statistics.data.gov.uk/id/local-authority/29UP,Tonbridge & Malling Borough Council,11/1/2023,0021038928/10,21038928, 190.43,Landscape Services Ltd,00057600,,Grounds Maintenance Contract,Churchyards St Stephens,B28MY000050103,
http://statistics.data.gov.uk/id/local-authority/29UP,Tonbridge & Malling Borough Council,11/1/2023,0021038928/11,21038928, 191.95,Landscape Services Ltd,00057600,,Grounds Maintenance Contract,Grounds,D21FF000050103,
http://statistics.data.gov.uk/id/local-authority/29UP,Tonbridge & Malling Borough Council,11/1/2023,0021038928/12,21038928, 320.54,Landscape Services Ltd,00057600,,Maintenance of Grounds,Parking Off-Street,E10HA000020402,
http://statistics.data.gov.uk/id/local-authority/29UP,Tonbridge & Malling Borough Council,11/1/2023,0021038928/13,21038928, 1148.71,Landscape Services Ltd,00057600,,Maintenance of Grounds,Parking Off-Street,E10HAE00120402,
http://statistics.data.gov.uk/id/local-authority/29UP,Tonbridge & Malling Borough Council,11/1/2023,0021038928/14,21038928, 108.41,Landscape Services Ltd,00057600,,Maintenance of Grounds,Parking Off-Street,E10HAE00220402,
http://statistics.data.gov.uk/id/local-authority/29UP,Tonbridge & Malling Borough Council,11/1/2023,0021038928/15,21038928, 98.31,Landscape Services Ltd,00057600,,Maintenance of Grounds,Parking Off-Street,E10HAE00320402,
http://statistics.data.gov.uk/id/local-authority/29UP,Tonbridge & Malling Borough Council,11/1/2023,0021038928/16,21038928, 24.52,Landscape Services Ltd,00057600,,Maintenance of Grounds,Parking Off-Street,E10HAE00420402,
http://statistics.data.gov.uk/id/local-authority/29UP,Tonbridge & Malling Borough Council,11/1/2023,0021038928/17,21038928, 0.63,Landscape Services Ltd,00057600,,Maintenance of Grounds,Parking Off-Street,E10HAE00520402,
http://statistics.data.gov.uk/id/local-authority/29UP,Tonbridge & Malling Borough Council,11/1/2023,0021038928/18,21038928, 68.63,Landscape Services Ltd,00057600,,Maintenance of Grounds,Parking Off-Street,E10HAE00620402,
http://statistics.data.gov.uk/id/local-authority/29UP,Tonbridge & Malling Borough Council,11/1/2023,0021038928/19,21038928, 160.24,Landscape Services Ltd,00057600,,Maintenance of Grounds,Parking Off-Street,E10HAE01020402,
http://statistics.data.gov.uk/id/local-authority/29UP,Tonbridge & Malling Borough Council,11/1/2023,0021038928/2,21038928, 8238.89,Landscape Services Ltd,00057600,,Grounds Maintenance Contract,Tonbridge Castle Grounds,B22LB000050103,
http://statistics.data.gov.uk/id/local-authority/29UP,Tonbridge & Malling Borough Council,11/1/2023,0021038928/20,21038928, 3.55,Landscape Services Ltd,00057600,,Maintenance of Grounds,Parking Off-Street,E10HAE01220402,
http://statistics.data.gov.uk/id/local-authority/29UP,Tonbridge & Malling Borough Council,11/1/2023,0021038928/21,21038928, 7.83,Landscape Services Ltd,00057600,,Maintenance of Grounds,Parking Off-Street,E10HAE01320402,
http://statistics.data.gov.uk/id/local-authority/29UP,Tonbridge & Malling Borough Council,11/1/2023,0021038928/22,21038928, 32.60,Landscape Services Ltd,00057600,,Maintenance of Grounds,Parking Off-Street,E10HAE01520402,
http://statistics.data.gov.uk/id/local-authority/29UP,Tonbridge & Malling Borough Council,11/1/2023,0021038928/23,21038928, 63.69,Landscape Services Ltd,00057600,,Maintenance of Grounds,Parking Off-Street,E10HAE01620402,
http://statistics.data.gov.uk/id/local-authority/29UP,Tonbridge & Malling Borough Council,11/1/2023,0021038928/24,21038928, 25.88,Landscape Services Ltd,00057600,,Maintenance of Grounds,Parking Off-Street,E10HAE01720402,
http://statistics.data.gov.uk/id/local-authority/29UP,Tonbridge & Malling Borough Council,11/1/2023,0021038928/25,21038928, 15.90,Landscape Services Ltd,00057600,,Maintenance of Grounds,Parking Off-Street,E10HAE02120402,
http://statistics.data.gov.uk/id/local-authority/29UP,Tonbridge & Malling Borough Council,11/1/2023,0021038928/26,21038928, 25.32,Landscape Services Ltd,00057600,,Maintenance of Grounds,Parking Off-Street,E10HAE02320402,
http://statistics.data.gov.uk/id/local-authority/29UP,Tonbridge & Malling Borough Council,11/1/2023,0021038928/27,21038928, 97.05,Landscape Services Ltd,00057600,,Maintenance of Grounds,Parking Off-Street,E10HAE02820402,
http://statistics.data.gov.uk/id/local-authority/29UP,Tonbridge & Malling Borough Council,11/1/2023,0021038928/28,21038928, 26.28,Landscape Services Ltd,00057600,,Maintenance of Grounds,Parking Off-Street,E10HAE04020402,
http://statistics.data.gov.uk/id/local-authority/29UP,Tonbridge & Malling Borough Council,11/1/2023,0021038928/29,21038928, 86.65,Landscape Services Ltd,00057600,,Maintenance of Grounds,Parking Off-Street,E10HAE04520402,
http://statistics.data.gov.uk/id/local-authority/29UP,Tonbridge & Malling Borough Council,11/1/2023,0021038928/3,21038928, 62.73,Landscape Services Ltd,00057600,,Trade Refuse Charges,Haysden Country Park,B22LC000044008,
http://statistics.data.gov.uk/id/local-authority/29UP,Tonbridge & Malling Borough Council,11/1/2023,0021038928/4,21038928, 538.16,Landscape Services Ltd,00057600,,Litter Collection,Haysden Country Park,B22LC000044061,
http://statistics.data.gov.uk/id/local-authority/29UP,Tonbridge & Malling Borough Council,11/1/2023,0021038928/5,21038928, 1849.86,Landscape Services Ltd,00057600,,Grounds Maintenance Contract,Haysden Country Park,B22LC000050103,
http://statistics.data.gov.uk/id/local-authority/29UP,Tonbridge & Malling Borough Council,11/1/2023,0021038928/6,21038928, 645.29,Landscape Services Ltd,00057600,,Grounds Maintenance Contract,Haysden Country Park,B22LC000050103,
http://statistics.data.gov.uk/id/local-authority/29UP,Tonbridge & Malling Borough Council,11/1/2023,0021038928/7,21038928, 14164.79,Landscape Services Ltd,00057600,,Grounds Maintenance Contract,Open Spaces & Amenity Areas,B22LE000050103,
http://statistics.data.gov.uk/id/local-authority/29UP,Tonbridge & Malling Borough Council,11/1/2023,0021038928/8,21038928, 5103.55,Landscape Services Ltd,00057600,,Grounds Maintenance Contract,Cemetery,B26MP000050103,
http://statistics.data.gov.uk/id/local-authority/29UP,Tonbridge & Malling Borough Council,11/1/2023,0021038928/9,21038928, 256.67,Landscape Services Ltd,00057600,,Grounds Maintenance Contract,Churchyards St Peter & St Paul,B28MX000050103,
http://statistics.data.gov.uk/id/local-authority/29UP,Tonbridge & Malling Borough Council,11/1/2023,0021038929/1,21038929, 1572.20,Azra Catering,01647000,,Initial Furniture & Equipment,Capital Renewals Leisure,P05KGBC0309906,210057442
http://statistics.data.gov.uk/id/local-authority/29UP,Tonbridge & Malling Borough Council,11/1/2023,0021038930/1,21038930, 983.25,Next Day Catering Equipment,01919100,680651527,Initial Furniture & Equipment,Capital Renewals Leisure,P05KGBC0309906,210057441
http://statistics.data.gov.uk/id/local-authority/29UP,Tonbridge & Malling Borough Council,11/1/2023,0022028193/1,22028193, 40.00,Originzone,01799700,,Purchases,Food Recycling,H34SS000040101,220003403
http://statistics.data.gov.uk/id/local-authority/29UP,Tonbridge & Malling Borough Council,11/1/2023,0022028194/3,22028194, 4961.28,Britains Limited,01743900,,Repairs & Mtce to Buildings,Homelessness,C01AA000020101,
http://statistics.data.gov.uk/id/local-authority/29UP,Tonbridge & Malling Borough Council,11/1/2023,0022028195/3,22028195, 490.00,Countrystyle Group,00835900,781981681,Collection of Card,Dry Recycling,H34SR000054008,
http://statistics.data.gov.uk/id/local-authority/29UP,Tonbridge & Malling Borough Council,11/1/2023,0022028196/1,22028196, 8001.40,Ditton Parish Council,00140100,,Payments,S106 - Commuted Sums,M04AD000001001,
http://statistics.data.gov.uk/id/local-authority/29UP,Tonbridge & Malling Borough Council,11/1/2023,0022028197/1,22028197, 18.27,REDACTED PERSONAL DATA,01789400,,Council Tax,Homelessness,C01AA000023002,
http://statistics.data.gov.uk/id/local-authority/29UP,Tonbridge & Malling Borough Council,11/1/2023,0022028198/3,22028198, 435.00,Britains Limited,01743900,,Repairs & Mtce to Buildings,Homelessness,C01AATNHS20101,
http://statistics.data.gov.uk/id/local-authority/29UP,Tonbridge & Malling Borough Council,11/1/2023,0022028200/1,22028200, 4801.69,Ward Security LTD,01490000,,Dog Warden,Street Scene,H23SD000044100,
http://statistics.data.gov.uk/id/local-authority/29UP,Tonbridge & Malling Borough Council,11/1/2023,0022028201/3,22028201, 9.84,Octopus Energy,01895300,,Electricity,Homelessness,C01AATNHS21002,
http://statistics.data.gov.uk/id/local-authority/29UP,Tonbridge & Malling Borough Council,11/1/2023,0022028202/1,22028202, 4645.60,Countrystyle Group,00835900,781981681,Plastic Recycling,Dry Recycling,H34SR000054019,
http://statistics.data.gov.uk/id/local-authority/29UP,Tonbridge & Malling Borough Council,11/1/2023,0022028203/1,22028203, 490.00,Countrystyle Group,00835900,781981681,Collection of Card,Dry Recycling,H34SR000054008,
http://statistics.data.gov.uk/id/local-authority/29UP,Tonbridge & Malling Borough Council,11/1/2023,0022028204/3,22028204, 135.00,The Accomodation Team,01921800,,Temporary Accommodation,Homelessness,C01AA000044051,
http://statistics.data.gov.uk/id/local-authority/29UP,Tonbridge & Malling Borough Council,11/1/2023,0022028205/1,22028205, 6420.00,House to Home Lettings Ltd ,01647600,,Temporary Accommodation,Homelessness,C01AA000044051,
http://statistics.data.gov.uk/id/local-authority/29UP,Tonbridge & Malling Borough Council,11/1/2023,0022028206/1,22028206, 11899.00,SPA CAFFE LIMITED,00127100,,Temporary Accommodation,Homelessness,C01AA000044051,
http://statistics.data.gov.uk/id/local-authority/29UP,Tonbridge & Malling Borough Council,11/1/2023,0022028207/1,22028207, 6494.00,House to Home Lettings Ltd ,01647600,,Temporary Accommodation,Homelessness,C01AA000044051,
http://statistics.data.gov.uk/id/local-authority/29UP,Tonbridge & Malling Borough Council,11/1/2023,0022028208/1,22028208, 236.38,Scottish Water Business Stream Ltd,01641100,,Sewerage Charges,Public Conveniences,H22SC000024003,
http://statistics.data.gov.uk/id/local-authority/29UP,Tonbridge & Malling Borough Council,11/1/2023,0022028209/1,22028209, 43.96,Scottish Water Business Stream Ltd,01641100,,Sewerage Charges,Public Conveniences,H22SCH00424003,
http://statistics.data.gov.uk/id/local-authority/29UP,Tonbridge & Malling Borough Council,11/1/2023,0022028210/1,22028210, 1052.95,Town & Country Housing Group,01385400,,Other Expenses,Disabled Facilities Grant Mand,P03AC000009908,
http://statistics.data.gov.uk/id/local-authority/29UP,Tonbridge & Malling Borough Council,11/1/2023,0022028211/1,22028211, 5849.75,P. W. Redfern,01563600,,Other Expenses,Disabled Facilities Grant Mand,P03AC000009908,
http://statistics.data.gov.uk/id/local-authority/29UP,Tonbridge & Malling Borough Council,11/1/2023,0031019791/3,31019791, 44.48,B&Q/Screwfix Direct(TradeUKAccount),00141300,,Purchases,Civil Contingencies,D33NA000040101,
http://statistics.data.gov.uk/id/local-authority/29UP,Tonbridge & Malling Borough Council,11/1/2023,0031019792/1,31019792, 50.00,Helmsman,00162900,252664947,Purchases,Technical Sals&Overheads,D01AE000040101,310043137
http://statistics.data.gov.uk/id/local-authority/29UP,Tonbridge & Malling Borough Council,11/1/2023,0031019792/2,31019792, 5.50,Helmsman,00162900,252664947,Purchases,Technical Sals&Overheads,D01AE000040101,310043137
http://statistics.data.gov.uk/id/local-authority/29UP,Tonbridge & Malling Borough Council,11/1/2023,0031019792/3,31019792, 100.99,Helmsman,00162900,252664947,Purchases,Technical Sals&Overheads,D01AE000040101,310043137
http://statistics.data.gov.uk/id/local-authority/29UP,Tonbridge & Malling Borough Council,11/1/2023,0031019794/1,31019794, 72.00,Beal UK LTD,01235500,,Advertising General,Parking Off-Street,E10HAZ99944216,310043158
http://statistics.data.gov.uk/id/local-authority/29UP,Tonbridge & Malling Borough Council,11/1/2023,0031019794/2,31019794, 108.00,Beal UK LTD,01235500,,Advertising General,Parking On-Street,E10HDZ99944216,310043158
http://statistics.data.gov.uk/id/local-authority/29UP,Tonbridge & Malling Borough Council,11/1/2023,0031019798/3,31019798, 183.23,KCC - L.A.S.E.R Commercial Services ,00184300,,Electricity,Parking Off-Street,E10HA000021002,
http://statistics.data.gov.uk/id/local-authority/29UP,Tonbridge & Malling Borough Council,11/1/2023,0031019799/1,31019799, 2567.00,Eiger Safety,01103300,,Tonbridge Christmas Lighting,Eco Dev & Reg Ton Chris Light,D52TF000047015,310043125
http://statistics.data.gov.uk/id/local-authority/29UP,Tonbridge & Malling Borough Council,11/1/2023,0031019801/1,31019801, 195.48,British Telecommunications Plc,00012800,,Maintenance - General,Security Services Management,E09GA000040135,
http://statistics.data.gov.uk/id/local-authority/29UP,Tonbridge & Malling Borough Council,11/1/2023,0031019802/1,31019802, 176.00,Archway Highway Services Ltd,01398000,,Other Expenses,Car Park Imp Rolling Programme,P01AB000009908,310043151
http://statistics.data.gov.uk/id/local-authority/29UP,Tonbridge & Malling Borough Council,11/1/2023,0032010516/1,32010516, 16434.00,AECOM Limited,01918200,,Development of Local Plan,Development of Local Plan,A01AE000044023,320003529
http://statistics.data.gov.uk/id/local-authority/29UP,Tonbridge & Malling Borough Council,11/1/2023,0032010524/3,32010524, 2043.50,Hays Specialist Recruitment Limited,01879200,773695871,Temporary Staff,Planning Sals&Overheads,D01AJDJ0111300,
http://statistics.data.gov.uk/id/local-authority/29UP,Tonbridge & Malling Borough Council,11/1/2023,0032010525/1,32010525, 1720.26,The Oyster Partnership,01196400,,Temporary Staff,Planning Sals&Overheads,D01AJDJ0111300,
http://statistics.data.gov.uk/id/local-authority/29UP,Tonbridge & Malling Borough Council,11/1/2023,0032010526/1,32010526, 1667.10,The Oyster Partnership,01196400,,Temporary Staff,Planning Sals&Overheads,D01AJDJ0111300,
http://statistics.data.gov.uk/id/local-authority/29UP,Tonbridge & Malling Borough Council,11/1/2023,0032010528/3,32010528, 4500.00,G2 Recruitment Solutions,01786000,,Temporary Staff,Planning Sals&Overheads,D01AJDJ0011300,
http://statistics.data.gov.uk/id/local-authority/29UP,Tonbridge & Malling Borough Council,11/1/2023,0032010529/3,32010529, 2250.00,G2 Recruitment Solutions,01786000,,Temporary Staff,Planning Sals&Overheads,D01AJDJ0011300,
http://statistics.data.gov.uk/id/local-authority/29UP,Tonbridge & Malling Borough Council,11/1/2023,0032010530/1,32010530, 1258.00,Hays Specialist Recruitment Limited,01879200,773695871,Temporary Staff,Planning Sals&Overheads,D01AJDJ0111300,
http://statistics.data.gov.uk/id/local-authority/29UP,Tonbridge & Malling Borough Council,11/1/2023,0032010531/1,32010531, 1759.50,Carrington West Limited,01844500,,Temporary Staff,Planning Sals&Overheads,D01AJDJ0111300,
http://statistics.data.gov.uk/id/local-authority/29UP,Tonbridge & Malling Borough Council,11/1/2023,0032010532/1,32010532, 1504.00,Carrington West Limited,01844500,,Temporary Staff,Planning Sals&Overheads,D01AJDJ0111300,
http://statistics.data.gov.uk/id/local-authority/29UP,Tonbridge & Malling Borough Council,11/1/2023,0041036014/1,41036014, 190.00,Irrv,00050300,,Reference Books & Publications,Local Revenue & NNDR Collect,D41QA000043010,410032502
http://statistics.data.gov.uk/id/local-authority/29UP,Tonbridge & Malling Borough Council,11/1/2023,0041036015/1,41036015, 1260.00,Kent County Council,00322500,,Tracing Services,Local Revenue & NNDR Collect,D41QA000044091,410032503
http://statistics.data.gov.uk/id/local-authority/29UP,Tonbridge & Malling Borough Council,11/1/2023,0041036016/3,41036016, 1043.35,Morgan Hunt UK Ltd,01086900,,Temporary Staff,Finance Sals&Overheads,D01AFDF1111300,
http://statistics.data.gov.uk/id/local-authority/29UP,Tonbridge & Malling Borough Council,11/1/2023,0041036017/4,41036017, 385.00,Rundle & Co Ltd,00087200,,Bailiffs Commission,Local Revenue & NNDR Collect,D41QA000044075,
http://statistics.data.gov.uk/id/local-authority/29UP,Tonbridge & Malling Borough Council,11/1/2023,0041036018/3,41036018, 1945.20,Rundle & Co Ltd,00087200,,Bailiffs Commission,Local Revenue & NNDR Collect,D41QA000044075,
http://statistics.data.gov.uk/id/local-authority/29UP,Tonbridge & Malling Borough Council,11/1/2023,0041036022/1,41036022, 190.00,Irrv,00050300,,Reference Books & Publications,Local Revenue & NNDR Collect,D41QA000043010,410032505
http://statistics.data.gov.uk/id/local-authority/29UP,Tonbridge & Malling Borough Council,11/1/2023,0041036023/1,41036023, 80.00,WorldPay Ltd,01402000,991280207,Credit Card Commission,Banking Arrangements,D43QK000044082,
http://statistics.data.gov.uk/id/local-authority/29UP,Tonbridge & Malling Borough Council,11/1/2023,0041036023/2,41036023, 54.96,WorldPay Ltd,01402000,991280207,Credit Card Commission,Banking Arrangements,D43QK000044082,
http://statistics.data.gov.uk/id/local-authority/29UP,Tonbridge & Malling Borough Council,11/1/2023,0041036023/3,41036023, 0.24,WorldPay Ltd,01402000,991280207,Credit Card Commission,Banking Arrangements,D43QK000044082,
http://statistics.data.gov.uk/id/local-authority/29UP,Tonbridge & Malling Borough Council,11/1/2023,0041036024/1,41036024, 80.00,WorldPay Ltd,01402000,991280207,Credit Card Commission,Banking Arrangements,D43QK000044082,
http://statistics.data.gov.uk/id/local-authority/29UP,Tonbridge & Malling Borough Council,11/1/2023,0041036024/2,41036024, 93.92,WorldPay Ltd,01402000,991280207,Credit Card Commission,Banking Arrangements,D43QK000044082,
http://statistics.data.gov.uk/id/local-authority/29UP,Tonbridge & Malling Borough Council,11/1/2023,0041036024/3,41036024, 0.80,WorldPay Ltd,01402000,991280207,Credit Card Commission,Banking Arrangements,D43QK000044082,
http://statistics.data.gov.uk/id/local-authority/29UP,Tonbridge & Malling Borough Council,11/1/2023,0041036025/1,41036025, 80.00,WorldPay Ltd,01402000,991280207,Credit Card Commission,Banking Arrangements,D43QK000044082,
http://statistics.data.gov.uk/id/local-authority/29UP,Tonbridge & Malling Borough Council,11/1/2023,0041036025/2,41036025, 179.20,WorldPay Ltd,01402000,991280207,Credit Card Commission,Banking Arrangements,D43QK000044082,
http://statistics.data.gov.uk/id/local-authority/29UP,Tonbridge & Malling Borough Council,11/1/2023,0041036025/3,41036025, 0.08,WorldPay Ltd,01402000,991280207,Credit Card Commission,Banking Arrangements,D43QK000044082,
http://statistics.data.gov.uk/id/local-authority/29UP,Tonbridge & Malling Borough Council,11/1/2023,0041036026/1,41036026, 3001.56,Maidstone Borough Council,01173700,,Bailiffs Commission,Local Revenue & NNDR Collect,D41QA000044075,
http://statistics.data.gov.uk/id/local-authority/29UP,Tonbridge & Malling Borough Council,11/1/2023,0041036027/1,41036027, 1116.44,Maidstone Borough Council,01173700,,Bailiffs Commission,Local Revenue & NNDR Collect,D41QA000044075,
http://statistics.data.gov.uk/id/local-authority/29UP,Tonbridge & Malling Borough Council,11/1/2023,0041036028/1,41036028, 20.00,Computershare Voucher Services,01212600,,Childcare Scheme,Finance Sals&Overheads,D01AFDF0911136,
http://statistics.data.gov.uk/id/local-authority/29UP,Tonbridge & Malling Borough Council,11/1/2023,0041036028/2,41036028, 1.40,Computershare Voucher Services,01212600,,National Insurance,Finance Sals&Overheads,D01AFDF0911191,
http://statistics.data.gov.uk/id/local-authority/29UP,Tonbridge & Malling Borough Council,11/1/2023,0041036028/3,41036028, 20.00,Computershare Voucher Services,01212600,,Childcare Scheme,Env Hlth & Hsg Sals&Overheads,D01AVDV0211136,
http://statistics.data.gov.uk/id/local-authority/29UP,Tonbridge & Malling Borough Council,11/1/2023,0041036028/4,41036028, 1.40,Computershare Voucher Services,01212600,,National Insurance,Env Hlth & Hsg Sals&Overheads,D01AVDV0211191,
http://statistics.data.gov.uk/id/local-authority/29UP,Tonbridge & Malling Borough Council,11/1/2023,0051008862/3,51008862, 1350.00,The Play Inspection Company,01242100,,Ext Fees/Prof & Tech,Training,D10DCDG0113561,
http://statistics.data.gov.uk/id/local-authority/29UP,Tonbridge & Malling Borough Council,11/1/2023,0051008862/4,51008862, 735.00,The Play Inspection Company,01242100,,Ext Fees/Prof & Tech,Training,D10DCDG0113561,
http://statistics.data.gov.uk/id/local-authority/29UP,Tonbridge & Malling Borough Council,11/3/2023,0041036032/1,41036032, 1133.20,King & Shaxson Investments,01411100,,Professional Fees,Treasury Management,D43QT000044001,
http://statistics.data.gov.uk/id/local-authority/29UP,Tonbridge & Malling Borough Council,11/8/2023,0011047184/1,11047184, 268.20,Ginette�s Nail and Beauty Retreat,01919500,,Contract Payments,UK Shared Prosperity Fund,P06FNFN4009904,
http://statistics.data.gov.uk/id/local-authority/29UP,Tonbridge & Malling Borough Council,11/8/2023,0011047185/1,11047185, 589.41,Kings Hill Recruitment,01738900,,Temporary Staff,Personnel Sals&Overheads,D01ABDB0311300,
http://statistics.data.gov.uk/id/local-authority/29UP,Tonbridge & Malling Borough Council,11/8/2023,0011047185/2,11047185, 589.41,Kings Hill Recruitment,01738900,,Temporary Staff,Personnel Sals&Overheads,D01ABDB0311300,
http://statistics.data.gov.uk/id/local-authority/29UP,Tonbridge & Malling Borough Council,11/8/2023,0011047187/1,11047187, 47.12,Royal Mail,00086200,,Postages - Business Reply,Electoral Registration,D31MF000045003,
http://statistics.data.gov.uk/id/local-authority/29UP,Tonbridge & Malling Borough Council,11/8/2023,0011047187/2,11047187, 1.70,Royal Mail,00086200,,Postages - Business Reply,Electoral Registration,D31MF000045003,
http://statistics.data.gov.uk/id/local-authority/29UP,Tonbridge & Malling Borough Council,11/8/2023,0011047188/1,11047188, 1217.80,Sellick Partnership Group Limited,01336800,,Temporary Staff,Legal Sals&Overheads,D01ARDR0011300,
http://statistics.data.gov.uk/id/local-authority/29UP,Tonbridge & Malling Borough Council,11/8/2023,0011047189/1,11047189, 1204.40,Sellick Partnership Group Limited,01336800,,Temporary Staff,Legal Sals&Overheads,D01ARDR0011300,
http://statistics.data.gov.uk/id/local-authority/29UP,Tonbridge & Malling Borough Council,11/8/2023,0011047190/1,11047190, 1204.40,Sellick Partnership Group Limited,01336800,,Temporary Staff,Legal Sals&Overheads,D01ARDR0011300,
http://statistics.data.gov.uk/id/local-authority/29UP,Tonbridge & Malling Borough Council,11/8/2023,0011047191/1,11047191, 1217.80,Sellick Partnership Group Limited,01336800,,Temporary Staff,Legal Sals&Overheads,D01ARDR0011300,
http://statistics.data.gov.uk/id/local-authority/29UP,Tonbridge & Malling Borough Council,11/8/2023,0011047192/1,11047192, 415.00,Thomson Snell & Passmore,00101700,,Other Planning Enq - Legal Cos,Legal Sals&Overheads,D01ARDR0044146,
http://statistics.data.gov.uk/id/local-authority/29UP,Tonbridge & Malling Borough Council,11/8/2023,0011047193/1,11047193, 1507.52,The Oyster Partnership,01196400,,Temporary Staff,Admin & Prop Sals&Overheads,D01AADA1111300,
http://statistics.data.gov.uk/id/local-authority/29UP,Tonbridge & Malling Borough Council,11/8/2023,0011047194/1,11047194, 388.80,TMS Protection Ltd,01744300,,Temporary Staff,Admin & Prop Sals&Overheads,D01AADA0511300,
http://statistics.data.gov.uk/id/local-authority/29UP,Tonbridge & Malling Borough Council,11/8/2023,0011047195/1,11047195, 59.70,KCS Education/CSG Global Education Ltd,01897200,408845925,Stationery,Admin & Prop Sals&Overheads,D01AA000043003,110070594
http://statistics.data.gov.uk/id/local-authority/29UP,Tonbridge & Malling Borough Council,11/8/2023,0011047195/2,11047195, 13.47,KCS Education/CSG Global Education Ltd,01897200,408845925,Stationery,Admin & Prop Sals&Overheads,D01AA000043003,110070594
http://statistics.data.gov.uk/id/local-authority/29UP,Tonbridge & Malling Borough Council,11/8/2023,0011047195/3,11047195, 19.99,KCS Education/CSG Global Education Ltd,01897200,408845925,Stationery,Admin & Prop Sals&Overheads,D01AA000043003,110070594
http://statistics.data.gov.uk/id/local-authority/29UP,Tonbridge & Malling Borough Council,11/8/2023,0011047195/4,11047195, 5.90,KCS Education/CSG Global Education Ltd,01897200,408845925,Stationery,Admin & Prop Sals&Overheads,D01AA000043003,110070594
http://statistics.data.gov.uk/id/local-authority/29UP,Tonbridge & Malling Borough Council,11/8/2023,0011047195/5,11047195, 6.98,KCS Education/CSG Global Education Ltd,01897200,408845925,Stationery,Admin & Prop Sals&Overheads,D01AA000043003,110070594
http://statistics.data.gov.uk/id/local-authority/29UP,Tonbridge & Malling Borough Council,11/8/2023,0011047195/6,11047195, 1.95,KCS Education/CSG Global Education Ltd,01897200,408845925,Stationery,Admin & Prop Sals&Overheads,D01AA000043003,110070594
http://statistics.data.gov.uk/id/local-authority/29UP,Tonbridge & Malling Borough Council,11/8/2023,0011047195/7,11047195, 12.99,KCS Education/CSG Global Education Ltd,01897200,408845925,Stationery,Admin & Prop Sals&Overheads,D01AA000043003,110070594
http://statistics.data.gov.uk/id/local-authority/29UP,Tonbridge & Malling Borough Council,11/8/2023,0011047196/1,11047196, 120.00,Monitor Pest Control Ltd,01476700,,Maintenance - General,Tonbridge Castle Gatehouse,B40TG000040135,
http://statistics.data.gov.uk/id/local-authority/29UP,Tonbridge & Malling Borough Council,11/8/2023,0011047197/1,11047197, 843.75,Vivid Resourcing,01773700,,Temporary Staff,Legal Sals&Overheads,D01ARDR0011300,
http://statistics.data.gov.uk/id/local-authority/29UP,Tonbridge & Malling Borough Council,11/8/2023,0011047198/1,11047198, 2240.63,G2 Recruitment Solutions,01786000,,Temporary Staff,Legal Sals&Overheads,D01ARDR0311300,
http://statistics.data.gov.uk/id/local-authority/29UP,Tonbridge & Malling Borough Council,11/8/2023,0011047199/1,11047199, 1387.50,G2 Recruitment Solutions,01786000,,Temporary Staff,Legal Sals&Overheads,D01ARDR0311300,
http://statistics.data.gov.uk/id/local-authority/29UP,Tonbridge & Malling Borough Council,11/8/2023,0011047200/1,11047200, 5000.00,Tunbridge Wells Borough Council,00844600,,Community Safety Initiatives,Community Safety,D30MA000048134,
http://statistics.data.gov.uk/id/local-authority/29UP,Tonbridge & Malling Borough Council,11/8/2023,0011047202/1,11047202, 271.05,Biffa Waste Services Ltd,01284500,,Trade Refuse Charges,Cleaning & Security,D21FD000044008,
http://statistics.data.gov.uk/id/local-authority/29UP,Tonbridge & Malling Borough Council,11/8/2023,0011047203/1,11047203, 127.80,Biffa Waste Services Ltd,01284500,,Trade Refuse Charges,Cleaning & Security,D21FD000044008,
http://statistics.data.gov.uk/id/local-authority/29UP,Tonbridge & Malling Borough Council,11/8/2023,0011047204/1,11047204, 87.85,Biffa Waste Services Ltd,01284500,,Trade Refuse Charges,Cleaning & Security,D21FD000044008,
http://statistics.data.gov.uk/id/local-authority/29UP,Tonbridge & Malling Borough Council,11/8/2023,0011047205/1,11047205, 105.42,Biffa Waste Services Ltd,01284500,,Trade Refuse Charges,Cleaning & Security,D21FD000044008,
http://statistics.data.gov.uk/id/local-authority/29UP,Tonbridge & Malling Borough Council,11/8/2023,0011047206/1,11047206, 48.72,Biffa Waste Services Ltd,01284500,,Trade Refuse Charges,Cleaning & Security,D21FD000044008,
http://statistics.data.gov.uk/id/local-authority/29UP,Tonbridge & Malling Borough Council,11/8/2023,0011047207/1,11047207, 48.72,Biffa Waste Services Ltd,01284500,,Trade Refuse Charges,Cleaning & Security,D21FD000044008,
http://statistics.data.gov.uk/id/local-authority/29UP,Tonbridge & Malling Borough Council,11/8/2023,0011047208/3,11047208, 100.00,BML Building Services Ltd,01505000,,BRREP Fence/Compound Repairs,Kings Hill Offices - Ext Areas,M15KAP20001945,
http://statistics.data.gov.uk/id/local-authority/29UP,Tonbridge & Malling Borough Council,11/8/2023,0011047209/3,11047209, 390.00,G C Industrial Heating Services,00578100,,BRREP Response - General,Gibson Building West,M15KBP50001997,
http://statistics.data.gov.uk/id/local-authority/29UP,Tonbridge & Malling Borough Council,11/8/2023,0011047210/3,11047210, 100.00,BML Building Services Ltd,01505000,,BRREP Response - General,Tonbridge Castle Gatehouse,M15HKP50001997,
http://statistics.data.gov.uk/id/local-authority/29UP,Tonbridge & Malling Borough Council,11/8/2023,0011047211/3,11047211, 459.70,KCS - KCC,00054200,,Gas,Buildings,D21FEDD6021003,
http://statistics.data.gov.uk/id/local-authority/29UP,Tonbridge & Malling Borough Council,11/8/2023,0011047212/3,11047212, 2321.88,Royal Mail,00086200,,Purchases,Mailsort Stock Account,K37BR000001002,
http://statistics.data.gov.uk/id/local-authority/29UP,Tonbridge & Malling Borough Council,11/8/2023,0011047212/4,11047212, 2.10,Royal Mail,00086200,,Purchases,Mailsort Stock Account,K37BR000001002,
http://statistics.data.gov.uk/id/local-authority/29UP,Tonbridge & Malling Borough Council,11/8/2023,0011047212/5,11047212, 3.70,Royal Mail,00086200,,Purchases,Mailsort Stock Account,K37BR000001002,
http://statistics.data.gov.uk/id/local-authority/29UP,Tonbridge & Malling Borough Council,11/8/2023,0011047213/3,11047213, 23.37,Oasis Group  - Box-It South East,00966800,931579211,Purchases,Electoral Registration,D31MF000040101,
http://statistics.data.gov.uk/id/local-authority/29UP,Tonbridge & Malling Borough Council,11/8/2023,0011047214/3,11047214, 2200.00,Kings Hill Recruitment,01738900,,Temporary Staff,Personnel Sals&Overheads,D01ABDB0311300,
http://statistics.data.gov.uk/id/local-authority/29UP,Tonbridge & Malling Borough Council,11/8/2023,0011047215/1,11047215, 379.00,Loxton Installations Ltd,01278800,,BRREP Car Park mntce,Leis Man Poult Wood Golf Centr,M15HEP20001953,110070535
http://statistics.data.gov.uk/id/local-authority/29UP,Tonbridge & Malling Borough Council,11/8/2023,0011047216/1,11047216, 4576.00,Loxton Installations Ltd,01278800,,BRREP IEE Testing,Gibson Building West,M15KBP30001991,110070419
http://statistics.data.gov.uk/id/local-authority/29UP,Tonbridge & Malling Borough Council,11/8/2023,0011047217/1,11047217, 12921.00,Loxton Installations Ltd,01278800,,BRREP Servicing - Squash Court,Leis Man Poult Wood Golf Centr,M15HEP20001958,110070393
http://statistics.data.gov.uk/id/local-authority/29UP,Tonbridge & Malling Borough Council,11/8/2023,0011047217/2,11047217, 5000.00,Loxton Installations Ltd,01278800,,Initial Furniture & Equipment,Capital Renewals Leisure,P05KGBC0309906,110070393
http://statistics.data.gov.uk/id/local-authority/29UP,Tonbridge & Malling Borough Council,11/8/2023,0011047218/1,11047218, 240.00,Guardian Security & Fire Ltd,01899300,,BRREP Servicing - FireAlarmSys,Larkfield Leisure Centre,M15HDP20001937,110070529
http://statistics.data.gov.uk/id/local-authority/29UP,Tonbridge & Malling Borough Council,11/8/2023,0011047219/1,11047219, 971.00,Guardian Security & Fire Ltd,01899300,,BRREP Servicing - FireAlarmSys,Larkfield Leisure Centre,M15HDP20001937,110070556
http://statistics.data.gov.uk/id/local-authority/29UP,Tonbridge & Malling Borough Council,11/8/2023,0011047220/1,11047220, 866.00,BML Building Services Ltd,01505000,,BRREP Response - General,Angel Centre,M15HAP50001997,110070566
http://statistics.data.gov.uk/id/local-authority/29UP,Tonbridge & Malling Borough Council,11/8/2023,0011047221/1,11047221, 2935.52,Broadwater Technologies,01534500,,BRREP Servicing - pool plant,Larkfield Leisure Centre,M15HDP20001910,110070463
http://statistics.data.gov.uk/id/local-authority/29UP,Tonbridge & Malling Borough Council,11/8/2023,0011047222/1,11047222, 3206.16,Broadwater Technologies,01534500,,BRREP Servicing - pool plant,Larkfield Leisure Centre,M15HDP20001910,110070464
http://statistics.data.gov.uk/id/local-authority/29UP,Tonbridge & Malling Borough Council,11/8/2023,0011047223/1,11047223, 2875.00,Broadwater Technologies,01534500,,BRREP Servicing - pool plant,Larkfield Leisure Centre,M15HDP20001910,110070358
http://statistics.data.gov.uk/id/local-authority/29UP,Tonbridge & Malling Borough Council,11/8/2023,0011047224/1,11047224, 400.00,Safesite Limited,01029900,574362624,BRREP Servicing - safety line,Angel Centre,M15HAP20001965,110070582
http://statistics.data.gov.uk/id/local-authority/29UP,Tonbridge & Malling Borough Council,11/8/2023,0011047225/1,11047225, 395.00,The Flag Consultancy Ltd,01921600,,BRREP Response - General,Tonbridge Castle Gatehouse,M15HKP50001997,110070592
http://statistics.data.gov.uk/id/local-authority/29UP,Tonbridge & Malling Borough Council,11/8/2023,0011047226/1,11047226, 1530.00,G C Industrial Heating Services,00578100,,BRREP Servicing-water chillers,Gibson Building East,M15KGP20001933,110070571
http://statistics.data.gov.uk/id/local-authority/29UP,Tonbridge & Malling Borough Council,11/8/2023,0011047227/1,11047227, 925.00,BML Building Services Ltd,01505000,,BRREP Response - General,Larkfield Leisure Centre,M15HDP50001997,110070538
http://statistics.data.gov.uk/id/local-authority/29UP,Tonbridge & Malling Borough Council,11/8/2023,0011047228/1,11047228, 175.00,BML Building Services Ltd,01505000,,BRREP Response - General,Tonbridge Farm Pavillion,M15HGP50001997,110070575
http://statistics.data.gov.uk/id/local-authority/29UP,Tonbridge & Malling Borough Council,11/8/2023,0011047229/1,11047229, 360.00,Marine And Industrial Pump Services,00062800,662127842,BRREP Servicing - sump pumps,Tonbridge Swimming Pool,M15HBP20001911,110070596
http://statistics.data.gov.uk/id/local-authority/29UP,Tonbridge & Malling Borough Council,11/8/2023,0011047230/1,11047230, 3296.70,TMS Protection Ltd,01744300,,Office Security,Ton Castle Council Chamber,D21FC000044047,
http://statistics.data.gov.uk/id/local-authority/29UP,Tonbridge & Malling Borough Council,11/8/2023,0011047230/2,11047230, 1858.95,TMS Protection Ltd,01744300,,Office Security,Ton Castle Council Chamber,D21FC000044047,
http://statistics.data.gov.uk/id/local-authority/29UP,Tonbridge & Malling Borough Council,11/8/2023,0011047231/1,11047231, 74.48,Royal Mail,00086200,,Postages - Business Reply,Electoral Registration,D31MF000045003,
http://statistics.data.gov.uk/id/local-authority/29UP,Tonbridge & Malling Borough Council,11/8/2023,0011047232/1,11047232, 458.69,Ricoh UK Ltd,01402300,,Maintenance - General,Printing,D22GA000040135,
http://statistics.data.gov.uk/id/local-authority/29UP,Tonbridge & Malling Borough Council,11/8/2023,0011047233/1,11047233, 449.40,Monitor Pest Control Ltd,01476700,,BRREP Rodent Control,Gibson Building West,M15KBP20001949,110070601
http://statistics.data.gov.uk/id/local-authority/29UP,Tonbridge & Malling Borough Council,11/8/2023,0011047234/1,11047234, 903.30,Sellick Partnership Group Limited,01336800,,Temporary Staff,Legal Sals&Overheads,D01ARDR0011300,
http://statistics.data.gov.uk/id/local-authority/29UP,Tonbridge & Malling Borough Council,11/8/2023,0011047235/1,11047235, 1217.80,Sellick Partnership Group Limited,01336800,,Temporary Staff,Legal Sals&Overheads,D01ARDR0011300,
http://statistics.data.gov.uk/id/local-authority/29UP,Tonbridge & Malling Borough Council,11/8/2023,0011047236/1,11047236, 1215.46,REDACTED PERSONAL DATA,01923200,,BRREP General Maintenance,Land Review,M15MAP49901900,
http://statistics.data.gov.uk/id/local-authority/29UP,Tonbridge & Malling Borough Council,11/8/2023,0012008879/1,12008879, 24.99,CCS Media Ltd,00018000,,Purchases,Information Technology,D27KD000040101,410032509
http://statistics.data.gov.uk/id/local-authority/29UP,Tonbridge & Malling Borough Council,11/8/2023,0012008879/2,12008879, 2.00,CCS Media Ltd,00018000,,Delivery Expenses,Information Technology,D27KD000044069,410032509
http://statistics.data.gov.uk/id/local-authority/29UP,Tonbridge & Malling Borough Council,11/8/2023,0012008880/1,12008880, 1634.50,Vertiv Infrastructure Limited,00158300,,Maintenance - Ancillary Equip,Information Technology,D27KD000040137,110070541
http://statistics.data.gov.uk/id/local-authority/29UP,Tonbridge & Malling Borough Council,11/8/2023,0012008881/1,12008881, 103.41,CCS Media Ltd,00018000,,Purchases,Information Technology,D27KD000040101,410032494
http://statistics.data.gov.uk/id/local-authority/29UP,Tonbridge & Malling Borough Council,11/8/2023,0012008882/1,12008882, 1280.00,Comtec Enterprises L:td,01699500,,Maintenance - Ancillary Equip,Information Technology,D27KD000040137,410032508
http://statistics.data.gov.uk/id/local-authority/29UP,Tonbridge & Malling Borough Council,11/8/2023,0012008882/2,12008882, 1083.00,Comtec Enterprises L:td,01699500,,Maintenance - Ancillary Equip,Information Technology,D27KD000040137,410032508
http://statistics.data.gov.uk/id/local-authority/29UP,Tonbridge & Malling Borough Council,11/8/2023,0012008883/1,12008883, 21.51,Esendex Limited,01008900,,Leased Lines & Modems,Information Technology,D27KD000045011,
http://statistics.data.gov.uk/id/local-authority/29UP,Tonbridge & Malling Borough Council,11/8/2023,0012008884/1,12008884, 9.78,Daisy Communications,01068100,,Telephones - Rentals,General Admin Telephones,D24GT000045005,
http://statistics.data.gov.uk/id/local-authority/29UP,Tonbridge & Malling Borough Council,11/8/2023,0012008884/2,12008884, 285.76,Daisy Communications,01068100,,Telephones - Call Costs,General Admin Telephones,D24GT000045006,
http://statistics.data.gov.uk/id/local-authority/29UP,Tonbridge & Malling Borough Council,11/8/2023,0012008884/3,12008884, 95.92,Daisy Communications,01068100,,Leased Lines & Modems,Information Technology,D27KD000045011,
http://statistics.data.gov.uk/id/local-authority/29UP,Tonbridge & Malling Borough Council,11/8/2023,0012008884/4,12008884, 74.46,Daisy Communications,01068100,,Maintenance - General,Security Services Management,E09GA000040135,
http://statistics.data.gov.uk/id/local-authority/29UP,Tonbridge & Malling Borough Council,11/8/2023,0012008885/1,12008885, 30.00,Coolspirit Ltd,01366300,,Delivery Expenses,Information Technology,D27KD000044069,410032512
http://statistics.data.gov.uk/id/local-authority/29UP,Tonbridge & Malling Borough Council,11/8/2023,0012008885/2,12008885, 3169.88,Coolspirit Ltd,01366300,,Initial Furniture & Equipment,Capital Renewals IT,P06FBFB2009906,410032512
http://statistics.data.gov.uk/id/local-authority/29UP,Tonbridge & Malling Borough Council,11/8/2023,0012008886/1,12008886, 45.00,Nexus Data Systems Ltd,01057000,,Software Hire & Support,Information Technology,D27KD000044059,410032514
http://statistics.data.gov.uk/id/local-authority/29UP,Tonbridge & Malling Borough Council,11/8/2023,0012008887/1,12008887, 1889.42,NTT Cloud Communications UK Ltd,01794600,,Software Hire & Support,Information Technology,D27KD000044059,
http://statistics.data.gov.uk/id/local-authority/29UP,Tonbridge & Malling Borough Council,11/8/2023,0021038931/3,21038931, 180.00,Green Leaf Tree & Landscapes Limited,01860500,,Health & Safety - Trees,Countryside/Woodland Mgt,B22LG000044045,
http://statistics.data.gov.uk/id/local-authority/29UP,Tonbridge & Malling Borough Council,11/8/2023,0021038932/1,21038932, 380.00,Green Leaf Tree & Landscapes Limited,01860500,,Health & Safety - Trees,Countryside/Woodland Mgt,B22LG000044045,210057405
http://statistics.data.gov.uk/id/local-authority/29UP,Tonbridge & Malling Borough Council,11/8/2023,0021038933/1,21038933, 24.50,Scottish Water Business Stream Ltd,01641100,,Sewerage Charges,Cemetery,B26MP000024003,
http://statistics.data.gov.uk/id/local-authority/29UP,Tonbridge & Malling Borough Council,11/8/2023,0021038934/3,21038934, 3.79,B&Q/Screwfix Direct(TradeUKAccount),00141300,,Maintenance of Grounds,Haysden Country Park,B22LC000020402,
http://statistics.data.gov.uk/id/local-authority/29UP,Tonbridge & Malling Borough Council,11/8/2023,0021038936/1,21038936, 1993.00,Amethyst Horticulture,01546900,,Purchases,Tonbridge Castle Grounds,B22LB000040101,210057309
http://statistics.data.gov.uk/id/local-authority/29UP,Tonbridge & Malling Borough Council,11/8/2023,0021038937/1,21038937, 7200.00,Burslem Memorials Ltd,01013400,,Contract Payments,Ton Cemetery Memorial Safety,P05KV000009904,210057422
http://statistics.data.gov.uk/id/local-authority/29UP,Tonbridge & Malling Borough Council,11/8/2023,0021038938/1,21038938, 5200.00,Burslem Memorials Ltd,01013400,,Contract Payments,Ton Cemetery Memorial Safety,P05KV000009904,210057421
http://statistics.data.gov.uk/id/local-authority/29UP,Tonbridge & Malling Borough Council,11/8/2023,0021038939/1,21038939, 585.00,Centennial Property Ltd,01901000,,Temporary Accommodation,Homelessness,C01AA000044051,
http://statistics.data.gov.uk/id/local-authority/29UP,Tonbridge & Malling Borough Council,11/8/2023,0021038940/1,21038940, 975.00,Mitsubishi Chemical Advanced Materials,01870300,639821314,Initial Furniture & Equipment,Capital Renewals Leisure,P05KGBC0209906,210057393
http://statistics.data.gov.uk/id/local-authority/29UP,Tonbridge & Malling Borough Council,11/8/2023,0021038940/2,21038940, 30.00,Mitsubishi Chemical Advanced Materials,01870300,639821314,Initial Furniture & Equipment,Capital Renewals Leisure,P05KGBC0209906,210057393
http://statistics.data.gov.uk/id/local-authority/29UP,Tonbridge & Malling Borough Council,11/8/2023,0021038941/1,21038941, 907.44,Networldsports.co.uk,01746300,,Maintenance of Grounds,Sports Grounds,B13ET000020402,210057316
http://statistics.data.gov.uk/id/local-authority/29UP,Tonbridge & Malling Borough Council,11/8/2023,0021038942/1,21038942, 591.00,Streetmaster (South Wales) Ltd,00222100,,Maintenance of Grounds,Open Spaces & Amenity Areas,B22LE000020402,210057401
http://statistics.data.gov.uk/id/local-authority/29UP,Tonbridge & Malling Borough Council,11/8/2023,0021038943/1,21038943, 717.00,Streetmaster (South Wales) Ltd,00222100,,Maintenance of Grounds,Open Spaces & Amenity Areas,B22LE000020402,210057385
http://statistics.data.gov.uk/id/local-authority/29UP,Tonbridge & Malling Borough Council,11/8/2023,0022028212/1,22028212, 3.00,Tonbridge & Malling Borough Council,00103700,,Other Expenses,Housing Assistance,P03AD000009908,
http://statistics.data.gov.uk/id/local-authority/29UP,Tonbridge & Malling Borough Council,11/8/2023,0022028213/3,22028213, 1847.50,Specialist Hygiene Services,01466100,,Cleaning & Domestic Supplies,Haysden Country Park,B22LC000026001,
http://statistics.data.gov.uk/id/local-authority/29UP,Tonbridge & Malling Borough Council,11/8/2023,0022028213/4,22028213, 4099.80,Specialist Hygiene Services,01466100,,Contract Payments,Public Conveniences,H22SC000054001,
http://statistics.data.gov.uk/id/local-authority/29UP,Tonbridge & Malling Borough Council,11/8/2023,0022028214/3,22028214, 800.00,Green Recycling LTD,01563000,,Paper Recycling,Dry Recycling,H34SR000054024,
http://statistics.data.gov.uk/id/local-authority/29UP,Tonbridge & Malling Borough Council,11/8/2023,0022028215/1,22028215, 1282.17,Scottish Water Business Stream Ltd,01641100,,Sewerage Charges,Public Conveniences,H22SCH01024003,
http://statistics.data.gov.uk/id/local-authority/29UP,Tonbridge & Malling Borough Council,11/8/2023,0022028216/3,22028216, 42.18,Biffa Waste Services Ltd,01284500,,Trade Refuse Charges,Cleaning & Security,D21FD000044008,
http://statistics.data.gov.uk/id/local-authority/29UP,Tonbridge & Malling Borough Council,11/8/2023,0022028217/1,22028217, 5820.75,YMCA Thames Gateway Group,01887700,,Professional Fees,Homelessness,C01AATNPR44001,
http://statistics.data.gov.uk/id/local-authority/29UP,Tonbridge & Malling Borough Council,11/8/2023,0022028218/1,22028218, 305.00,Monitor Pest Control Ltd,01476700,,Other Expenses,Pest Control,H24SE000048010,
http://statistics.data.gov.uk/id/local-authority/29UP,Tonbridge & Malling Borough Council,11/8/2023,0022028219/1,22028219, 250.00,Landmark Information Group,00935700,,Subscriptions,Env Hlth & Hsg Sals&Overheads,D01AVDV0347002,220003405
http://statistics.data.gov.uk/id/local-authority/29UP,Tonbridge & Malling Borough Council,11/8/2023,0022028220/1,22028220, 72.00,LA Personal Fitness,01782300,,Healthy Living Initiatives,Public Health - Healthy Living,H40SY000048145,220003392
http://statistics.data.gov.uk/id/local-authority/29UP,Tonbridge & Malling Borough Council,11/8/2023,0022028221/1,22028221, 21.59,EDF- Accounts starting with A,01921000,,Electricity,Homelessness,C01AATNPR21002,
http://statistics.data.gov.uk/id/local-authority/29UP,Tonbridge & Malling Borough Council,11/8/2023,0022028222/3,22028222, 11.50,FirstAid4Less,01509300,,Health General,Food & Safety - General,H35SW000044049,
http://statistics.data.gov.uk/id/local-authority/29UP,Tonbridge & Malling Borough Council,11/8/2023,0022028223/1,22028223, 8659.00,Less Homeless Ltd,01489300,,Temporary Accommodation,Homelessness,C01AA000044051,
http://statistics.data.gov.uk/id/local-authority/29UP,Tonbridge & Malling Borough Council,11/8/2023,0022028224/1,22028224, 10044.00,Simon Niblett Lettings,00072600,,Temporary Accommodation,Homelessness,C01AA000044051,
http://statistics.data.gov.uk/id/local-authority/29UP,Tonbridge & Malling Borough Council,11/8/2023,0022028225/1,22028225, 3410.00,Simon Niblett Lettings,00072600,,Temporary Accommodation,Homelessness,C01AA000044051,
http://statistics.data.gov.uk/id/local-authority/29UP,Tonbridge & Malling Borough Council,11/8/2023,0022028226/1,22028226, 1519.00,Simply Rented Ltd ,01691400,,Temporary Accommodation,Homelessness,C01AA000044051,
http://statistics.data.gov.uk/id/local-authority/29UP,Tonbridge & Malling Borough Council,11/8/2023,0022028227/1,22028227, 15395.00,Smart Property Professionals,01815100,,Temporary Accommodation,Homelessness,C01AA000044051,
http://statistics.data.gov.uk/id/local-authority/29UP,Tonbridge & Malling Borough Council,11/8/2023,0022028228/1,22028228, 50566.00,Paramount Independent Property Suppliers,01595300,,Temporary Accommodation,Homelessness,C01AA000044051,
http://statistics.data.gov.uk/id/local-authority/29UP,Tonbridge & Malling Borough Council,11/8/2023,0022028229/1,22028229, 31897.50,Social & Community Care,01768400,,Temporary Accommodation,Homelessness,C01AA000044051,
http://statistics.data.gov.uk/id/local-authority/29UP,Tonbridge & Malling Borough Council,11/8/2023,0022028230/1,22028230, 2615.82,The Care Group-Housing & Care Trust,01699600,,Temporary Accommodation,Homelessness,C01AA000044051,
http://statistics.data.gov.uk/id/local-authority/29UP,Tonbridge & Malling Borough Council,11/8/2023,0022028231/1,22028231, 1161.94,Town & Country Housing Group,01385400,,Other Expenses,Disabled Facilities Grant Mand,P03AC000009908,
http://statistics.data.gov.uk/id/local-authority/29UP,Tonbridge & Malling Borough Council,11/8/2023,0022028232/1,22028232, 6455.17,B Coldwell Renovations Ltd,01923100,,Other Expenses,Disabled Facilities Grant Mand,P03AC000009908,
http://statistics.data.gov.uk/id/local-authority/29UP,Tonbridge & Malling Borough Council,11/8/2023,0022028233/1,22028233, 17313.29,Acorn Maintenance Services,01036000,,Other Expenses,Disabled Facilities Grant Mand,P03AC000009908,
http://statistics.data.gov.uk/id/local-authority/29UP,Tonbridge & Malling Borough Council,11/8/2023,0022028234/1,22028234, 5189.11,Acorn Maintenance Services,01036000,,Other Expenses,Disabled Facilities Grant Mand,P03AC000009908,
http://statistics.data.gov.uk/id/local-authority/29UP,Tonbridge & Malling Borough Council,11/8/2023,0022028235/1,22028235, 440.00,Town & Country Housing Group,01385400,,Other Expenses,Disabled Facilities Grant Mand,P03AC000009908,
http://statistics.data.gov.uk/id/local-authority/29UP,Tonbridge & Malling Borough Council,11/8/2023,0022028236/1,22028236, 3517.56,Town & Country Housing Group,01385400,,Other Expenses,Disabled Facilities Grant Mand,P03AC000009908,
http://statistics.data.gov.uk/id/local-authority/29UP,Tonbridge & Malling Borough Council,11/8/2023,0022028237/1,22028237, 5645.00,Social & Community Care,01768400,,Temporary Accommodation,Homelessness,C01AA000044051,
http://statistics.data.gov.uk/id/local-authority/29UP,Tonbridge & Malling Borough Council,11/8/2023,0022028238/1,22028238, 4464.00,Kent Accommodation Ltd,01722000,,Temporary Accommodation,Homelessness,C01AA000044051,
http://statistics.data.gov.uk/id/local-authority/29UP,Tonbridge & Malling Borough Council,11/8/2023,0022028239/1,22028239, 12089.00,SPA CAFFE LIMITED,00127100,,Temporary Accommodation,Homelessness,C01AA000044051,
http://statistics.data.gov.uk/id/local-authority/29UP,Tonbridge & Malling Borough Council,11/8/2023,0022028240/1,22028240, 2096.00,1st  Steps Housing Kent,01716100,,Temporary Accommodation,Homelessness,C01AA000044051,
http://statistics.data.gov.uk/id/local-authority/29UP,Tonbridge & Malling Borough Council,11/8/2023,0022028241/1,22028241, 3618.74,Clarion Housing Group Ltd,01078200,,Homelessness Reduction Initiat,Homelessness,C01AA000048019,
http://statistics.data.gov.uk/id/local-authority/29UP,Tonbridge & Malling Borough Council,11/8/2023,0031019803/1,31019803, 400.00,Arnold & Court Ltd,01411300,,Contract Payments,Boro Drainage & Land Drainage,E20MA000054001,310043120
http://statistics.data.gov.uk/id/local-authority/29UP,Tonbridge & Malling Borough Council,11/8/2023,0031019804/1,31019804, 400.00,Arnold & Court Ltd,01411300,,Premises Repairs & Maintenance,Parking Off-Street,E10HA000020601,310043157
http://statistics.data.gov.uk/id/local-authority/29UP,Tonbridge & Malling Borough Council,11/8/2023,0031019805/1,31019805, 400.00,Arnold & Court Ltd,01411300,,Winter Maintenance,Parking Off-Street,E10HA000020701,310043154
http://statistics.data.gov.uk/id/local-authority/29UP,Tonbridge & Malling Borough Council,11/8/2023,0031019806/1,31019806, 250.00,Arnold & Court Ltd,01411300,,BRREP Car Park mntce,Leis Man Poult Wood Golf Centr,M15HEP20001953,310043148
http://statistics.data.gov.uk/id/local-authority/29UP,Tonbridge & Malling Borough Council,11/8/2023,0031019807/1,31019807, 300.00,Arnold & Court Ltd,01411300,,Repair & Mtce of Fixed Plant,Boro Highways & Emergency Oper,E01AA000020501,310043149
http://statistics.data.gov.uk/id/local-authority/29UP,Tonbridge & Malling Borough Council,11/8/2023,0031019808/1,31019808, 465.00,Arnold & Court Ltd,01411300,,Bridge Maintenance,Open Spaces & Amenity Areas,B22LE000020505,210057436
http://statistics.data.gov.uk/id/local-authority/29UP,Tonbridge & Malling Borough Council,11/8/2023,0031019809/1,31019809, 1750.00,Arnold & Court Ltd,01411300,,Repair & Mtce of Fixed Plant,Boro Highways & Emergency Oper,E01AA000020501,310043141
http://statistics.data.gov.uk/id/local-authority/29UP,Tonbridge & Malling Borough Council,11/8/2023,0031019810/1,31019810, 425.00,Arnold & Court Ltd,01411300,,Premises Repairs & Maintenance,Parking On-Street,E10HD000020601,210057416
http://statistics.data.gov.uk/id/local-authority/29UP,Tonbridge & Malling Borough Council,11/8/2023,0031019811/1,31019811, 425.00,Arnold & Court Ltd,01411300,,Premises Repairs & Maintenance,Parking Off-Street,E10HA000020601,310043142
http://statistics.data.gov.uk/id/local-authority/29UP,Tonbridge & Malling Borough Council,11/8/2023,0031019812/1,31019812, 750.00,Arnold & Court Ltd,01411300,,Winter Maintenance,Parking Off-Street,E10HA000020701,310043133
http://statistics.data.gov.uk/id/local-authority/29UP,Tonbridge & Malling Borough Council,11/8/2023,0031019813/1,31019813, 485.00,Arnold & Court Ltd,01411300,,Premises Repairs & Maintenance,Parking Off-Street,E10HA000020601,310043134
http://statistics.data.gov.uk/id/local-authority/29UP,Tonbridge & Malling Borough Council,11/8/2023,0031019814/1,31019814, 860.00,Arnold & Court Ltd,01411300,,Repair & Mtce of Fixed Plant,Boro Highways & Emergency Oper,E01AA000020501,310043130
http://statistics.data.gov.uk/id/local-authority/29UP,Tonbridge & Malling Borough Council,11/8/2023,0031019815/3,31019815, 2975.00,Tonbridge & Malling Leisure Trust,01469100,,Ticket Refunds - Lower Castle,Parking Off-Street,E10HAE01344199,
http://statistics.data.gov.uk/id/local-authority/29UP,Tonbridge & Malling Borough Council,11/8/2023,0031019817/3,31019817, 390.00,Monitor Pest Control Ltd,01476700,,Maintenance of Grounds,Parking Off-Street,E10HA000020402,
http://statistics.data.gov.uk/id/local-authority/29UP,Tonbridge & Malling Borough Council,11/8/2023,0031019818/3,31019818, 390.00,Monitor Pest Control Ltd,01476700,,CCTV Monitoring Station,Security Services Management,E09GA000051020,
http://statistics.data.gov.uk/id/local-authority/29UP,Tonbridge & Malling Borough Council,11/8/2023,0031019819/3,31019819, 1390.00,Marston,01485000,,Adjudication & Enforcement Ser,Parking Off-Street,E10HA000044230,
http://statistics.data.gov.uk/id/local-authority/29UP,Tonbridge & Malling Borough Council,11/8/2023,0031019820/1,31019820, 500.00,Traffic Enforcement Centre,00604200,,Adjudication & Enforcement Ser,Parking Off-Street,E10HA000044230,
http://statistics.data.gov.uk/id/local-authority/29UP,Tonbridge & Malling Borough Council,11/8/2023,0031019820/2,31019820, 500.00,Traffic Enforcement Centre,00604200,,Adjudication & Enforcement Ser,Parking On-Street,E10HD000044230,
http://statistics.data.gov.uk/id/local-authority/29UP,Tonbridge & Malling Borough Council,11/8/2023,0031019821/1,31019821, 28201.28,Tunbridge Wells Borough Council,00844600,,CCTV Monitoring Station,Security Services Management,E09GA000051020,
http://statistics.data.gov.uk/id/local-authority/29UP,Tonbridge & Malling Borough Council,11/8/2023,0031019822/1,31019822, 600.00,SJD Resilience,01922800,,Kent Resilience Forum,Civil Contingencies,D33NA000048032,
http://statistics.data.gov.uk/id/local-authority/29UP,Tonbridge & Malling Borough Council,11/8/2023,0031019823/1,31019823, 1076.80,G & G Signs,01178400,,Purchases,Boro Highways & Emergency Oper,E01AA000040101,310043152
http://statistics.data.gov.uk/id/local-authority/29UP,Tonbridge & Malling Borough Council,11/8/2023,0031019824/1,31019824, 2852.25,CDER Group,01773300,,Adjudication & Enforcement Ser,Parking Off-Street,E10HA000044230,
http://statistics.data.gov.uk/id/local-authority/29UP,Tonbridge & Malling Borough Council,11/8/2023,0031019825/1,31019825, 100.26,Shell U.K. Oil Products Limited,01673300,,"Petrol, Diesel & Oil",Parking Off-Street,E10HA000030106,
http://statistics.data.gov.uk/id/local-authority/29UP,Tonbridge & Malling Borough Council,11/8/2023,0031019825/2,31019825, 100.26,Shell U.K. Oil Products Limited,01673300,,"Petrol, Diesel & Oil",Parking On-Street,E10HD000030106,
http://statistics.data.gov.uk/id/local-authority/29UP,Tonbridge & Malling Borough Council,11/8/2023,0032010533/1,32010533, 50000.00,Wouldham Parish Council,00114700,,Payments,S106 - Commuted Sums,M04AD000001001,
http://statistics.data.gov.uk/id/local-authority/29UP,Tonbridge & Malling Borough Council,11/8/2023,0032010534/1,32010534, 2565.00,Vivid Resourcing,01773700,,Temporary Staff,Planning Sals&Overheads,D01AJDJ0111300,
http://statistics.data.gov.uk/id/local-authority/29UP,Tonbridge & Malling Borough Council,11/8/2023,0032010535/1,32010535, 1738.40,The Oyster Partnership,01196400,,Temporary Staff,Planning Sals&Overheads,D01AJDJ0111300,
http://statistics.data.gov.uk/id/local-authority/29UP,Tonbridge & Malling Borough Council,11/8/2023,0032010536/1,32010536, 1491.00,The Oyster Partnership,01196400,,Temporary Staff,Planning Sals&Overheads,D01AJDJ0111300,
http://statistics.data.gov.uk/id/local-authority/29UP,Tonbridge & Malling Borough Council,11/8/2023,0032010537/1,32010537, 3059.00,Kent County Council,00167000,,Temporary Staff,Planning Sals&Overheads,D01AJDJ0311300,320003554
http://statistics.data.gov.uk/id/local-authority/29UP,Tonbridge & Malling Borough Council,11/8/2023,0032010538/1,32010538, 2250.00,G2 Recruitment Solutions,01786000,,Temporary Staff,Planning Sals&Overheads,D01AJDJ0011300,
http://statistics.data.gov.uk/id/local-authority/29UP,Tonbridge & Malling Borough Council,11/8/2023,0032010539/1,32010539, 1850.00,G2 Recruitment Solutions,01786000,,Temporary Staff,Planning Sals&Overheads,D01AJDJ0011300,
http://statistics.data.gov.uk/id/local-authority/29UP,Tonbridge & Malling Borough Council,11/8/2023,0032010540/1,32010540, 595.13,Carrington West Limited,01844500,,Temporary Staff,Planning Sals&Overheads,D01AJDJ0111300,
http://statistics.data.gov.uk/id/local-authority/29UP,Tonbridge & Malling Borough Council,11/8/2023,0032010541/1,32010541, 1128.00,Carrington West Limited,01844500,,Temporary Staff,Planning Sals&Overheads,D01AJDJ0111300,
http://statistics.data.gov.uk/id/local-authority/29UP,Tonbridge & Malling Borough Council,11/8/2023,0032010543/1,32010543, 200.00,P K Saunders Electrical Ltd,01900800,,Competent Persons Schemes,Building Control,A01AD000048116,
http://statistics.data.gov.uk/id/local-authority/29UP,Tonbridge & Malling Borough Council,11/8/2023,0032010544/1,32010544, 952.00,Hays Specialist Recruitment Limited,01879200,773695871,Temporary Staff,Planning Sals&Overheads,D01AJDJ0111300,
http://statistics.data.gov.uk/id/local-authority/29UP,Tonbridge & Malling Borough Council,11/8/2023,0032010545/1,32010545, 1792.25,Hays Specialist Recruitment Limited,01879200,773695871,Temporary Staff,Planning Sals&Overheads,D01AJDJ0111300,
http://statistics.data.gov.uk/id/local-authority/29UP,Tonbridge & Malling Borough Council,11/8/2023,0032010546/1,32010546, 2160.75,Hays Specialist Recruitment Limited,01879200,773695871,Temporary Staff,Planning Sals&Overheads,D01AJDJ0111300,
http://statistics.data.gov.uk/id/local-authority/29UP,Tonbridge & Malling Borough Council,11/8/2023,0032010547/1,32010547, 464365.17,Kent County Council,00322500,,Payments,S106 - Commuted Sums,M04AD000001001,320003569
http://statistics.data.gov.uk/id/local-authority/29UP,Tonbridge & Malling Borough Council,11/8/2023,0032010548/1,32010548, 1250.00,Tunbridge Wells Borough Council,00844600,,Conservation,Conservation,A01AG000056002,
http://statistics.data.gov.uk/id/local-authority/29UP,Tonbridge & Malling Borough Council,11/8/2023,0041036036/1,41036036, 130000.00,Clear Channel United Kingdom,01583700,,Repair & Mtce of Fixed Plant,Boro Highways & Emergency Oper,E01AAE90220501,
http://statistics.data.gov.uk/id/local-authority/29UP,Tonbridge & Malling Borough Council,11/8/2023,0041036037/1,41036037, 165.00,LAVAT Consulting Limited,01206800,,Ext Fees/Prof & Tech,Training,D10DCDF0213561,410032476
http://statistics.data.gov.uk/id/local-authority/29UP,Tonbridge & Malling Borough Council,11/8/2023,0041036038/3,41036038, 107.59,Adelante Software Limited,01393800,812115871,Credit Card Commission,Banking Arrangements,D43QK000044082,
http://statistics.data.gov.uk/id/local-authority/29UP,Tonbridge & Malling Borough Council,11/8/2023,0041036039/1,41036039, 1311.64,Morgan Hunt UK Ltd,01086900,,Temporary Staff,Finance Sals&Overheads,D01AFDF1111300,
http://statistics.data.gov.uk/id/local-authority/29UP,Tonbridge & Malling Borough Council,11/8/2023,0041036040/1,41036040, 26624.23,Cushman & Wakefield,01772600,,Pay to Principal - Angel East,Parking Off-Street,E10HAE00144196,
http://statistics.data.gov.uk/id/local-authority/29UP,Tonbridge & Malling Borough Council,11/8/2023,0051008865/1,51008865, 750.00,CIPFA Business Limited,01216800,,Ext Fees/Prof & Tech,Training,D10DCDF0213561,510010657
http://statistics.data.gov.uk/id/local-authority/29UP,Tonbridge & Malling Borough Council,11/8/2023,0051008866/1,51008866, 6102.00,Haymarket Media Group Limited,01197800,,Recruitment Advertising,Recruitment Expenses,D10DA000013110,510010652
http://statistics.data.gov.uk/id/local-authority/29UP,Tonbridge & Malling Borough Council,11/15/2023,0011047237/1,11047237, 589.41,Kings Hill Recruitment,01738900,,Temporary Staff,Personnel Sals&Overheads,D01ABDB0311300,
http://statistics.data.gov.uk/id/local-authority/29UP,Tonbridge & Malling Borough Council,11/15/2023,0011047237/2,11047237, 589.41,Kings Hill Recruitment,01738900,,Temporary Staff,Personnel Sals&Overheads,D01ABDB0311300,
http://statistics.data.gov.uk/id/local-authority/29UP,Tonbridge & Malling Borough Council,11/15/2023,0011047238/1,11047238, 2123.44,GSF SANDYLIGHT LTD,01705300,,Temporary Staff,Admin & Prop Sals&Overheads,D01AADA0511300,
http://statistics.data.gov.uk/id/local-authority/29UP,Tonbridge & Malling Borough Council,11/15/2023,0011047239/1,11047239, 1387.50,G2 Recruitment Solutions,01786000,,Temporary Staff,Legal Sals&Overheads,D01ARDR0311300,
http://statistics.data.gov.uk/id/local-authority/29UP,Tonbridge & Malling Borough Council,11/15/2023,0011047240/1,11047240, 625.00,Vivid Resourcing,01773700,,Temporary Staff,Legal Sals&Overheads,D01ARDR0011300,
http://statistics.data.gov.uk/id/local-authority/29UP,Tonbridge & Malling Borough Council,11/15/2023,0011047240/2,11047240, 406.25,Vivid Resourcing,01773700,,Temporary Staff,Legal Sals&Overheads,D01ARDR0011300,
http://statistics.data.gov.uk/id/local-authority/29UP,Tonbridge & Malling Borough Council,11/15/2023,0011047241/1,11047241, 251.63,Chubb Fire & Security Ltd,00115400,174605362,BRREP Servicing-IntruderAlarm,Tonbridge Swimming Pool,M15HBP20001939,
http://statistics.data.gov.uk/id/local-authority/29UP,Tonbridge & Malling Borough Council,11/15/2023,0011047242/1,11047242, 1441.06,Ricoh UK Ltd,01402300,,Maintenance - General,Printing,D22GA000040135,
http://statistics.data.gov.uk/id/local-authority/29UP,Tonbridge & Malling Borough Council,11/15/2023,0011047243/1,11047243, 97.42,Atlas Facilities Managment Limited ,01075900,,Miscellaneous Services,Cleaning & Security,D21FDDD5044015,
http://statistics.data.gov.uk/id/local-authority/29UP,Tonbridge & Malling Borough Council,11/15/2023,0011047244/1,11047244, 48.71,Atlas Facilities Managment Limited ,01075900,,Miscellaneous Services,Cleaning & Security,D21FDDD6044015,
http://statistics.data.gov.uk/id/local-authority/29UP,Tonbridge & Malling Borough Council,11/15/2023,0011047245/1,11047245, 195.00,Guardian Security & Fire Ltd,01899300,,BRREP Servicing - FireAlarmSys,Gibson Building East,M15KGP20001937,
http://statistics.data.gov.uk/id/local-authority/29UP,Tonbridge & Malling Borough Council,11/15/2023,0011047246/1,11047246, 1002.46,Premier Paper Group,01421800,,Purchases - Paper,Printing,D22GA000040102,
http://statistics.data.gov.uk/id/local-authority/29UP,Tonbridge & Malling Borough Council,11/15/2023,0011047247/1,11047247, 1319.08,The Oyster Partnership,01196400,,Temporary Staff,Admin & Prop Sals&Overheads,D01AADA1111300,
http://statistics.data.gov.uk/id/local-authority/29UP,Tonbridge & Malling Borough Council,11/15/2023,0011047248/1,11047248, 1204.40,Sellick Partnership Group Limited,01336800,,Temporary Staff,Legal Sals&Overheads,D01ARDR0011300,
http://statistics.data.gov.uk/id/local-authority/29UP,Tonbridge & Malling Borough Council,11/15/2023,0011047249/1,11047249, 475.00,Southern Lightning Engineers Ltd,00094000,,BRREP Servicing-Lightning Prot,Tonbridge Swimming Pool,M15HBP20001942,110070482
http://statistics.data.gov.uk/id/local-authority/29UP,Tonbridge & Malling Borough Council,11/15/2023,0011047250/1,11047250, 496.00,Willow Pumps Ltd,00114100,,BRREP Servicing - Pumping Stn,Tonbridge Swimming Pool,M15HBP20001931,110070370
http://statistics.data.gov.uk/id/local-authority/29UP,Tonbridge & Malling Borough Council,11/15/2023,0011047251/1,11047251, 3220.00,G C Industrial Heating Services,00578100,,BRREP Servicing - Heating Syst,Angel Centre,M15HAP20001934,110070602
http://statistics.data.gov.uk/id/local-authority/29UP,Tonbridge & Malling Borough Council,11/15/2023,0011047252/1,11047252, 653.00,Guardian Security & Fire Ltd,01899300,,BRREP Servicing - FireAlarmSys,Leis Man Poult Wood Golf Centr,M15HEP20001937,110070557
http://statistics.data.gov.uk/id/local-authority/29UP,Tonbridge & Malling Borough Council,11/15/2023,0011047253/1,11047253, 3610.66,Broadwater Technologies,01534500,,BRREP Servicing - pool plant,Tonbridge Swimming Pool,M15HBP20001910,110070461
http://statistics.data.gov.uk/id/local-authority/29UP,Tonbridge & Malling Borough Council,11/15/2023,0011047254/1,11047254, 18.20,Edmundson Electrical Ltd,01210900,,Cleaning & Domestic Supplies,Cleaning & Security,D21FD000026001,110070394
http://statistics.data.gov.uk/id/local-authority/29UP,Tonbridge & Malling Borough Council,11/15/2023,0011047255/1,11047255, 55.06,Edmundson Electrical Ltd,01210900,,Cleaning & Domestic Supplies,Cleaning & Security,D21FDDD1026001,110070172
http://statistics.data.gov.uk/id/local-authority/29UP,Tonbridge & Malling Borough Council,11/15/2023,0011047255/2,11047255, 9.60,Edmundson Electrical Ltd,01210900,,Cleaning & Domestic Supplies,Cleaning & Security,D21FDDD1026001,110070172
http://statistics.data.gov.uk/id/local-authority/29UP,Tonbridge & Malling Borough Council,11/15/2023,0011047256/1,11047256, 340.00,Pillory Barn Design Studios,01898100,619155927,Marketing,Information & Publicity,D32MJ000044215,110070196
http://statistics.data.gov.uk/id/local-authority/29UP,Tonbridge & Malling Borough Council,11/15/2023,0011047257/1,11047257, 574.00,BML Building Services Ltd,01505000,,BRREP Response - General,Leybourne Lakes Country Park,M15HLP50001997,110070597
http://statistics.data.gov.uk/id/local-authority/29UP,Tonbridge & Malling Borough Council,11/15/2023,0011047258/1,11047258, 645.00,BML Building Services Ltd,01505000,,BRREP Response - General,Gibson Building West,M15KBP50001997,110070607
http://statistics.data.gov.uk/id/local-authority/29UP,Tonbridge & Malling Borough Council,11/15/2023,0011047259/1,11047259, 1217.80,Sellick Partnership Group Limited,01336800,,Temporary Staff,Legal Sals&Overheads,D01ARDR0011300,
http://statistics.data.gov.uk/id/local-authority/29UP,Tonbridge & Malling Borough Council,11/15/2023,0011047260/1,11047260, 581.00,Thomson Snell & Passmore,00101700,,Legal Fees,Legal Sals&Overheads,D01ARDR0044002,
http://statistics.data.gov.uk/id/local-authority/29UP,Tonbridge & Malling Borough Council,11/15/2023,0011047261/3,11047261, 6.52,REDACTED PERSONAL DATA,01683000,,Castle Catering Provisions,Ton Castle Council Chamber,D21FC000041015,
http://statistics.data.gov.uk/id/local-authority/29UP,Tonbridge & Malling Borough Council,11/15/2023,0011047262/1,11047262, 2000.00,Let's Do Business(South East) Group Ltd,01879300,,Economic Development & Regen,Eco Dev & Reg Gen Bus Support,D52TD000047027,110069982
http://statistics.data.gov.uk/id/local-authority/29UP,Tonbridge & Malling Borough Council,11/15/2023,0011047262/2,11047262, 1500.00,Let's Do Business(South East) Group Ltd,01879300,,Initiatives,UK Shared Prosperity Fund,D52TH000048135,110069982
http://statistics.data.gov.uk/id/local-authority/29UP,Tonbridge & Malling Borough Council,11/15/2023,0012008888/1,12008888, 995.00,Socitm Ltd,00906400,,Subscriptions,Information Technology,D27KD000047002,410032485
http://statistics.data.gov.uk/id/local-authority/29UP,Tonbridge & Malling Borough Council,11/15/2023,0012008889/1,12008889, 16.14,KCS - KCC,00054200,,Copy Charges,Multi Function Devices,D22GB000040125,
http://statistics.data.gov.uk/id/local-authority/29UP,Tonbridge & Malling Borough Council,11/15/2023,0012008889/2,12008889, 76.10,KCS - KCC,00054200,,Leasing Charges,Multi Function Devices,D22GB000044038,
http://statistics.data.gov.uk/id/local-authority/29UP,Tonbridge & Malling Borough Council,11/15/2023,0012008890/1,12008890, 226.99,NEC Software Solutions UK Ltd,01073900,202159745,Software Hire & Support,Information Technology,D27KD000044059,410032490
http://statistics.data.gov.uk/id/local-authority/29UP,Tonbridge & Malling Borough Council,11/15/2023,0012008891/1,12008891, 255.80,Bytes Software Services,01676900,823818226,Software Hire & Support,Information Technology,D27KD000044059,410032510
http://statistics.data.gov.uk/id/local-authority/29UP,Tonbridge & Malling Borough Council,11/15/2023,0012008892/1,12008892, 900.00,Phoenix Software Ltd,00077400,755349015,Software Hire & Support,Information Technology,D27KD000044059,410032516
http://statistics.data.gov.uk/id/local-authority/29UP,Tonbridge & Malling Borough Council,11/15/2023,0012008893/1,12008893, 360.00,Kioware Europe Limited,01668200,,Software Hire & Support,Information Technology,D27KD000044059,410032519
http://statistics.data.gov.uk/id/local-authority/29UP,Tonbridge & Malling Borough Council,11/15/2023,0021038944/1,21038944, 300.00,Haysden Country Park Volunteers,01320800,,Community Group Funding,Leisure Planning & Policy,B37SD000047028,
http://statistics.data.gov.uk/id/local-authority/29UP,Tonbridge & Malling Borough Council,11/15/2023,0021038945/1,21038945, 350.00,SWS Countryside & Landscape,01567200,,Health & Safety - Trees,Countryside/Woodland Mgt,B22LG000044045,
http://statistics.data.gov.uk/id/local-authority/29UP,Tonbridge & Malling Borough Council,11/15/2023,0021038946/1,21038946, 300.00,SWS Countryside & Landscape,01567200,,Maintenance of Grounds,Parking Off-Street,E10HA000020402,310043136
http://statistics.data.gov.uk/id/local-authority/29UP,Tonbridge & Malling Borough Council,11/15/2023,0021038947/1,21038947, 300.00,SWS Countryside & Landscape,01567200,,Health & Safety - Trees,Countryside/Woodland Mgt,B22LG000044045,
http://statistics.data.gov.uk/id/local-authority/29UP,Tonbridge & Malling Borough Council,11/15/2023,0021038948/1,21038948, 350.00,SWS Countryside & Landscape,01567200,,Health & Safety - Trees,Countryside/Woodland Mgt,B22LG000044045,210057435
http://statistics.data.gov.uk/id/local-authority/29UP,Tonbridge & Malling Borough Council,11/15/2023,0021038949/1,21038949, 250.00,SWS Countryside & Landscape,01567200,,Health & Safety - Trees,Countryside/Woodland Mgt,B22LG000044045,
http://statistics.data.gov.uk/id/local-authority/29UP,Tonbridge & Malling Borough Council,11/15/2023,0021038950/1,21038950, 318.00,SWS Countryside & Landscape,01567200,,Maintenance of Grounds,Haysden Country Park,B22LC000020402,210057344
http://statistics.data.gov.uk/id/local-authority/29UP,Tonbridge & Malling Borough Council,11/15/2023,0021038951/1,21038951, 182.50,SWS Countryside & Landscape,01567200,,Maintenance of Grounds,Open Spaces & Amenity Areas,B22LE000020402,210057429
http://statistics.data.gov.uk/id/local-authority/29UP,Tonbridge & Malling Borough Council,11/15/2023,0021038952/1,21038952, 4979.00,SWS Countryside & Landscape,01567200,,Maintenance of Grounds,Open Spaces & Amenity Areas,B22LE000020402,210057434
http://statistics.data.gov.uk/id/local-authority/29UP,Tonbridge & Malling Borough Council,11/15/2023,0021038953/1,21038953, 780.00,SWS Countryside & Landscape,01567200,,Maintenance of Grounds,Open Spaces & Amenity Areas,B22LE000020402,210057345
http://statistics.data.gov.uk/id/local-authority/29UP,Tonbridge & Malling Borough Council,11/15/2023,0021038954/1,21038954, 200.00,SWS Countryside & Landscape,01567200,,Health & Safety - Trees,Countryside/Woodland Mgt,B22LG000044045,210057444
http://statistics.data.gov.uk/id/local-authority/29UP,Tonbridge & Malling Borough Council,11/15/2023,0021038955/1,21038955, 350.00,SWS Countryside & Landscape,01567200,,Health & Safety - Trees,Countryside/Woodland Mgt,B22LG000044045,
http://statistics.data.gov.uk/id/local-authority/29UP,Tonbridge & Malling Borough Council,11/15/2023,0021038956/1,21038956, 300.00,SWS Countryside & Landscape,01567200,,Health & Safety - Trees,Countryside/Woodland Mgt,B22LG000044045,210057445
http://statistics.data.gov.uk/id/local-authority/29UP,Tonbridge & Malling Borough Council,11/15/2023,0021038957/1,21038957, 1310.00,SWS Countryside & Landscape,01567200,,Health & Safety - Trees,Countryside/Woodland Mgt,B22LG000044045,210057446
http://statistics.data.gov.uk/id/local-authority/29UP,Tonbridge & Malling Borough Council,11/15/2023,0021038958/1,21038958, 124.92,Newitts & Co Ltd,01922300,,Initial Furniture & Equipment,Capital Renewals Leisure,P05KGBC0209906,210057455
http://statistics.data.gov.uk/id/local-authority/29UP,Tonbridge & Malling Borough Council,11/15/2023,0021038958/2,21038958, 5.79,Newitts & Co Ltd,01922300,,Initial Furniture & Equipment,Capital Renewals Leisure,P05KGBC0209906,210057455
http://statistics.data.gov.uk/id/local-authority/29UP,Tonbridge & Malling Borough Council,11/15/2023,0021038959/1,21038959, 238.15,Kings Hill Recruitment,01738900,,Temporary Staff,Planning Sals&Overheads,D01AJDJ0111300,320003571
http://statistics.data.gov.uk/id/local-authority/29UP,Tonbridge & Malling Borough Council,11/15/2023,0021038960/1,21038960, 1598.00,EA Group (UK) Ltd,01913600,,Initial Furniture & Equipment,Capital Renewals Leisure,P05KGBC0209906,210057359
http://statistics.data.gov.uk/id/local-authority/29UP,Tonbridge & Malling Borough Council,11/15/2023,0021038961/1,21038961, 74.71,G.L. & R.G. Bourne,00737500,,Gates / Security,Haysden Country Park,B22LC000044017,210057185
http://statistics.data.gov.uk/id/local-authority/29UP,Tonbridge & Malling Borough Council,11/15/2023,0021038962/1,21038962, 544.98,G.L. & R.G. Bourne,00737500,,Gates / Security,Haysden Country Park,B22LC000044017,210057185
http://statistics.data.gov.uk/id/local-authority/29UP,Tonbridge & Malling Borough Council,11/15/2023,0021038963/1,21038963, 72.30,G.L. & R.G. Bourne,00737500,,Gates / Security,Haysden Country Park,B22LC000044017,210057185
http://statistics.data.gov.uk/id/local-authority/29UP,Tonbridge & Malling Borough Council,11/15/2023,0021038964/1,21038964, 11.25,G.L. & R.G. Bourne,00737500,,Gates / Security,Haysden Country Park,B22LC000044017,
http://statistics.data.gov.uk/id/local-authority/29UP,Tonbridge & Malling Borough Council,11/15/2023,0021038965/1,21038965, 40.00,G.L. & R.G. Bourne,00737500,,Maintenance of Grounds,Haysden Country Park,B22LC000020402,210057185
http://statistics.data.gov.uk/id/local-authority/29UP,Tonbridge & Malling Borough Council,11/15/2023,0021038966/1,21038966, 527.40,G.L. & R.G. Bourne,00737500,,Gates / Security,Haysden Country Park,B22LC000044017,210057185
http://statistics.data.gov.uk/id/local-authority/29UP,Tonbridge & Malling Borough Council,11/15/2023,0021038967/1,21038967, 685.66,Atlas Facilities Managment Limited ,01075900,,Gates / Security,Patrolling,B22LF000044017,210057188
http://statistics.data.gov.uk/id/local-authority/29UP,Tonbridge & Malling Borough Council,11/15/2023,0021038968/1,21038968, 246.71,Castle Water,01696500,,Water Charges (Metered),Haysden Country Park,B22LC000024001,
http://statistics.data.gov.uk/id/local-authority/29UP,Tonbridge & Malling Borough Council,11/15/2023,0021038969/1,21038969, 420.00,The Original Tree Surgeons Limited,01906200,219421521,Health & Safety - Trees,Countryside/Woodland Mgt,B22LG000044045,210057463
http://statistics.data.gov.uk/id/local-authority/29UP,Tonbridge & Malling Borough Council,11/15/2023,0022028243/3,22028243, 2400.00,Green Planning Studio,01923600,904489803,Application & Appeals,Development Management,A01AB000044194,
http://statistics.data.gov.uk/id/local-authority/29UP,Tonbridge & Malling Borough Council,11/15/2023,0022028244/1,22028244, 1267.91,Town & Country Housing Group,01385400,,Countywide DFG Project,Private Sector Housing Renewal,C03BD000044031,
http://statistics.data.gov.uk/id/local-authority/29UP,Tonbridge & Malling Borough Council,11/15/2023,0022028245/1,22028245, 162.00,Town & Country Housing Group,01385400,,Countywide DFG Project,Private Sector Housing Renewal,C03BD000044031,
http://statistics.data.gov.uk/id/local-authority/29UP,Tonbridge & Malling Borough Council,11/15/2023,0022028246/1,22028246, 9564.15,Town & Country Housing Group,01385400,,Countywide DFG Project,Private Sector Housing Renewal,C03BD000044031,
http://statistics.data.gov.uk/id/local-authority/29UP,Tonbridge & Malling Borough Council,11/15/2023,0022028247/1,22028247, 8840.00,Town & Country Housing Group,01385400,,Countywide DFG Project,Private Sector Housing Renewal,C03BD000044031,
http://statistics.data.gov.uk/id/local-authority/29UP,Tonbridge & Malling Borough Council,11/15/2023,0022028248/1,22028248, 5974.68,Town & Country Housing Group,01385400,,Countywide DFG Project,Private Sector Housing Renewal,C03BD000044031,
http://statistics.data.gov.uk/id/local-authority/29UP,Tonbridge & Malling Borough Council,11/15/2023,0022028249/1,22028249, 16729.08,Town & Country Housing Group,01385400,,Countywide DFG Project,Private Sector Housing Renewal,C03BD000044031,
http://statistics.data.gov.uk/id/local-authority/29UP,Tonbridge & Malling Borough Council,11/15/2023,0022028250/1,22028250, 2952.00,A1 Cleaning & Maintenance,01923800,765619396,Other Expenses,Housing Assistance,P03AD000009908,
http://statistics.data.gov.uk/id/local-authority/29UP,Tonbridge & Malling Borough Council,11/15/2023,0022028251/1,22028251, 1000.00,REDACTED PERSONAL DATA,01923900,376247472,Other Expenses,Housing Assistance,P03AD000009908,
http://statistics.data.gov.uk/id/local-authority/29UP,Tonbridge & Malling Borough Council,11/15/2023,0022028252/3,22028252, 404.50,British Gas,01148500,,Electricity,Homelessness,C01AAMAUN21002,
http://statistics.data.gov.uk/id/local-authority/29UP,Tonbridge & Malling Borough Council,11/15/2023,0022028252/4,22028252, 123.37,British Gas,01148500,,Electricity,Homelessness,C01AAMAUN21002,
http://statistics.data.gov.uk/id/local-authority/29UP,Tonbridge & Malling Borough Council,11/15/2023,0022028253/1,22028253, 735.00,Countrystyle Group,00835900,781981681,Collection of Card,Dry Recycling,H34SR000054008,
http://statistics.data.gov.uk/id/local-authority/29UP,Tonbridge & Malling Borough Council,11/15/2023,0022028254/1,22028254, 210.00,Imagink LTD,01513300,,Initial Furniture & Equipment,Anti-idling Campaign Project,P02EM000009906,220003406
http://statistics.data.gov.uk/id/local-authority/29UP,Tonbridge & Malling Borough Council,11/15/2023,0022028254/2,22028254, 300.00,Imagink LTD,01513300,,Initial Furniture & Equipment,Anti-idling Campaign Project,P02EM000009906,220003406
http://statistics.data.gov.uk/id/local-authority/29UP,Tonbridge & Malling Borough Council,11/15/2023,0022028255/3,22028255, 88.10,Language Line,00835100,,Professional Fees,Homelessness,C01AA000044001,
http://statistics.data.gov.uk/id/local-authority/29UP,Tonbridge & Malling Borough Council,11/15/2023,0022028256/3,22028256, 124.65,Language Line,00835100,,Professional Fees,Homelessness,C01AA000044001,
http://statistics.data.gov.uk/id/local-authority/29UP,Tonbridge & Malling Borough Council,11/15/2023,0022028257/1,22028257, 82.75,E.ON - Next,01790900,,Electricity,Homelessness,C01AATNPR21002,
http://statistics.data.gov.uk/id/local-authority/29UP,Tonbridge & Malling Borough Council,11/15/2023,0022028257/2,22028257, 10.00,E.ON - Next,01790900,,Electricity,Homelessness,C01AATNPR21002,
http://statistics.data.gov.uk/id/local-authority/29UP,Tonbridge & Malling Borough Council,11/15/2023,0022028258/1,22028258, 1872.00,Premier Property Providers,01785400,,Temporary Accommodation,Homelessness,C01AA000044051,
http://statistics.data.gov.uk/id/local-authority/29UP,Tonbridge & Malling Borough Council,11/15/2023,0022028259/1,22028259, 245.00,Countrystyle Group,00835900,781981681,Collection of Card,Dry Recycling,H34SR000054008,
http://statistics.data.gov.uk/id/local-authority/29UP,Tonbridge & Malling Borough Council,11/15/2023,0022028260/1,22028260, 75.62,E.ON - Next,01790900,,Electricity,Homelessness,C01AATNPR21002,
http://statistics.data.gov.uk/id/local-authority/29UP,Tonbridge & Malling Borough Council,11/15/2023,0022028261/1,22028261, 76.45,E.ON - Next,01790900,,Electricity,Homelessness,C01AATNPR21002,
http://statistics.data.gov.uk/id/local-authority/29UP,Tonbridge & Malling Borough Council,11/15/2023,0031019831/1,31019831, 716.83,PSR Lighting & Signs Ltd,01265400,986561173,Premises Repairs & Maintenance,Parking Off-Street,E10HA000020601,310043156
http://statistics.data.gov.uk/id/local-authority/29UP,Tonbridge & Malling Borough Council,11/15/2023,0031019831/2,31019831, 1168.00,PSR Lighting & Signs Ltd,01265400,986561173,Premises Repairs & Maintenance,Parking Off-Street,E10HA000020601,310043156
http://statistics.data.gov.uk/id/local-authority/29UP,Tonbridge & Malling Borough Council,11/15/2023,0031019832/1,31019832, 3.98,KelticLimited,01000400,,Uniforms,Parking Off-Street,E10HA000042002,310043166
http://statistics.data.gov.uk/id/local-authority/29UP,Tonbridge & Malling Borough Council,11/15/2023,0031019832/2,31019832, 5.10,KelticLimited,01000400,,Uniforms,Parking Off-Street,E10HA000042002,310043166
http://statistics.data.gov.uk/id/local-authority/29UP,Tonbridge & Malling Borough Council,11/15/2023,0031019832/3,31019832, 3.40,KelticLimited,01000400,,Uniforms,Parking On-Street,E10HD000042002,310043166
http://statistics.data.gov.uk/id/local-authority/29UP,Tonbridge & Malling Borough Council,11/15/2023,0031019832/4,31019832, 5.97,KelticLimited,01000400,,Uniforms,Parking On-Street,E10HD000042002,310043166
http://statistics.data.gov.uk/id/local-authority/29UP,Tonbridge & Malling Borough Council,11/15/2023,0031019833/3,31019833, 15.79,Amazon EU SARL,01738400,,Winter Maintenance,Parking Off-Street,E10HA000020701,
http://statistics.data.gov.uk/id/local-authority/29UP,Tonbridge & Malling Borough Council,11/15/2023,0031019834/1,31019834, 4310.47,Duke Contractors Ltd,00082900,790980095,Contract Payments,Car Park Imp Rolling Programme,P01AB000009904,310043097
http://statistics.data.gov.uk/id/local-authority/29UP,Tonbridge & Malling Borough Council,11/15/2023,0031019834/2,31019834, 79410.73,Duke Contractors Ltd,00082900,790980095,Contract Payments,Car Park Imp Rolling Programme,P01AB000009904,310043097
http://statistics.data.gov.uk/id/local-authority/29UP,Tonbridge & Malling Borough Council,11/15/2023,0031019835/1,31019835, 13.91,KCS Education/CSG Global Education Ltd,01897200,408845925,Winter Maintenance,Parking Off-Street,E10HA000020701,310043172
http://statistics.data.gov.uk/id/local-authority/29UP,Tonbridge & Malling Borough Council,11/15/2023,0031019838/1,31019838, 710.00,Archway Highway Services Ltd,01398000,,Premises Repairs & Maintenance,Parking On-Street,E10HD000020601,310043161
http://statistics.data.gov.uk/id/local-authority/29UP,Tonbridge & Malling Borough Council,11/15/2023,0031019839/1,31019839, 2968.90,G4S Cash Solutions ( UK ) Ltd,01398400,,Cash Collection,Parking Off-Street,E10HA000044007,
http://statistics.data.gov.uk/id/local-authority/29UP,Tonbridge & Malling Borough Council,11/15/2023,0032010549/3,32010549, 1432.61,The Oyster Partnership,01196400,,Temporary Staff,Planning Sals&Overheads,D01AJDJ0111300,
http://statistics.data.gov.uk/id/local-authority/29UP,Tonbridge & Malling Borough Council,11/15/2023,0032010550/3,32010550, 850.50,The Oyster Partnership,01196400,,Temporary Staff,Planning Sals&Overheads,D01AJDJ0111300,
http://statistics.data.gov.uk/id/local-authority/29UP,Tonbridge & Malling Borough Council,11/15/2023,0032010551/3,32010551, 1995.00,Vivid Resourcing,01773700,,Temporary Staff,Planning Sals&Overheads,D01AJDJ0111300,
http://statistics.data.gov.uk/id/local-authority/29UP,Tonbridge & Malling Borough Council,11/15/2023,0032010552/3,32010552, 1800.00,G2 Recruitment Solutions,01786000,,Temporary Staff,Planning Sals&Overheads,D01AJDJ0011300,
http://statistics.data.gov.uk/id/local-authority/29UP,Tonbridge & Malling Borough Council,11/15/2023,0032010553/3,32010553, 1630.13,Carrington West Limited,01844500,,Temporary Staff,Planning Sals&Overheads,D01AJDJ0111300,
http://statistics.data.gov.uk/id/local-authority/29UP,Tonbridge & Malling Borough Council,11/15/2023,0032010554/3,32010554, 1598.00,Carrington West Limited,01844500,,Temporary Staff,Planning Sals&Overheads,D01AJDJ0111300,
http://statistics.data.gov.uk/id/local-authority/29UP,Tonbridge & Malling Borough Council,11/15/2023,0032010555/1,32010555, 49650.00,West Malling Parish Council,00112700,,Payments,S106 - Commuted Sums,M04AD000001001,
http://statistics.data.gov.uk/id/local-authority/29UP,Tonbridge & Malling Borough Council,11/15/2023,0032010556/1,32010556, 1.95,KCS Education/CSG Global Education Ltd,01897200,408845925,Stationery,Planning Sals&Overheads,D01AJDJ0143003,320003570
http://statistics.data.gov.uk/id/local-authority/29UP,Tonbridge & Malling Borough Council,11/15/2023,0032010556/2,32010556, 44.95,KCS Education/CSG Global Education Ltd,01897200,408845925,Stationery,Planning Sals&Overheads,D01AJDJ0143003,320003570
http://statistics.data.gov.uk/id/local-authority/29UP,Tonbridge & Malling Borough Council,11/15/2023,0032010557/1,32010557, 4500.00,Robinson Escott Planning LLP,01653000,,Application & Appeals,Development Management,A01AB000044194,
http://statistics.data.gov.uk/id/local-authority/29UP,Tonbridge & Malling Borough Council,11/15/2023,0041036048/1,41036048, 49.44,Amazon EU SARL,01738400,,Stationery,Finance Sals&Overheads,D01AF000043003,410032506
http://statistics.data.gov.uk/id/local-authority/29UP,Tonbridge & Malling Borough Council,11/15/2023,0041036049/1,41036049, 1102.97,Morgan Hunt UK Ltd,01086900,,Temporary Staff,Finance Sals&Overheads,D01AFDF1111300,
http://statistics.data.gov.uk/id/local-authority/29UP,Tonbridge & Malling Borough Council,11/15/2023,0041036050/1,41036050, 2297.47,Rundle & Co Ltd,00087200,,Bailiffs Commission,Local Revenue & NNDR Collect,D41QA000044075,
http://statistics.data.gov.uk/id/local-authority/29UP,Tonbridge & Malling Borough Council,11/15/2023,0041036052/1,41036052, 46.67,Rundle & Co Ltd,00087200,,Bailiffs Commission,Local Revenue & NNDR Collect,D41QA000044075,
http://statistics.data.gov.uk/id/local-authority/29UP,Tonbridge & Malling Borough Council,11/15/2023,0041036054/1,41036054, 12.36,Amazon EU SARL,01738400,,Stationery,Finance Sals&Overheads,D01AF000043003,410032513
http://statistics.data.gov.uk/id/local-authority/29UP,Tonbridge & Malling Borough Council,11/15/2023,0041036056/1,41036056, 10000.00,Tonbridge Baptist Church,00401200,,Charitable / Voluntary Organis,Grants & Payments to Vol Orgn,D37PACV1947005,
http://statistics.data.gov.uk/id/local-authority/29UP,Tonbridge & Malling Borough Council,11/15/2023,0041036057/1,41036057, 50.00,King & Shaxson Treasury Solutions,01524000,,Professional Fees,Treasury Management,D43QT000044001,410032511
http://statistics.data.gov.uk/id/local-authority/29UP,Tonbridge & Malling Borough Council,11/15/2023,0041036063/1,41036063, 5.17,KCS - KCC,00054200,,Copy Charges,Multi Function Devices,D22GB000040125,
http://statistics.data.gov.uk/id/local-authority/29UP,Tonbridge & Malling Borough Council,11/15/2023,0041036063/2,41036063, 71.43,KCS - KCC,00054200,,Leasing Charges,Multi Function Devices,D22GB000044038,
http://statistics.data.gov.uk/id/local-authority/29UP,Tonbridge & Malling Borough Council,11/16/2023,0041036065/1,41036065, 1136.15,King & Shaxson Investments,01411100,,Professional Fees,Treasury Management,D43QT000044001,
http://statistics.data.gov.uk/id/local-authority/29UP,Tonbridge & Malling Borough Council,11/16/2023,0041036066/1,41036066, 15.00,BNP Paribas,01360500,,Bank Charges,Banking Arrangements,D43QK000044222,
http://statistics.data.gov.uk/id/local-authority/29UP,Tonbridge & Malling Borough Council,11/17/2023,0041036067/1,41036067, 8000.00,Tonbridge Baptist Church,00401200,,Charitable / Voluntary Organis,Grants & Payments to Vol Orgn,D37PA000047005,
http://statistics.data.gov.uk/id/local-authority/29UP,Tonbridge & Malling Borough Council,11/17/2023,0041036068/1,41036068, 15.00,BNP Paribas,01360500,,Bank Charges,Banking Arrangements,D43QK000044222,
http://statistics.data.gov.uk/id/local-authority/29UP,Tonbridge & Malling Borough Council,11/17/2023,0041036071/1,41036071, 70.14,Allpay Limited,01816500,,Giro / Swipe Card Charges,Local Revenue & NNDR Collect,D41QA000044083,
http://statistics.data.gov.uk/id/local-authority/29UP,Tonbridge & Malling Borough Council,11/17/2023,0041036072/1,41036072, 223.35,National Westminster Bank Plc,00069400,,Bank Charges,Banking Arrangements,D43QK000044222,
http://statistics.data.gov.uk/id/local-authority/29UP,Tonbridge & Malling Borough Council,11/20/2023,0041036073/1,41036073, 15.40,HSBC Bank Plc,01740800,,Bank Charges,Banking Arrangements,D43QK000044222,
http://statistics.data.gov.uk/id/local-authority/29UP,Tonbridge & Malling Borough Council,11/20/2023,0041036074/1,41036074, 15.20,HSBC Bank Plc,01740800,,Bank Charges,Banking Arrangements,D43QK000044222,
http://statistics.data.gov.uk/id/local-authority/29UP,Tonbridge & Malling Borough Council,11/20/2023,0041036075/1,41036075, 20.03,WorldPay Ltd,01402000,991280207,Credit Card Commission,Banking Arrangements,D43QK000044082,
http://statistics.data.gov.uk/id/local-authority/29UP,Tonbridge & Malling Borough Council,11/22/2023,0011047264/1,11047264, 480.00,G C Industrial Heating Services,00578100,,BRREP Servicing - Sadia Tea,Gibson Building East,M15KGP20001932,
http://statistics.data.gov.uk/id/local-authority/29UP,Tonbridge & Malling Borough Council,11/22/2023,0011047265/1,11047265, 237.07,Initial Washroom Hygiene,00048300,,Laundry - Roller Towels,Cleaning & Security,D21FD000042003,
http://statistics.data.gov.uk/id/local-authority/29UP,Tonbridge & Malling Borough Council,11/22/2023,0011047266/1,11047266, 7750.00,HazleMcCormack Young LLP,01793100,,BRREP General Maintenance,PC - General,M15JAP10001900,
http://statistics.data.gov.uk/id/local-authority/29UP,Tonbridge & Malling Borough Council,11/22/2023,0011047267/1,11047267, 1615.20,The Oyster Partnership,01196400,,Temporary Staff,Admin & Prop Sals&Overheads,D01AADA1111300,
http://statistics.data.gov.uk/id/local-authority/29UP,Tonbridge & Malling Borough Council,11/22/2023,0011047268/1,11047268, 100.00,BML Building Services Ltd,01505000,,BRREP Response - General,Tonbridge Castle Gatehouse,M15HKP50001997,
http://statistics.data.gov.uk/id/local-authority/29UP,Tonbridge & Malling Borough Council,11/22/2023,0011047269/3,11047269, 1387.50,G2 Recruitment Solutions,01786000,,Temporary Staff,Legal Sals&Overheads,D01ARDR0311300,
http://statistics.data.gov.uk/id/local-authority/29UP,Tonbridge & Malling Borough Council,11/22/2023,0011047270/3,11047270, 2284.95,Royal Mail,00086200,,Purchases,Mailsort Stock Account,K37BR000001002,
http://statistics.data.gov.uk/id/local-authority/29UP,Tonbridge & Malling Borough Council,11/22/2023,0011047270/4,11047270, 10.50,Royal Mail,00086200,,Purchases,Mailsort Stock Account,K37BR000001002,
http://statistics.data.gov.uk/id/local-authority/29UP,Tonbridge & Malling Borough Council,11/22/2023,0011047270/5,11047270, 5.34,Royal Mail,00086200,,Purchases,Mailsort Stock Account,K37BR000001002,
http://statistics.data.gov.uk/id/local-authority/29UP,Tonbridge & Malling Borough Council,11/22/2023,0011047271/3,11047271, 46.20,Royal Mail,00086200,,Postages - Business Reply,Electoral Registration,D31MF000045003,
http://statistics.data.gov.uk/id/local-authority/29UP,Tonbridge & Malling Borough Council,11/22/2023,0011047271/4,11047271, 16.10,Royal Mail,00086200,,Purchases,Business Reply Stock Account,K14AT000001002,
http://statistics.data.gov.uk/id/local-authority/29UP,Tonbridge & Malling Borough Council,11/22/2023,0011047272/3,11047272, 3080.51,KCS - KCC,00054200,,Electricity,Buildings,D21FEDD6021002,
http://statistics.data.gov.uk/id/local-authority/29UP,Tonbridge & Malling Borough Council,11/22/2023,0011047273/3,11047273, 2719.51,KCS - KCC,00054200,,Electricity,Buildings,D21FEDD5021002,
http://statistics.data.gov.uk/id/local-authority/29UP,Tonbridge & Malling Borough Council,11/22/2023,0011047274/3,11047274, 5077.03,KCS - KCC,00054200,,Electricity,Buildings,D21FEDD1021002,
http://statistics.data.gov.uk/id/local-authority/29UP,Tonbridge & Malling Borough Council,11/22/2023,0011047275/3,11047275, 1272.65,KCS - KCC,00054200,,Gas,Buildings,D21FEDD6021003,
http://statistics.data.gov.uk/id/local-authority/29UP,Tonbridge & Malling Borough Council,11/22/2023,0011047276/3,11047276, 481.43,KCS - KCC,00054200,,Gas,Buildings,D21FEDD1021003,
http://statistics.data.gov.uk/id/local-authority/29UP,Tonbridge & Malling Borough Council,11/22/2023,0011047277/3,11047277, 85.00,East Sussex Fire Ltd,01843100,,Repairs & Mtce to Buildings,Homelessness,C01AATNHS20101,
http://statistics.data.gov.uk/id/local-authority/29UP,Tonbridge & Malling Borough Council,11/22/2023,0011047278/3,11047278, 228.84,TMS Cleaning,01910500,,Maintenance - General,Tonbridge Castle Gatehouse,B40TG000040135,
http://statistics.data.gov.uk/id/local-authority/29UP,Tonbridge & Malling Borough Council,11/22/2023,0011047279/3,11047279, 562.50,Vivid Resourcing,01773700,,Temporary Staff,Legal Sals&Overheads,D01ARDR0011300,
http://statistics.data.gov.uk/id/local-authority/29UP,Tonbridge & Malling Borough Council,11/22/2023,0011047280/3,11047280, 21967.90,Cornerstones Barristers,01359100,,Other Planning Enq - Legal Cos,Legal Sals&Overheads,D01ARDR0044146,
http://statistics.data.gov.uk/id/local-authority/29UP,Tonbridge & Malling Borough Council,11/22/2023,0011047281/3,11047281, 1204.40,Sellick Partnership Group Limited,01336800,,Temporary Staff,Legal Sals&Overheads,D01ARDR0011300,
http://statistics.data.gov.uk/id/local-authority/29UP,Tonbridge & Malling Borough Council,11/22/2023,0011047282/1,11047282, 275.00,Phoenix Fireworks Ltd,01008600,,Miscellaneous Services,Cleaning & Security,D21FD000044015,110070553
http://statistics.data.gov.uk/id/local-authority/29UP,Tonbridge & Malling Borough Council,11/22/2023,0011047283/1,11047283, 167.97,Thomas Fattorini Ltd,00101500,,Other Expenses,Mayoral & Other Member Support,D29LX000048010,110070565
http://statistics.data.gov.uk/id/local-authority/29UP,Tonbridge & Malling Borough Council,11/22/2023,0011047283/2,11047283, 12.76,Thomas Fattorini Ltd,00101500,,Other Expenses,Mayoral & Other Member Support,D29LX000048010,110070565
http://statistics.data.gov.uk/id/local-authority/29UP,Tonbridge & Malling Borough Council,11/22/2023,0011047284/1,11047284, 711.11,Glaze-Tech Services Ltd,00779500,,BRREP Window/door repairs,Larkfield Leisure Centre,M15HDP20001919,110070549
http://statistics.data.gov.uk/id/local-authority/29UP,Tonbridge & Malling Borough Council,11/22/2023,0011047285/1,11047285, 284.32,Glaze-Tech Services Ltd,00779500,,BRREP Window/door repairs,Leis Man Poult Wood Golf Centr,M15HEP20001919,110070591
http://statistics.data.gov.uk/id/local-authority/29UP,Tonbridge & Malling Borough Council,11/22/2023,0011047286/1,11047286, 150.00,Baker Developments South East Ltd,01878900,446348183,BRREP Window/door repairs,Leis Man Poult Wood Golf Centr,M15HEP20001919,110070551
http://statistics.data.gov.uk/id/local-authority/29UP,Tonbridge & Malling Borough Council,11/22/2023,0011047287/1,11047287, 150.00,Baker Developments South East Ltd,01878900,446348183,BRREP Servicing-entrance doors,Leis Man Poult Wood Golf Centr,M15HEP20001927,110070496
http://statistics.data.gov.uk/id/local-authority/29UP,Tonbridge & Malling Borough Council,11/22/2023,0011047288/1,11047288, 150.00,Baker Developments South East Ltd,01878900,446348183,BRREP Window/door repairs,Leis Man Poult Wood Golf Centr,M15HEP20001919,110070497
http://statistics.data.gov.uk/id/local-authority/29UP,Tonbridge & Malling Borough Council,11/22/2023,0011047289/1,11047289, 620.00,Baker Developments South East Ltd,01878900,446348183,BRREP Response - General,Leis Man Poult Wood Golf Centr,M15HEP50001997,110070502
http://statistics.data.gov.uk/id/local-authority/29UP,Tonbridge & Malling Borough Council,11/22/2023,0011047290/1,11047290, 440.00,Baker Developments South East Ltd,01878900,446348183,BRREP Response - General,Leis Man Poult Wood Golf Centr,M15HEP50001997,110070503
http://statistics.data.gov.uk/id/local-authority/29UP,Tonbridge & Malling Borough Council,11/22/2023,0011047291/1,11047291, 180.00,Baker Developments South East Ltd,01878900,446348183,BRREP Window/door repairs,Leis Man Poult Wood Golf Centr,M15HEP20001919,110070505
http://statistics.data.gov.uk/id/local-authority/29UP,Tonbridge & Malling Borough Council,11/22/2023,0011047292/1,11047292, 450.00,Baker Developments South East Ltd,01878900,446348183,BRREP Car Park mntce,Leis Man Poult Wood Golf Centr,M15HEP20001953,110070501
http://statistics.data.gov.uk/id/local-authority/29UP,Tonbridge & Malling Borough Council,11/22/2023,0011047293/1,11047293, 820.00,G C Industrial Heating Services,00578100,,BRREP Response - General,Larkfield Leisure Centre,M15HDP50001997,110070618
http://statistics.data.gov.uk/id/local-authority/29UP,Tonbridge & Malling Borough Council,11/22/2023,0011047294/1,11047294, 57.58,Royal Mail,00086200,,Postages - Business Reply,Electoral Registration,D31MF000045003,
http://statistics.data.gov.uk/id/local-authority/29UP,Tonbridge & Malling Borough Council,11/22/2023,0011047295/1,11047295, 68.08,Royal Mail,00086200,,Postages - Business Reply,Electoral Registration,D31MF000045003,
http://statistics.data.gov.uk/id/local-authority/29UP,Tonbridge & Malling Borough Council,11/22/2023,0011047296/1,11047296, 570.00,G C Industrial Heating Services,00578100,,BRREP Response - General,Leis Man Poult Wood Golf Centr,M15HEP50001997,
http://statistics.data.gov.uk/id/local-authority/29UP,Tonbridge & Malling Borough Council,11/22/2023,0011047297/1,11047297, 415.70,Monitor Pest Control Ltd,01476700,,BRREP Rodent Control,Tonbridge Castle / CAB,M15KFP20001949,110070600
http://statistics.data.gov.uk/id/local-authority/29UP,Tonbridge & Malling Borough Council,11/22/2023,0011047298/1,11047298, 1217.80,Sellick Partnership Group Limited,01336800,,Temporary Staff,Legal Sals&Overheads,D01ARDR0011300,
http://statistics.data.gov.uk/id/local-authority/29UP,Tonbridge & Malling Borough Council,11/22/2023,0012008894/1,12008894, 109.00,Get It Repaired,01631300,287357752,Maintenance - Micros,Information Technology,D27KD000040140,410032517
http://statistics.data.gov.uk/id/local-authority/29UP,Tonbridge & Malling Borough Council,11/22/2023,0012008895/1,12008895, 49.95,CCS Media Ltd,00018000,,Purchases,Information Technology,D27KD000040101,410032520
http://statistics.data.gov.uk/id/local-authority/29UP,Tonbridge & Malling Borough Council,11/22/2023,0012008895/2,12008895, 2.00,CCS Media Ltd,00018000,,Delivery Expenses,Information Technology,D27KD000044069,410032520
http://statistics.data.gov.uk/id/local-authority/29UP,Tonbridge & Malling Borough Council,11/22/2023,0012008896/1,12008896, 3728.34,Camwey Technology,01627200,,Software Hire & Support,Information Technology,D27KD000044059,410032522
http://statistics.data.gov.uk/id/local-authority/29UP,Tonbridge & Malling Borough Council,11/22/2023,0012008896/2,12008896, 650.00,Camwey Technology,01627200,,Software Hire & Support,Information Technology,D27KD000044059,410032522
http://statistics.data.gov.uk/id/local-authority/29UP,Tonbridge & Malling Borough Council,11/22/2023,0012008897/1,12008897, 109.00,Get It Repaired,01631300,287357752,Maintenance - Micros,Information Technology,D27KD000040140,410032523
http://statistics.data.gov.uk/id/local-authority/29UP,Tonbridge & Malling Borough Council,11/22/2023,0012008898/1,12008898, 149.95,CCS Media Ltd,00018000,,Purchases,Information Technology,D27KD000040101,410032525
http://statistics.data.gov.uk/id/local-authority/29UP,Tonbridge & Malling Borough Council,11/22/2023,0012008898/2,12008898, 3.00,CCS Media Ltd,00018000,,Delivery Expenses,Information Technology,D27KD000044069,410032525
http://statistics.data.gov.uk/id/local-authority/29UP,Tonbridge & Malling Borough Council,11/22/2023,0012008899/1,12008899, 0.01,KCS - KCC,00054200,,Copy Charges,Multi Function Devices,D22GB000040125,
http://statistics.data.gov.uk/id/local-authority/29UP,Tonbridge & Malling Borough Council,11/22/2023,0012008900/1,12008900, 15898.94,Phoenix Software Ltd,00077400,755349015,Software Hire & Support,Information Technology,D27KD000044059,
http://statistics.data.gov.uk/id/local-authority/29UP,Tonbridge & Malling Borough Council,11/22/2023,0012008901/1,12008901, 542.00,Dataquest Ltd - CC Engineering Limited,01233100,438498209,Maintenance - Ancillary Equip,Information Technology,D27KD000040137,410032528
http://statistics.data.gov.uk/id/local-authority/29UP,Tonbridge & Malling Borough Council,11/22/2023,0015005831/1,15005831, 11.66,Amazon EU SARL,01738400,,Community Safety Initiatives,Community Safety,D30MA000048134,410032524
http://statistics.data.gov.uk/id/local-authority/29UP,Tonbridge & Malling Borough Council,11/22/2023,0015005831/2,15005831, 4.16,Amazon EU SARL,01738400,,Departmental Administration,Community Safety,D30MA000071500,410032524
http://statistics.data.gov.uk/id/local-authority/29UP,Tonbridge & Malling Borough Council,11/22/2023,0015005832/1,15005832, 150.00,REDACTED PERSONAL DATA,01590300,,Purchases,Planning Sals&Overheads,D01AJDJ0140101,
http://statistics.data.gov.uk/id/local-authority/29UP,Tonbridge & Malling Borough Council,11/22/2023,0021038970/1,21038970, 135.00,Mood Signs Limited,01595800,,Marketing,Events Development,B41TJ000044215,210057388
http://statistics.data.gov.uk/id/local-authority/29UP,Tonbridge & Malling Borough Council,11/22/2023,0021038971/1,21038971, 662.00,Matt Stephens,01802100,,Events Support,Events Development,B41TJ000044041,
http://statistics.data.gov.uk/id/local-authority/29UP,Tonbridge & Malling Borough Council,11/22/2023,0021038972/1,21038972, 256.00,Matt Stephens,01802100,,Events Support,Events Development,B41TJ000044041,
http://statistics.data.gov.uk/id/local-authority/29UP,Tonbridge & Malling Borough Council,11/22/2023,0021038973/1,21038973, 1550.00,Elite Stewarding and Security Solutions,01743600,,Events Support,Events Development,B41TJ000044041,
http://statistics.data.gov.uk/id/local-authority/29UP,Tonbridge & Malling Borough Council,11/22/2023,0021038974/1,21038974, 225.00,SWS Countryside & Landscape,01567200,,Health & Safety - Trees,Countryside/Woodland Mgt,B22LG000044045,210057471
http://statistics.data.gov.uk/id/local-authority/29UP,Tonbridge & Malling Borough Council,11/22/2023,0021038977/1,21038977, 338.33,KCC - L.A.S.E.R Commercial Services ,00184300,,Electricity,Leybourne Lakes Country Park,B22LK000021002,
http://statistics.data.gov.uk/id/local-authority/29UP,Tonbridge & Malling Borough Council,11/22/2023,0021038978/1,21038978, 688.33,KCC - L.A.S.E.R Commercial Services ,00184300,,Electricity,Leybourne Lakes Country Park,B22LK000021002,
http://statistics.data.gov.uk/id/local-authority/29UP,Tonbridge & Malling Borough Council,11/22/2023,0021038979/1,21038979, 775.88,KCC - L.A.S.E.R Commercial Services ,00184300,,Electricity,Leybourne Lakes Country Park,B22LK000021002,
http://statistics.data.gov.uk/id/local-authority/29UP,Tonbridge & Malling Borough Council,11/22/2023,0021038980/1,21038980, 1037.90,KCC - L.A.S.E.R Commercial Services ,00184300,,Electricity,Leybourne Lakes Country Park,B22LK000021002,
http://statistics.data.gov.uk/id/local-authority/29UP,Tonbridge & Malling Borough Council,11/22/2023,0021038981/1,21038981, 1121.82,KCC - L.A.S.E.R Commercial Services ,00184300,,Electricity,Leybourne Lakes Country Park,B22LK000021002,
http://statistics.data.gov.uk/id/local-authority/29UP,Tonbridge & Malling Borough Council,11/22/2023,0021038982/1,21038982, 1156.31,KCC - L.A.S.E.R Commercial Services ,00184300,,Electricity,Leybourne Lakes Country Park,B22LK000021002,
http://statistics.data.gov.uk/id/local-authority/29UP,Tonbridge & Malling Borough Council,11/22/2023,0021038983/1,21038983, 743.87,KCC - L.A.S.E.R Commercial Services ,00184300,,Electricity,Leybourne Lakes Country Park,B22LK000021002,
http://statistics.data.gov.uk/id/local-authority/29UP,Tonbridge & Malling Borough Council,11/22/2023,0021038986/1,21038986, 393.72,KCC - L.A.S.E.R Commercial Services ,00184300,,Electricity,Leybourne Lakes Country Park,B22LK000021002,
http://statistics.data.gov.uk/id/local-authority/29UP,Tonbridge & Malling Borough Council,11/22/2023,0021038991/1,21038991, 394.25,KCC - L.A.S.E.R Commercial Services ,00184300,,Electricity,Leybourne Lakes Country Park,B22LK000021002,
http://statistics.data.gov.uk/id/local-authority/29UP,Tonbridge & Malling Borough Council,11/22/2023,0021038993/1,21038993, 1144.84,KCC - L.A.S.E.R Commercial Services ,00184300,,Electricity,Leybourne Lakes Country Park,B22LK000021002,
http://statistics.data.gov.uk/id/local-authority/29UP,Tonbridge & Malling Borough Council,11/22/2023,0021038996/1,21038996, 76.66,B&Q/Screwfix Direct(TradeUKAccount),00141300,,Maintenance of Grounds,Open Spaces & Amenity Areas,B22LE000020402,
http://statistics.data.gov.uk/id/local-authority/29UP,Tonbridge & Malling Borough Council,11/22/2023,0021038997/1,21038997, 8.14,B&Q/Screwfix Direct(TradeUKAccount),00141300,,Maintenance of Grounds,Haysden Country Park,B22LC000020402,
http://statistics.data.gov.uk/id/local-authority/29UP,Tonbridge & Malling Borough Council,11/22/2023,0021038998/1,21038998, 285.00,Arnold & Court Ltd,01411300,,Maintenance of Grounds,Open Spaces & Amenity Areas,B22LE000020402,210057372
http://statistics.data.gov.uk/id/local-authority/29UP,Tonbridge & Malling Borough Council,11/22/2023,0021038999/1,21038999, 1712.00,Loxton Installations Ltd,01278800,,Initial Furniture & Equipment,Capital Renewals Leisure,P05KGBC0509906,210057426
http://statistics.data.gov.uk/id/local-authority/29UP,Tonbridge & Malling Borough Council,11/22/2023,0022028262/3,22028262, 1002.80,Lucy and Martin Recycling LTD,01694200,,Vehicle Licences,Dry Recycling,H34SR000030105,
http://statistics.data.gov.uk/id/local-authority/29UP,Tonbridge & Malling Borough Council,11/22/2023,0022028263/1,22028263, 9.64,REDACTED PERSONAL DATA,01111000,,Food Sampling,Food & Safety - Food Safety,H35SX000054011,
http://statistics.data.gov.uk/id/local-authority/29UP,Tonbridge & Malling Borough Council,11/22/2023,0022028264/3,22028264, 2129.40,Ward Security LTD,01490000,,Dog Warden,Street Scene,H23SD000044100,
http://statistics.data.gov.uk/id/local-authority/29UP,Tonbridge & Malling Borough Council,11/22/2023,0022028265/3,22028265, 14749.68,Urbaser LTD,01718800,,Contract Payments,Refuse Collection,H20SA000054001,
http://statistics.data.gov.uk/id/local-authority/29UP,Tonbridge & Malling Borough Council,11/22/2023,0022028265/4,22028265, 16924.10,Urbaser LTD,01718800,,Contract Payments,Street Scene,H23SD000054001,
http://statistics.data.gov.uk/id/local-authority/29UP,Tonbridge & Malling Borough Council,11/22/2023,0022028265/5,22028265, 467.40,Urbaser LTD,01718800,,Contract Payments,Dry Recycling,H34SR000054001,
http://statistics.data.gov.uk/id/local-authority/29UP,Tonbridge & Malling Borough Council,11/22/2023,0022028265/7,22028265, 14988.59,Urbaser LTD,01718800,,Contract Payments,Garden Waste Recycling,H34ST000054001,
http://statistics.data.gov.uk/id/local-authority/29UP,Tonbridge & Malling Borough Council,11/22/2023,0022028266/10,22028266, 30.43,Urbaser LTD,01718800,,Dog Bin Emptying,Leybourne Lakes Country Park,B22LK000044012,
http://statistics.data.gov.uk/id/local-authority/29UP,Tonbridge & Malling Borough Council,11/22/2023,0022028266/11,22028266, 70.14,Urbaser LTD,01718800,,Maintenance of Grounds,Grounds,D21FF000020402,
http://statistics.data.gov.uk/id/local-authority/29UP,Tonbridge & Malling Borough Council,11/22/2023,0022028266/12,22028266, 214.52,Urbaser LTD,01718800,,Maintenance of Grounds,Parking Off-Street,E10HA000020402,
http://statistics.data.gov.uk/id/local-authority/29UP,Tonbridge & Malling Borough Council,11/22/2023,0022028266/13,22028266, 5458.43,Urbaser LTD,01718800,,Maintenance of Grounds,Parking Off-Street,E10HAE00120402,
http://statistics.data.gov.uk/id/local-authority/29UP,Tonbridge & Malling Borough Council,11/22/2023,0022028266/14,22028266, 587.98,Urbaser LTD,01718800,,Maintenance of Grounds,Parking Off-Street,E10HAE00220402,
http://statistics.data.gov.uk/id/local-authority/29UP,Tonbridge & Malling Borough Council,11/22/2023,0022028266/15,22028266, 367.83,Urbaser LTD,01718800,,Maintenance of Grounds,Parking Off-Street,E10HAE00320402,
http://statistics.data.gov.uk/id/local-authority/29UP,Tonbridge & Malling Borough Council,11/22/2023,0022028266/16,22028266, 1923.76,Urbaser LTD,01718800,,Maintenance of Grounds,Parking Off-Street,E10HAE00420402,
http://statistics.data.gov.uk/id/local-authority/29UP,Tonbridge & Malling Borough Council,11/22/2023,0022028266/17,22028266, 319.68,Urbaser LTD,01718800,,Maintenance of Grounds,Parking Off-Street,E10HAE00520402,
http://statistics.data.gov.uk/id/local-authority/29UP,Tonbridge & Malling Borough Council,11/22/2023,0022028266/18,22028266, 1192.31,Urbaser LTD,01718800,,Maintenance of Grounds,Parking Off-Street,E10HAE00620402,
http://statistics.data.gov.uk/id/local-authority/29UP,Tonbridge & Malling Borough Council,11/22/2023,0022028266/19,22028266, 10.05,Urbaser LTD,01718800,,Maintenance of Grounds,Parking Off-Street,E10HAE00820402,
http://statistics.data.gov.uk/id/local-authority/29UP,Tonbridge & Malling Borough Council,11/22/2023,0022028266/20,22028266, 9.92,Urbaser LTD,01718800,,Maintenance of Grounds,Parking Off-Street,E10HAE00920402,
http://statistics.data.gov.uk/id/local-authority/29UP,Tonbridge & Malling Borough Council,11/22/2023,0022028266/21,22028266, 23.56,Urbaser LTD,01718800,,Maintenance of Grounds,Parking Off-Street,E10HAE01020402,
http://statistics.data.gov.uk/id/local-authority/29UP,Tonbridge & Malling Borough Council,11/22/2023,0022028266/22,22028266, 111.95,Urbaser LTD,01718800,,Maintenance of Grounds,Parking Off-Street,E10HAE01120402,
http://statistics.data.gov.uk/id/local-authority/29UP,Tonbridge & Malling Borough Council,11/22/2023,0022028266/23,22028266, 70.44,Urbaser LTD,01718800,,Maintenance of Grounds,Parking Off-Street,E10HAE01220402,
http://statistics.data.gov.uk/id/local-authority/29UP,Tonbridge & Malling Borough Council,11/22/2023,0022028266/24,22028266, 1335.68,Urbaser LTD,01718800,,Maintenance of Grounds,Parking Off-Street,E10HAE01320402,
http://statistics.data.gov.uk/id/local-authority/29UP,Tonbridge & Malling Borough Council,11/22/2023,0022028266/25,22028266, 101.58,Urbaser LTD,01718800,,Maintenance of Grounds,Parking Off-Street,E10HAE01420402,
http://statistics.data.gov.uk/id/local-authority/29UP,Tonbridge & Malling Borough Council,11/22/2023,0022028266/26,22028266, 313.05,Urbaser LTD,01718800,,Maintenance of Grounds,Parking Off-Street,E10HAE01520402,
http://statistics.data.gov.uk/id/local-authority/29UP,Tonbridge & Malling Borough Council,11/22/2023,0022028266/27,22028266, 336.69,Urbaser LTD,01718800,,Maintenance of Grounds,Parking Off-Street,E10HAE01620402,
http://statistics.data.gov.uk/id/local-authority/29UP,Tonbridge & Malling Borough Council,11/22/2023,0022028266/28,22028266, 993.96,Urbaser LTD,01718800,,Maintenance of Grounds,Parking Off-Street,E10HAE01720402,
http://statistics.data.gov.uk/id/local-authority/29UP,Tonbridge & Malling Borough Council,11/22/2023,0022028266/29,22028266, 285.29,Urbaser LTD,01718800,,Maintenance of Grounds,Parking Off-Street,E10HAE01920402,
http://statistics.data.gov.uk/id/local-authority/29UP,Tonbridge & Malling Borough Council,11/22/2023,0022028266/3,22028266, 451.17,Urbaser LTD,01718800,,Maintenance of Grounds,Sports Grounds,B13ET000020402,
http://statistics.data.gov.uk/id/local-authority/29UP,Tonbridge & Malling Borough Council,11/22/2023,0022028266/30,22028266, 626.69,Urbaser LTD,01718800,,Maintenance of Grounds,Parking Off-Street,E10HAE02020402,
http://statistics.data.gov.uk/id/local-authority/29UP,Tonbridge & Malling Borough Council,11/22/2023,0022028266/31,22028266, 21.76,Urbaser LTD,01718800,,Maintenance of Grounds,Parking Off-Street,E10HAE02120402,
http://statistics.data.gov.uk/id/local-authority/29UP,Tonbridge & Malling Borough Council,11/22/2023,0022028266/32,22028266, 143.26,Urbaser LTD,01718800,,Maintenance of Grounds,Parking Off-Street,E10HAE02220402,
http://statistics.data.gov.uk/id/local-authority/29UP,Tonbridge & Malling Borough Council,11/22/2023,0022028266/33,22028266, 1204.31,Urbaser LTD,01718800,,Maintenance of Grounds,Parking Off-Street,E10HAE02320402,
http://statistics.data.gov.uk/id/local-authority/29UP,Tonbridge & Malling Borough Council,11/22/2023,0022028266/34,22028266, 3.11,Urbaser LTD,01718800,,Maintenance of Grounds,Parking Off-Street,E10HAE02720402,
http://statistics.data.gov.uk/id/local-authority/29UP,Tonbridge & Malling Borough Council,11/22/2023,0022028266/35,22028266, 437.60,Urbaser LTD,01718800,,Maintenance of Grounds,Parking Off-Street,E10HAE02820402,
http://statistics.data.gov.uk/id/local-authority/29UP,Tonbridge & Malling Borough Council,11/22/2023,0022028266/36,22028266, 7.88,Urbaser LTD,01718800,,Maintenance of Grounds,Parking Off-Street,E10HAE02920402,
http://statistics.data.gov.uk/id/local-authority/29UP,Tonbridge & Malling Borough Council,11/22/2023,0022028266/37,22028266, 46.38,Urbaser LTD,01718800,,Maintenance of Grounds,Parking Off-Street,E10HAE03020402,
http://statistics.data.gov.uk/id/local-authority/29UP,Tonbridge & Malling Borough Council,11/22/2023,0022028266/38,22028266, 39.46,Urbaser LTD,01718800,,Maintenance of Grounds,Parking Off-Street,E10HAE03120402,
http://statistics.data.gov.uk/id/local-authority/29UP,Tonbridge & Malling Borough Council,11/22/2023,0022028266/39,22028266, 836.71,Urbaser LTD,01718800,,Maintenance of Grounds,Parking Off-Street,E10HAE04020402,
http://statistics.data.gov.uk/id/local-authority/29UP,Tonbridge & Malling Borough Council,11/22/2023,0022028266/4,22028266, 96.02,Urbaser LTD,01718800,,Maintenance of Grounds,Poult Wood Golf Centre,B21KE000020402,
http://statistics.data.gov.uk/id/local-authority/29UP,Tonbridge & Malling Borough Council,11/22/2023,0022028266/40,22028266, 580.32,Urbaser LTD,01718800,,Maintenance of Grounds,Parking Off-Street,E10HAE04220402,
http://statistics.data.gov.uk/id/local-authority/29UP,Tonbridge & Malling Borough Council,11/22/2023,0022028266/41,22028266, 1665.68,Urbaser LTD,01718800,,Maintenance of Grounds,Parking Off-Street,E10HAE04520402,
http://statistics.data.gov.uk/id/local-authority/29UP,Tonbridge & Malling Borough Council,11/22/2023,0022028266/42,22028266, 107939.06,Urbaser LTD,01718800,,Contract Payments,Refuse Collection,H20SA000054001,
http://statistics.data.gov.uk/id/local-authority/29UP,Tonbridge & Malling Borough Council,11/22/2023,0022028266/43,22028266, 1101.97,Urbaser LTD,01718800,,Responsible Dog Ownership,Street Scene,H23SD000044050,
http://statistics.data.gov.uk/id/local-authority/29UP,Tonbridge & Malling Borough Council,11/22/2023,0022028266/44,22028266, 65916.68,Urbaser LTD,01718800,,Contract Payments,Street Scene,H23SD000054001,
http://statistics.data.gov.uk/id/local-authority/29UP,Tonbridge & Malling Borough Council,11/22/2023,0022028266/45,22028266, 414.98,Urbaser LTD,01718800,,General Maintenance,Dry Recycling,H34SR000020301,
http://statistics.data.gov.uk/id/local-authority/29UP,Tonbridge & Malling Borough Council,11/22/2023,0022028266/46,22028266, 98065.11,Urbaser LTD,01718800,,Contract Payments,Dry Recycling,H34SR000054001,
http://statistics.data.gov.uk/id/local-authority/29UP,Tonbridge & Malling Borough Council,11/22/2023,0022028266/47,22028266, 38371.84,Urbaser LTD,01718800,,Contract Payments,Food Recycling,H34SS000054001,
http://statistics.data.gov.uk/id/local-authority/29UP,Tonbridge & Malling Borough Council,11/22/2023,0022028266/48,22028266, 20834.10,Urbaser LTD,01718800,,Contract Payments,Garden Waste Recycling,H34ST000054001,
http://statistics.data.gov.uk/id/local-authority/29UP,Tonbridge & Malling Borough Council,11/22/2023,0022028266/5,22028266, 39.62,Urbaser LTD,01718800,,Maintenance of Grounds,Haysden Country Park,B22LC000020402,
http://statistics.data.gov.uk/id/local-authority/29UP,Tonbridge & Malling Borough Council,11/22/2023,0022028266/6,22028266, 30.43,Urbaser LTD,01718800,,Dog Bin Emptying,Haysden Country Park,B22LC000044012,
http://statistics.data.gov.uk/id/local-authority/29UP,Tonbridge & Malling Borough Council,11/22/2023,0022028266/7,22028266, 862.61,Urbaser LTD,01718800,,Maintenance of Grounds,Open Spaces & Amenity Areas,B22LE000020402,
http://statistics.data.gov.uk/id/local-authority/29UP,Tonbridge & Malling Borough Council,11/22/2023,0022028266/8,22028266, 16.22,Urbaser LTD,01718800,,Dog Bin Emptying,Open Spaces & Amenity Areas,B22LE000044012,
http://statistics.data.gov.uk/id/local-authority/29UP,Tonbridge & Malling Borough Council,11/22/2023,0022028266/9,22028266, 28.00,Urbaser LTD,01718800,,Maintenance of Grounds,Countryside/Woodland Mgt,B22LG000020402,
http://statistics.data.gov.uk/id/local-authority/29UP,Tonbridge & Malling Borough Council,11/22/2023,0022028267/3,22028267, 15665.39,Urbaser LTD,01718800,,Contract Payments,Refuse Collection,H20SA000054001,
http://statistics.data.gov.uk/id/local-authority/29UP,Tonbridge & Malling Borough Council,11/22/2023,0022028267/4,22028267, 23228.08,Urbaser LTD,01718800,,Contract Payments,Street Scene,H23SD000054001,
http://statistics.data.gov.uk/id/local-authority/29UP,Tonbridge & Malling Borough Council,11/22/2023,0022028267/5,22028267, 923.01,Urbaser LTD,01718800,,Contract Payments,Dry Recycling,H34SR000054001,
http://statistics.data.gov.uk/id/local-authority/29UP,Tonbridge & Malling Borough Council,11/22/2023,0022028267/6,22028267, 14768.80,Urbaser LTD,01718800,,Contract Payments,Dry Recycling,H34SR000054001,
http://statistics.data.gov.uk/id/local-authority/29UP,Tonbridge & Malling Borough Council,11/22/2023,0022028268/1,22028268, 2282.00,DM Marketing Communications,01742000,,Purchases,Food Recycling,H34SS000040101,320003568
http://statistics.data.gov.uk/id/local-authority/29UP,Tonbridge & Malling Borough Council,11/22/2023,0022028268/2,22028268, 1168.00,DM Marketing Communications,01742000,,Purchases,Food Recycling,H34SS000040101,320003568
http://statistics.data.gov.uk/id/local-authority/29UP,Tonbridge & Malling Borough Council,11/22/2023,0022028269/1,22028269, 4516.00,Premier Property Providers,01785400,,Temporary Accommodation,Homelessness,C01AA000044051,
http://statistics.data.gov.uk/id/local-authority/29UP,Tonbridge & Malling Borough Council,11/22/2023,0022028270/1,22028270, 1057.39,Town & Country Housing Group,01385400,,Other Expenses,Disabled Facilities Grant Mand,P03AC000009908,
http://statistics.data.gov.uk/id/local-authority/29UP,Tonbridge & Malling Borough Council,11/22/2023,0022028271/1,22028271, 6654.41,Accessible Solutions LTD,01539700,,Other Expenses,Disabled Facilities Grant Mand,P03AC000009908,
http://statistics.data.gov.uk/id/local-authority/29UP,Tonbridge & Malling Borough Council,11/22/2023,0022028272/1,22028272, 10428.00,Acorn Maintenance Services,01036000,,Other Expenses,Disabled Facilities Grant Mand,P03AC000009908,
http://statistics.data.gov.uk/id/local-authority/29UP,Tonbridge & Malling Borough Council,11/22/2023,0022028273/1,22028273, 1810.14,Town & Country Housing Group,01385400,,Other Expenses,Disabled Facilities Grant Mand,P03AC000009908,
http://statistics.data.gov.uk/id/local-authority/29UP,Tonbridge & Malling Borough Council,11/22/2023,0022028274/1,22028274, 1038.00,Acorn Maintenance Services,01036000,,Other Expenses,Disabled Facilities Grant Mand,P03AC000009908,
http://statistics.data.gov.uk/id/local-authority/29UP,Tonbridge & Malling Borough Council,11/22/2023,0022028275/1,22028275, 68.54,British Telecommunications Plc,00012800,,Purchases,Homelessness,C01AATNPR40101,
http://statistics.data.gov.uk/id/local-authority/29UP,Tonbridge & Malling Borough Council,11/22/2023,0031019842/3,31019842, 4891.80,G4S Cash Solutions ( UK ) Ltd,01398400,,Cash Collection,Parking Off-Street,E10HA000044007,
http://statistics.data.gov.uk/id/local-authority/29UP,Tonbridge & Malling Borough Council,11/22/2023,0031019843/3,31019843, 4733.70,G4S Cash Solutions ( UK ) Ltd,01398400,,Cash Collection,Parking Off-Street,E10HA000044007,
http://statistics.data.gov.uk/id/local-authority/29UP,Tonbridge & Malling Borough Council,11/22/2023,0031019844/3,31019844, 5235.90,G4S Cash Solutions ( UK ) Ltd,01398400,,Cash Collection,Parking Off-Street,E10HA000044007,
http://statistics.data.gov.uk/id/local-authority/29UP,Tonbridge & Malling Borough Council,11/22/2023,0031019845/3,31019845, 4975.50,G4S Cash Solutions ( UK ) Ltd,01398400,,Cash Collection,Parking Off-Street,E10HA000044007,
http://statistics.data.gov.uk/id/local-authority/29UP,Tonbridge & Malling Borough Council,11/22/2023,0031019846/3,31019846, 4162.50,G4S Cash Solutions ( UK ) Ltd,01398400,,Cash Collection,Parking Off-Street,E10HA000044007,
http://statistics.data.gov.uk/id/local-authority/29UP,Tonbridge & Malling Borough Council,11/22/2023,0031019847/3,31019847, 4027.50,G4S Cash Solutions ( UK ) Ltd,01398400,,Cash Collection,Parking Off-Street,E10HA000044007,
http://statistics.data.gov.uk/id/local-authority/29UP,Tonbridge & Malling Borough Council,11/22/2023,0031019848/1,31019848, 849.80,SKF Contractors Ltd,00092000,621768141,Repair & Mtce of Fixed Plant,Boro Highways & Emergency Oper,E01AA000020501,310043164
http://statistics.data.gov.uk/id/local-authority/29UP,Tonbridge & Malling Borough Council,11/22/2023,0031019850/1,31019850, 990.00,Royal British Legion Industries Ltd,00139700,,Maintenance - General,Parking Off-Street,E10HA000040135,310043173
http://statistics.data.gov.uk/id/local-authority/29UP,Tonbridge & Malling Borough Council,11/22/2023,0031019851/1,31019851, 834.20,Royal British Legion Industries Ltd,00139700,,Transport Repair & Maintenance,Parking On-Street,E10HD000030103,310043171
http://statistics.data.gov.uk/id/local-authority/29UP,Tonbridge & Malling Borough Council,11/22/2023,0031019852/1,31019852, 489.00,Mood Signs Limited,01595800,,Other Expenses,Car Park Imp Rolling Programme,P01AB000009908,310043168
http://statistics.data.gov.uk/id/local-authority/29UP,Tonbridge & Malling Borough Council,11/22/2023,0031019853/1,31019853, 296.00,Mood Signs Limited,01595800,,Purchases,Boro Highways & Emergency Oper,E01AA000040101,310043153
http://statistics.data.gov.uk/id/local-authority/29UP,Tonbridge & Malling Borough Council,11/22/2023,0031019854/3,31019854, 195.48,British Telecommunications Plc,00012800,,CCTV Monitoring Station,Security Services Management,E09GA000051020,
http://statistics.data.gov.uk/id/local-authority/29UP,Tonbridge & Malling Borough Council,11/22/2023,0031019855/3,31019855, 3.33,B&Q/Screwfix Direct(TradeUKAccount),00141300,,Tonbridge Christmas Lighting,Eco Dev & Reg Ton Chris Light,D52TF000047015,
http://statistics.data.gov.uk/id/local-authority/29UP,Tonbridge & Malling Borough Council,11/22/2023,0031019856/1,31019856, 65.09,Npower Ltd,01675800,,Electricity,Parking Off-Street,E10HA000021002,
http://statistics.data.gov.uk/id/local-authority/29UP,Tonbridge & Malling Borough Council,11/22/2023,0031019857/1,31019857, 110.83,Npower Ltd,01675800,,Electricity,Parking Off-Street,E10HA000021002,
http://statistics.data.gov.uk/id/local-authority/29UP,Tonbridge & Malling Borough Council,11/22/2023,0031019858/1,31019858, 292.08,Npower Ltd,01675800,,Electricity,Parking Off-Street,E10HA000021002,
http://statistics.data.gov.uk/id/local-authority/29UP,Tonbridge & Malling Borough Council,11/22/2023,0031019860/1,31019860, 81.05,Shell U.K. Oil Products Limited,01673300,,"Petrol, Diesel & Oil",Patrolling,B22LF000030106,
http://statistics.data.gov.uk/id/local-authority/29UP,Tonbridge & Malling Borough Council,11/22/2023,0031019860/2,31019860, 141.72,Shell U.K. Oil Products Limited,01673300,,"Petrol, Diesel & Oil",Parking Off-Street,E10HA000030106,
http://statistics.data.gov.uk/id/local-authority/29UP,Tonbridge & Malling Borough Council,11/22/2023,0031019860/3,31019860, 141.72,Shell U.K. Oil Products Limited,01673300,,"Petrol, Diesel & Oil",Parking On-Street,E10HD000030106,
http://statistics.data.gov.uk/id/local-authority/29UP,Tonbridge & Malling Borough Council,11/22/2023,0031019861/1,31019861, 4005.00,G4S Cash Solutions ( UK ) Ltd,01398400,,Cash Collection,Parking Off-Street,E10HA000044007,
http://statistics.data.gov.uk/id/local-authority/29UP,Tonbridge & Malling Borough Council,11/22/2023,0031019862/1,31019862, 307.45,CDER Group,01773300,,Adjudication & Enforcement Ser,Parking Off-Street,E10HA000044230,
http://statistics.data.gov.uk/id/local-authority/29UP,Tonbridge & Malling Borough Council,11/22/2023,0032010558/3,32010558, 2251.50,Vivid Resourcing,01773700,,Temporary Staff,Planning Sals&Overheads,D01AJDJ0111300,
http://statistics.data.gov.uk/id/local-authority/29UP,Tonbridge & Malling Borough Council,11/22/2023,0032010559/3,32010559, 1695.21,The Oyster Partnership,01196400,,Temporary Staff,Planning Sals&Overheads,D01AJDJ0111300,
http://statistics.data.gov.uk/id/local-authority/29UP,Tonbridge & Malling Borough Council,11/22/2023,0032010560/3,32010560, 1554.00,The Oyster Partnership,01196400,,Temporary Staff,Planning Sals&Overheads,D01AJDJ0111300,
http://statistics.data.gov.uk/id/local-authority/29UP,Tonbridge & Malling Borough Council,11/22/2023,0032010561/3,32010561, 782.00,Hays Specialist Recruitment Limited,01879200,773695871,Temporary Staff,Planning Sals&Overheads,D01AJDJ0311300,
http://statistics.data.gov.uk/id/local-authority/29UP,Tonbridge & Malling Borough Council,11/22/2023,0032010562/3,32010562, 1943.00,Hays Specialist Recruitment Limited,01879200,773695871,Temporary Staff,Planning Sals&Overheads,D01AJDJ0111300,
http://statistics.data.gov.uk/id/local-authority/29UP,Tonbridge & Malling Borough Council,11/22/2023,0032010563/3,32010563, 4741.05,Tetlow King Planning Ltd,01290900,,Application & Appeals,Development Management,A01AB000044194,
http://statistics.data.gov.uk/id/local-authority/29UP,Tonbridge & Malling Borough Council,11/22/2023,0032010564/1,32010564, 200.00,P K Saunders Electrical Ltd,01900800,,Competent Persons Schemes,Building Control,A01AD000048116,
http://statistics.data.gov.uk/id/local-authority/29UP,Tonbridge & Malling Borough Council,11/22/2023,0032010565/3,32010565, 2250.00,G2 Recruitment Solutions,01786000,,Temporary Staff,Planning Sals&Overheads,D01AJDJ0011300,
http://statistics.data.gov.uk/id/local-authority/29UP,Tonbridge & Malling Borough Council,11/22/2023,0032010566/3,32010566, 1679.29,Carrington West Limited,01844500,,Temporary Staff,Planning Sals&Overheads,D01AJDJ0111300,
http://statistics.data.gov.uk/id/local-authority/29UP,Tonbridge & Malling Borough Council,11/22/2023,0032010567/3,32010567, 1914.75,Carrington West Limited,01844500,,Temporary Staff,Planning Sals&Overheads,D01AJDJ0111300,
http://statistics.data.gov.uk/id/local-authority/29UP,Tonbridge & Malling Borough Council,11/22/2023,0032010568/3,32010568, 1863.00,Carrington West Limited,01844500,,Temporary Staff,Planning Sals&Overheads,D01AJDJ0111300,
http://statistics.data.gov.uk/id/local-authority/29UP,Tonbridge & Malling Borough Council,11/22/2023,0032010569/3,32010569, 1707.75,Carrington West Limited,01844500,,Temporary Staff,Planning Sals&Overheads,D01AJDJ0111300,
http://statistics.data.gov.uk/id/local-authority/29UP,Tonbridge & Malling Borough Council,11/22/2023,0032010570/3,32010570, 1504.00,Carrington West Limited,01844500,,Temporary Staff,Planning Sals&Overheads,D01AJDJ0111300,
http://statistics.data.gov.uk/id/local-authority/29UP,Tonbridge & Malling Borough Council,11/22/2023,0032010571/3,32010571, 1500.75,Carrington West Limited,01844500,,Temporary Staff,Planning Sals&Overheads,D01AJDJ0111300,
http://statistics.data.gov.uk/id/local-authority/29UP,Tonbridge & Malling Borough Council,11/22/2023,0032010572/1,32010572, 15000.00,Wouldham Parish Council,00114700,,Payments,S106 - Commuted Sums,M04AD000001001,
http://statistics.data.gov.uk/id/local-authority/29UP,Tonbridge & Malling Borough Council,11/22/2023,0032010573/1,32010573, 2200.00,Robinson Escott Planning LLP,01653000,,Application & Appeals,Development Management,A01AB000044194,
http://statistics.data.gov.uk/id/local-authority/29UP,Tonbridge & Malling Borough Council,11/22/2023,0041036077/3,41036077, 1102.97,Morgan Hunt UK Ltd,01086900,,Temporary Staff,Finance Sals&Overheads,D01AFDF1111300,
http://statistics.data.gov.uk/id/local-authority/29UP,Tonbridge & Malling Borough Council,11/22/2023,0041036078/3,41036078, 3246.03,Maidstone Borough Council,01173700,,Bailiffs Commission,Local Revenue & NNDR Collect,D41QA000044075,
http://statistics.data.gov.uk/id/local-authority/29UP,Tonbridge & Malling Borough Council,11/22/2023,0041036079/3,41036079, 67.17,Maidstone Borough Council,01173700,,Bailiffs Commission,Local Revenue & NNDR Collect,D41QA000044075,
http://statistics.data.gov.uk/id/local-authority/29UP,Tonbridge & Malling Borough Council,11/22/2023,0041036080/3,41036080, 964.17,Rundle & Co Ltd,00087200,,Bailiffs Commission,Local Revenue & NNDR Collect,D41QA000044075,
http://statistics.data.gov.uk/id/local-authority/29UP,Tonbridge & Malling Borough Council,11/22/2023,0041036081/3,41036081, 101.24,Rundle & Co Ltd,00087200,,Bailiffs Commission,Local Revenue & NNDR Collect,D41QA000044075,
http://statistics.data.gov.uk/id/local-authority/29UP,Tonbridge & Malling Borough Council,11/22/2023,0041036088/1,41036088, 2561.00,H.M. Revenue & Customs,00048400,,Levy Payment,Apprenticeship Scheme,D10DE000013700,
http://statistics.data.gov.uk/id/local-authority/29UP,Tonbridge & Malling Borough Council,11/22/2023,0041036088/2,41036088, 1.00,H.M. Revenue & Customs,00048400,,Levy Payment,Apprenticeship Scheme,D10DE000013700,
http://statistics.data.gov.uk/id/local-authority/29UP,Tonbridge & Malling Borough Council,11/22/2023,0051008868/1,51008868, 18.00,Commercial Services Kent Ltd,01655800,,Criminal Records Bureau Checks,Recruitment Expenses,D10DADF0513180,510010658
http://statistics.data.gov.uk/id/local-authority/29UP,Tonbridge & Malling Borough Council,11/22/2023,0051008868/2,51008868, 7.50,Commercial Services Kent Ltd,01655800,,Criminal Records Bureau Checks,Recruitment Expenses,D10DADF0513180,510010658
http://statistics.data.gov.uk/id/local-authority/29UP,Tonbridge & Malling Borough Council,11/23/2023,0041036095/1,41036095, 58203.13,Wouldham Parish Council,00114700,,Payments,S106 - Commuted Sums,M04AD000001001,
http://statistics.data.gov.uk/id/local-authority/29UP,Tonbridge & Malling Borough Council,11/28/2023,0041036101/1,41036101, 15.00,BNP Paribas,01360500,,Bank Charges,Banking Arrangements,D43QK000044222,
http://statistics.data.gov.uk/id/local-authority/29UP,Tonbridge & Malling Borough Council,11/29/2023,0011047299/1,11047299, 120.95,White Ribbon UK,01704200,,Community Safety Initiatives,Community Safety,D30MA000048134,110070624
http://statistics.data.gov.uk/id/local-authority/29UP,Tonbridge & Malling Borough Council,11/29/2023,0011047300/1,11047300, 133.80,Premier Paper Group,01421800,,Purchases - Paper,Printing,D22GA000040102,
http://statistics.data.gov.uk/id/local-authority/29UP,Tonbridge & Malling Borough Council,11/29/2023,0011047301/1,11047301, 1372.92,The Oyster Partnership,01196400,,Temporary Staff,Admin & Prop Sals&Overheads,D01AADA1111300,
http://statistics.data.gov.uk/id/local-authority/29UP,Tonbridge & Malling Borough Council,11/29/2023,0011047302/1,11047302, 5022.62,Royal Mail,00086200,,Purchases,Mailsort Stock Account,K37BR000001002,
http://statistics.data.gov.uk/id/local-authority/29UP,Tonbridge & Malling Borough Council,11/29/2023,0011047302/2,11047302, 10.58,Royal Mail,00086200,,Purchases,Mailsort Stock Account,K37BR000001002,
http://statistics.data.gov.uk/id/local-authority/29UP,Tonbridge & Malling Borough Council,11/29/2023,0011047303/1,11047303, 1387.50,G2 Recruitment Solutions,01786000,,Temporary Staff,Legal Sals&Overheads,D01ARDR0311300,
http://statistics.data.gov.uk/id/local-authority/29UP,Tonbridge & Malling Borough Council,11/29/2023,0011047304/1,11047304, 562.50,Vivid Resourcing,01773700,,Temporary Staff,Legal Sals&Overheads,D01ARDR0011300,
http://statistics.data.gov.uk/id/local-authority/29UP,Tonbridge & Malling Borough Council,11/29/2023,0011047305/1,11047305, 1623.57,Royal Mail,00086200,,Purchases,Mailsort Stock Account,K37BR000001002,
http://statistics.data.gov.uk/id/local-authority/29UP,Tonbridge & Malling Borough Council,11/29/2023,0011047305/2,11047305, 6.30,Royal Mail,00086200,,Purchases,Mailsort Stock Account,K37BR000001002,
http://statistics.data.gov.uk/id/local-authority/29UP,Tonbridge & Malling Borough Council,11/29/2023,0011047305/3,11047305, 29.90,Royal Mail,00086200,,Purchases,Mailsort Stock Account,K37BR000001002,
http://statistics.data.gov.uk/id/local-authority/29UP,Tonbridge & Malling Borough Council,11/29/2023,0011047306/1,11047306, 145.83,Royal British Legion Trading (Poppy),00543100,240800405,Other Expenses,Mayoral & Other Member Support,D29LX000048010,
http://statistics.data.gov.uk/id/local-authority/29UP,Tonbridge & Malling Borough Council,11/29/2023,0011047307/1,11047307, 350.00,G C Industrial Heating Services,00578100,,BRREP Response - General,Larkfield Leisure Centre,M15HDP50001997,
http://statistics.data.gov.uk/id/local-authority/29UP,Tonbridge & Malling Borough Council,11/29/2023,0011047309/1,11047309, 93.00,Kent Area Ramblers Association,01747700,,Purchases,TIC Stock Account,K18AX000001002,
http://statistics.data.gov.uk/id/local-authority/29UP,Tonbridge & Malling Borough Council,11/29/2023,0011047310/1,11047310, 4439.60,Sharpe Pritchard,00600500,,Other Planning Enq - Legal Cos,Legal Sals&Overheads,D01ARDR0044146,
http://statistics.data.gov.uk/id/local-authority/29UP,Tonbridge & Malling Borough Council,11/29/2023,0011047312/1,11047312, 1217.80,Sellick Partnership Group Limited,01336800,,Temporary Staff,Legal Sals&Overheads,D01ARDR0011300,
http://statistics.data.gov.uk/id/local-authority/29UP,Tonbridge & Malling Borough Council,11/29/2023,0011047313/1,11047313, 1204.40,Sellick Partnership Group Limited,01336800,,Temporary Staff,Legal Sals&Overheads,D01ARDR0011300,
http://statistics.data.gov.uk/id/local-authority/29UP,Tonbridge & Malling Borough Council,11/29/2023,0011047314/1,11047314, 76.20,Sideways Media,01836200,,Marketing,Information & Publicity,D32MJ000044215,
http://statistics.data.gov.uk/id/local-authority/29UP,Tonbridge & Malling Borough Council,11/29/2023,0011047315/1,11047315, 100.00,Kent Area Ramblers Association,01747700,,Purchases,TIC Stock Account,K18AX000001002,
http://statistics.data.gov.uk/id/local-authority/29UP,Tonbridge & Malling Borough Council,11/29/2023,0011047317/1,11047317, 961.00,Guardian Security & Fire Ltd,01899300,,BRREP Servicing - FireAlarmSys,Tonbridge Swimming Pool,M15HBP20001937,110070558
http://statistics.data.gov.uk/id/local-authority/29UP,Tonbridge & Malling Borough Council,11/29/2023,0011047318/1,11047318, 691.60,Guardian Security & Fire Ltd,01899300,,BRREP Servicing - FireAlarmSys,Angel Centre,M15HAP20001937,110070570
http://statistics.data.gov.uk/id/local-authority/29UP,Tonbridge & Malling Borough Council,11/29/2023,0011047319/1,11047319, 2120.00,G C Industrial Heating Services,00578100,,BRREP Servicing - boilers,Angel Centre,M15HAP20001929,110070488
http://statistics.data.gov.uk/id/local-authority/29UP,Tonbridge & Malling Borough Council,11/29/2023,0011047320/1,11047320, 350.00,BML Building Services Ltd,01505000,,BRREP Response - General,PC - General,M15JAP50001997,110070576
http://statistics.data.gov.uk/id/local-authority/29UP,Tonbridge & Malling Borough Council,11/29/2023,0011047321/1,11047321, 2130.00,Monitor Pest Control Ltd,01476700,,BRREP Response - General,Tonbridge Castle Gatehouse,M15HKP50001997,110070606
http://statistics.data.gov.uk/id/local-authority/29UP,Tonbridge & Malling Borough Council,11/29/2023,0011047322/1,11047322, 415.00,Topline  Electronics Ltd Pools and Welln,01864600,,BRREP Servicing - pool plant,Larkfield Leisure Centre,M15HDP20001910,110070533
http://statistics.data.gov.uk/id/local-authority/29UP,Tonbridge & Malling Borough Council,11/29/2023,0011047322/2,11047322, 415.00,Topline  Electronics Ltd Pools and Welln,01864600,,BRREP Servicing - pool plant,Larkfield Leisure Centre,M15HDP20001910,110070533
http://statistics.data.gov.uk/id/local-authority/29UP,Tonbridge & Malling Borough Council,11/29/2023,0011047323/1,11047323, 743.00,G C Industrial Heating Services,00578100,,BRREP Servicing - boilers,Angel Centre,M15HAP20001929,110070222
http://statistics.data.gov.uk/id/local-authority/29UP,Tonbridge & Malling Borough Council,11/29/2023,0011047324/1,11047324, 350.00,G C Industrial Heating Services,00578100,,BRREP Servicing - boilers,Tonbridge Farm Pavillion,M15HGP20001929,110070219
http://statistics.data.gov.uk/id/local-authority/29UP,Tonbridge & Malling Borough Council,11/29/2023,0011047325/1,11047325, 1089.00,G C Industrial Heating Services,00578100,,BRREP Servicing - boilers,Gibson Building West,M15KBP20001929,110070223
http://statistics.data.gov.uk/id/local-authority/29UP,Tonbridge & Malling Borough Council,11/29/2023,0011047326/1,11047326, 335.00,G C Industrial Heating Services,00578100,,BRREP Servicing - boilers,Gibson Building East,M15KGP20001929,110070220
http://statistics.data.gov.uk/id/local-authority/29UP,Tonbridge & Malling Borough Council,11/29/2023,0011047327/1,11047327, 1130.00,Chillmech Limited,00978700,,BRREP Servicing-Air Condition,Larkfield Leisure Centre,M15HDP20001935,110070269
http://statistics.data.gov.uk/id/local-authority/29UP,Tonbridge & Malling Borough Council,11/29/2023,0011047328/1,11047328, 752.00,Chillmech Limited,00978700,,BRREP Servicing-Air Condition,Larkfield Leisure Centre,M15HDP20001935,110070266
http://statistics.data.gov.uk/id/local-authority/29UP,Tonbridge & Malling Borough Council,11/29/2023,0011047329/1,11047329, 280.00,Baker Developments South East Ltd,01878900,446348183,BRREP Hard paving surface rep,Leis Man Poult Wood Golf Centr,M15HEP20001946,110070504
http://statistics.data.gov.uk/id/local-authority/29UP,Tonbridge & Malling Borough Council,11/29/2023,0011047330/1,11047330, 62107.16,Mace Limited,01837400,,Economic Development & Regen,Eco Dev & Reg Gen Bus Support,D52TD000047027,110069985
http://statistics.data.gov.uk/id/local-authority/29UP,Tonbridge & Malling Borough Council,11/29/2023,0011047331/1,11047331, 131000.00,Environment Agency,00418100,,Other Expenses,Leigh FSA,P01HV000009908,110070427
http://statistics.data.gov.uk/id/local-authority/29UP,Tonbridge & Malling Borough Council,11/29/2023,0011047332/1,11047332, 456.00,ATS Heritage,01847400,,Leasing Charges,Tonbridge Castle Gatehouse,B40TG000044038,110070251
http://statistics.data.gov.uk/id/local-authority/29UP,Tonbridge & Malling Borough Council,11/29/2023,0011047333/1,11047333, 135.00,Tonbridge & Malling Leisure Trust,01469100,,Meeting Expenses,Committee Administration,D29LL000048020,
http://statistics.data.gov.uk/id/local-authority/29UP,Tonbridge & Malling Borough Council,11/29/2023,0012008902/1,12008902, 6769.30,KHIPU Networks Limited,01191500,866341116,Maintenance - Ancillary Equip,Information Technology,D27KD000040137,410032529
http://statistics.data.gov.uk/id/local-authority/29UP,Tonbridge & Malling Borough Council,11/29/2023,0012008903/1,12008903, 38.37,Bytes Software Services,01676900,823818226,Software Hire & Support,Information Technology,D27KD000044059,410032527
http://statistics.data.gov.uk/id/local-authority/29UP,Tonbridge & Malling Borough Council,11/29/2023,0012008904/1,12008904, 23.24,Amazon EU SARL,01738400,,Purchases,Information Technology,D27KD000040101,410032530
http://statistics.data.gov.uk/id/local-authority/29UP,Tonbridge & Malling Borough Council,11/29/2023,0021039000/1,21039000, 43.98,KCS Education/CSG Global Education Ltd,01897200,408845925,Purchases,Haysden Country Park,B22LC000040101,210057499
http://statistics.data.gov.uk/id/local-authority/29UP,Tonbridge & Malling Borough Council,11/29/2023,0021039001/1,21039001, 213.77,KCC - L.A.S.E.R Commercial Services ,00184300,,Electricity,Open Spaces & Amenity Areas,B22LE000021002,
http://statistics.data.gov.uk/id/local-authority/29UP,Tonbridge & Malling Borough Council,11/29/2023,0021039003/1,21039003, 763.16,KCC - L.A.S.E.R Commercial Services ,00184300,,Electricity,Leybourne Lakes Country Park,B22LK000021002,
http://statistics.data.gov.uk/id/local-authority/29UP,Tonbridge & Malling Borough Council,11/29/2023,0021039004/1,21039004, 150.00,Green Leaf Tree & Landscapes Limited,01860500,,Maintenance of Grounds,Open Spaces & Amenity Areas,B22LE000020402,210057484
http://statistics.data.gov.uk/id/local-authority/29UP,Tonbridge & Malling Borough Council,11/29/2023,0021039005/1,21039005, 580.00,Green Leaf Tree & Landscapes Limited,01860500,,Health & Safety - Trees,Countryside/Woodland Mgt,B22LG000044045,210057498
http://statistics.data.gov.uk/id/local-authority/29UP,Tonbridge & Malling Borough Council,11/29/2023,0021039006/1,21039006, 120.00,Flash Mobile Welding Services Ltd,01189200,,Maintenance of Play Equipment,Open Spaces & Amenity Areas,B22LE000020503,210057481
http://statistics.data.gov.uk/id/local-authority/29UP,Tonbridge & Malling Borough Council,11/29/2023,0021039007/1,21039007, 640.00,Archway Highway Services Ltd,01398000,,Maintenance of Grounds,Haysden Country Park,B22LCCARP20402,210057456
http://statistics.data.gov.uk/id/local-authority/29UP,Tonbridge & Malling Borough Council,11/29/2023,0021039009/1,21039009, 8875.00,Spaceist Limited,01924500,896858142,Initial Furniture & Equipment,Capital Renewals Leisure,P05KGBC0409906,210057472
http://statistics.data.gov.uk/id/local-authority/29UP,Tonbridge & Malling Borough Council,11/29/2023,0022028277/3,22028277, 120.60,Amazon EU SARL,01738400,,Charitable / Voluntary Organis,Grants & Payments to Vol Orgn,D37PACV1947005,
http://statistics.data.gov.uk/id/local-authority/29UP,Tonbridge & Malling Borough Council,11/29/2023,0022028277/4,22028277, 120.60,Amazon EU SARL,01738400,,Healthy Living Initiatives,Public Health - Healthy Living,H40SYVH0048145,
http://statistics.data.gov.uk/id/local-authority/29UP,Tonbridge & Malling Borough Council,11/29/2023,0022028278/3,22028278, 257.57,British Gas Services LTD,01260000,,Electricity,Homelessness,C01AAMAUN21002,
http://statistics.data.gov.uk/id/local-authority/29UP,Tonbridge & Malling Borough Council,11/29/2023,0022028279/1,22028279, 553.00,Britains Limited,01743900,,Repairs & Mtce to Buildings,Homelessness,C01AATNPR20101,220003417
http://statistics.data.gov.uk/id/local-authority/29UP,Tonbridge & Malling Borough Council,11/29/2023,0022028280/3,22028280, 490.00,Countrystyle Group,00835900,781981681,Collection of Card,Dry Recycling,H34SR000054008,
http://statistics.data.gov.uk/id/local-authority/29UP,Tonbridge & Malling Borough Council,11/29/2023,0022028281/1,22028281, 2.94,KCS Education/CSG Global Education Ltd,01897200,408845925,Stationery,Env Hlth & Hsg Sals&Overheads,D01AVDV0643003,220003409
http://statistics.data.gov.uk/id/local-authority/29UP,Tonbridge & Malling Borough Council,11/29/2023,0022028281/2,22028281, 1.48,KCS Education/CSG Global Education Ltd,01897200,408845925,Stationery,Env Hlth & Hsg Sals&Overheads,D01AVDV0643003,220003409
http://statistics.data.gov.uk/id/local-authority/29UP,Tonbridge & Malling Borough Council,11/29/2023,0022028281/3,22028281, 2.92,KCS Education/CSG Global Education Ltd,01897200,408845925,Stationery,Env Hlth & Hsg Sals&Overheads,D01AVDV0643003,220003409
http://statistics.data.gov.uk/id/local-authority/29UP,Tonbridge & Malling Borough Council,11/29/2023,0022028281/4,22028281, 0.98,KCS Education/CSG Global Education Ltd,01897200,408845925,Stationery,Env Hlth & Hsg Sals&Overheads,D01AVDV0643003,220003409
http://statistics.data.gov.uk/id/local-authority/29UP,Tonbridge & Malling Borough Council,11/29/2023,0022028281/5,22028281, 1.48,KCS Education/CSG Global Education Ltd,01897200,408845925,Stationery,Env Hlth & Hsg Sals&Overheads,D01AVDV0643003,220003409
http://statistics.data.gov.uk/id/local-authority/29UP,Tonbridge & Malling Borough Council,11/29/2023,0022028281/6,22028281, 1.75,KCS Education/CSG Global Education Ltd,01897200,408845925,Stationery,Env Hlth & Hsg Sals&Overheads,D01AVDV0643003,220003409
http://statistics.data.gov.uk/id/local-authority/29UP,Tonbridge & Malling Borough Council,11/29/2023,0022028281/7,22028281, 11.08,KCS Education/CSG Global Education Ltd,01897200,408845925,Stationery,Env Hlth & Hsg Sals&Overheads,D01AVDV0643003,220003409
http://statistics.data.gov.uk/id/local-authority/29UP,Tonbridge & Malling Borough Council,11/29/2023,0022028282/1,22028282, 274.95,B&Q/Screwfix Direct(TradeUKAccount),00141300,,Purchases,Homelessness,C01AA000040101,
http://statistics.data.gov.uk/id/local-authority/29UP,Tonbridge & Malling Borough Council,11/29/2023,0022028283/1,22028283, 1864.50,REDACTED PERSONAL DATA,01206000,,Healthy Living Initiatives,Public Health - Healthy Living,H40SY000048145,220003413
http://statistics.data.gov.uk/id/local-authority/29UP,Tonbridge & Malling Borough Council,11/29/2023,0022028284/1,22028284, 675.18,KCC - L.A.S.E.R Commercial Services ,00184300,,Electricity,Public Conveniences,H22SCH00421002,
http://statistics.data.gov.uk/id/local-authority/29UP,Tonbridge & Malling Borough Council,11/29/2023,0022028285/1,22028285, 2128.85,Town & Country Housing Group,01385400,,Other Expenses,Disabled Facilities Grant Mand,P03AC000009908,
http://statistics.data.gov.uk/id/local-authority/29UP,Tonbridge & Malling Borough Council,11/29/2023,0022028286/1,22028286, 11826.95,Accessible Solutions LTD,01539700,,Other Expenses,Disabled Facilities Grant Mand,P03AC000009908,
http://statistics.data.gov.uk/id/local-authority/29UP,Tonbridge & Malling Borough Council,11/29/2023,0022028287/1,22028287, 14.56,Amazon EU SARL,01738400,,Other Expenses,Food & Safety - Food Safety,H35SX000048010,
http://statistics.data.gov.uk/id/local-authority/29UP,Tonbridge & Malling Borough Council,11/29/2023,0022028288/1,22028288, 18.74,Amazon EU SARL,01738400,,Other Expenses,Food & Safety - Food Safety,H35SX000048010,
http://statistics.data.gov.uk/id/local-authority/29UP,Tonbridge & Malling Borough Council,11/29/2023,0022028289/3,22028289, 425.67,British Gas Services LTD,01260000,,Electricity,Homelessness,C01AAMAUN21002,
http://statistics.data.gov.uk/id/local-authority/29UP,Tonbridge & Malling Borough Council,11/29/2023,0022028289/4,22028289, 33.98,British Gas Services LTD,01260000,,Electricity,Homelessness,C01AAMAUN21002,
http://statistics.data.gov.uk/id/local-authority/29UP,Tonbridge & Malling Borough Council,11/29/2023,0022028290/3,22028290, 490.00,Countrystyle Group,00835900,781981681,Collection of Card,Dry Recycling,H34SR000054008,
http://statistics.data.gov.uk/id/local-authority/29UP,Tonbridge & Malling Borough Council,11/29/2023,0022028291/1,22028291, 20.00,E.ON - Next,01790900,,Electricity,Homelessness,C01AATNPR21002,
http://statistics.data.gov.uk/id/local-authority/29UP,Tonbridge & Malling Borough Council,11/29/2023,0022028291/2,22028291, 91.54,E.ON - Next,01790900,,Electricity,Homelessness,C01AATNPR21002,
http://statistics.data.gov.uk/id/local-authority/29UP,Tonbridge & Malling Borough Council,11/29/2023,0022028292/1,22028292, 599.75,The Speedy Kitchen,01893600,,Charitable / Voluntary Organis,Grants & Payments to Vol Orgn,D37PACV1947005,220003419
http://statistics.data.gov.uk/id/local-authority/29UP,Tonbridge & Malling Borough Council,11/29/2023,0022028293/1,22028293, 667.50,The Speedy Kitchen,01893600,,Healthy Living Initiatives,Public Health - Healthy Living,H40SYVH0048145,320003578
http://statistics.data.gov.uk/id/local-authority/29UP,Tonbridge & Malling Borough Council,11/29/2023,0022028295/1,22028295, 5820.75,YMCA Thames Gateway Group,01887700,,Professional Fees,Homelessness,C01AATNPR44001,
http://statistics.data.gov.uk/id/local-authority/29UP,Tonbridge & Malling Borough Council,11/29/2023,0031019864/1,31019864, 80.94,Promain UK Limited,01330000,,Premises Repairs & Maintenance,Parking Off-Street,E10HAE00620601,310043180
http://statistics.data.gov.uk/id/local-authority/29UP,Tonbridge & Malling Borough Council,11/29/2023,0031019864/2,31019864, 7.75,Promain UK Limited,01330000,,Premises Repairs & Maintenance,Parking Off-Street,E10HAE00620601,310043180
http://statistics.data.gov.uk/id/local-authority/29UP,Tonbridge & Malling Borough Council,11/29/2023,0031019865/1,31019865, 855.90,Patrol,01189800,,Adjudication & Enforcement Ser,Parking Off-Street,E10HA000044230,
http://statistics.data.gov.uk/id/local-authority/29UP,Tonbridge & Malling Borough Council,11/29/2023,0031019866/1,31019866, 728.28,KM Media Group Ltd,00053900,,Advertising General,Parking Off-Street,E10HAZ99944216,310043175
http://statistics.data.gov.uk/id/local-authority/29UP,Tonbridge & Malling Borough Council,11/29/2023,0031019867/1,31019867, 672.00,Nagels,01434000,,Stationery,Parking Off-Street,E10HA000043003,310043143
http://statistics.data.gov.uk/id/local-authority/29UP,Tonbridge & Malling Borough Council,11/29/2023,0031019867/2,31019867, 448.00,Nagels,01434000,,Stationery,Parking On-Street,E10HD000043003,310043143
http://statistics.data.gov.uk/id/local-authority/29UP,Tonbridge & Malling Borough Council,11/29/2023,0031019868/1,31019868, 176.40,Nagels,01434000,,Stationery,Parking Off-Street,E10HA000043003,310043143
http://statistics.data.gov.uk/id/local-authority/29UP,Tonbridge & Malling Borough Council,11/29/2023,0031019868/2,31019868, 117.60,Nagels,01434000,,Stationery,Parking On-Street,E10HD000043003,310043143
http://statistics.data.gov.uk/id/local-authority/29UP,Tonbridge & Malling Borough Council,11/29/2023,0032010575/3,32010575, 822.50,Carrington West Limited,01844500,,Temporary Staff,Planning Sals&Overheads,D01AJDJ0111300,
http://statistics.data.gov.uk/id/local-authority/29UP,Tonbridge & Malling Borough Council,11/29/2023,0032010576/1,32010576, 1760.00,East Malling & Larkfield Parish Council,00030200,,Payments,S106 - Commuted Sums,M04AD000001001,
http://statistics.data.gov.uk/id/local-authority/29UP,Tonbridge & Malling Borough Council,11/29/2023,0032010578/1,32010578, 589.05,KM Media Group Ltd,00053900,,Advertising General,Development Management,A01ABZ99944216,320003573
http://statistics.data.gov.uk/id/local-authority/29UP,Tonbridge & Malling Borough Council,11/29/2023,0032010579/1,32010579, 1515.00,DHA Planning Ltd,01553900,,Professional Fees,Planning Policy,A01AF000044001,320003548
http://statistics.data.gov.uk/id/local-authority/29UP,Tonbridge & Malling Borough Council,11/29/2023,0032010580/1,32010580, 2237.25,Vivid Resourcing,01773700,,Temporary Staff,Planning Sals&Overheads,D01AJDJ0111300,
http://statistics.data.gov.uk/id/local-authority/29UP,Tonbridge & Malling Borough Council,11/29/2023,0032010581/1,32010581, 1468.46,The Oyster Partnership,01196400,,Temporary Staff,Planning Sals&Overheads,D01AJDJ0111300,
http://statistics.data.gov.uk/id/local-authority/29UP,Tonbridge & Malling Borough Council,11/29/2023,0032010582/1,32010582, 1559.70,The Oyster Partnership,01196400,,Temporary Staff,Planning Sals&Overheads,D01AJDJ0111300,
http://statistics.data.gov.uk/id/local-authority/29UP,Tonbridge & Malling Borough Council,11/29/2023,0032010583/1,32010583, 2250.00,G2 Recruitment Solutions,01786000,,Temporary Staff,Planning Sals&Overheads,D01AJDJ0011300,
http://statistics.data.gov.uk/id/local-authority/29UP,Tonbridge & Malling Borough Council,11/29/2023,0032010584/1,32010584, 1190.00,Hays Specialist Recruitment Limited,01879200,773695871,Temporary Staff,Planning Sals&Overheads,D01AJDJ0311300,
http://statistics.data.gov.uk/id/local-authority/29UP,Tonbridge & Malling Borough Council,11/29/2023,0032010585/1,32010585, 1608.00,Hays Specialist Recruitment Limited,01879200,773695871,Temporary Staff,Planning Sals&Overheads,D01AJDJ0111300,
http://statistics.data.gov.uk/id/local-authority/29UP,Tonbridge & Malling Borough Council,11/29/2023,0032010586/1,32010586, 200.00,P K Saunders Electrical Ltd,01900800,,Competent Persons Schemes,Building Control,A01AD000048116,
http://statistics.data.gov.uk/id/local-authority/29UP,Tonbridge & Malling Borough Council,11/29/2023,0032010587/1,32010587, 12695.00,WSP,01915600,,Professional Fees,Planning Policy,A01AF000044001,320003550
http://statistics.data.gov.uk/id/local-authority/29UP,Tonbridge & Malling Borough Council,11/29/2023,0032010588/1,32010588, 2177.50,Hays Specialist Recruitment Limited,01879200,773695871,Temporary Staff,Planning Sals&Overheads,D01AJDJ0111300,
http://statistics.data.gov.uk/id/local-authority/29UP,Tonbridge & Malling Borough Council,11/29/2023,0032010589/1,32010589, 1360.00,Hays Specialist Recruitment Limited,01879200,773695871,Temporary Staff,Planning Sals&Overheads,D01AJDJ0311300,
http://statistics.data.gov.uk/id/local-authority/29UP,Tonbridge & Malling Borough Council,11/29/2023,0041036090/3,41036090, 1102.97,Morgan Hunt UK Ltd,01086900,,Temporary Staff,Finance Sals&Overheads,D01AFDF1111300,
http://statistics.data.gov.uk/id/local-authority/29UP,Tonbridge & Malling Borough Council,11/29/2023,0041036091/3,41036091, 1614.06,Rundle & Co Ltd,00087200,,Bailiffs Commission,Local Revenue & NNDR Collect,D41QA000044075,
http://statistics.data.gov.uk/id/local-authority/29UP,Tonbridge & Malling Borough Council,11/29/2023,0041036092/3,41036092, 536.35,Rundle & Co Ltd,00087200,,Bailiffs Commission,Local Revenue & NNDR Collect,D41QA000044075,
http://statistics.data.gov.uk/id/local-authority/29UP,Tonbridge & Malling Borough Council,11/29/2023,0041036098/1,41036098, 181.50,Kent County Council,00053700,,Professional Fees,Public Accountability,D29LR000044001,
http://statistics.data.gov.uk/id/local-authority/29UP,Tonbridge & Malling Borough Council,11/29/2023,0041036099/1,41036099, 12000.00,Leybourne PC Fundraising,01834600,,Charitable / Voluntary Organis,Grants & Payments to Vol Orgn,D37PACV1947005,
http://statistics.data.gov.uk/id/local-authority/29UP,Tonbridge & Malling Borough Council,11/29/2023,0041036100/1,41036100, 1000.00,PCC St Mary Hadlow,01835200,,Charitable / Voluntary Organis,Grants & Payments to Vol Orgn,D37PACV1947005,
http://statistics.data.gov.uk/id/local-authority/29UP,Tonbridge & Malling Borough Council,11/29/2023,0041036103/1,41036103, 15.00,BNP Paribas,01360500,,Bank Charges,Banking Arrangements,D43QK000044222,
http://statistics.data.gov.uk/id/local-authority/29UP,Tonbridge & Malling Borough Council,11/29/2023,0051008869/3,51008869, 316.25,Baxterstory,01736700,,Ext Fees/Prof & Tech,Training,D10DC000013561,
http://statistics.data.gov.uk/id/local-authority/29UP,Tonbridge & Malling Borough Council,11/29/2023,0051008870/1,51008870, 292.10,Working with Joy,01639300,,Ext Fees/Prof & Tech,Training,D10DCDM0013561,
http://statistics.data.gov.uk/id/local-authority/29UP,Tonbridge & Malling Borough Council,11/29/2023,0051008871/3,51008871, 616.00,Health Assured Ltd,01427900,,Employee Support Scheme,Health Care,D10DB000013314,
http://statistics.data.gov.uk/id/local-authority/29UP,Tonbridge & Malling Borough Council,11/30/2023,0041036107/1,41036107, 50.00,National Westminster Bank Plc,00069400,,Bank Charges,Banking Arrangements,D43QK000044222,
http://statistics.data.gov.uk/id/local-authority/29UP,Tonbridge & Malling Borough Council,11/30/2023,0041036108/1,41036108, 2.84,WorldPay ,01568000,,Credit Card Commission,Banking Arrangements,D43QK000044082,
http://statistics.data.gov.uk/id/local-authority/29UP,Tonbridge & Malling Borough Council,11/30/2023,0041036109/1,41036109, 10.00,WorldPay ,01568000,,Credit Card Commission,Banking Arrangements,D43QK000044082,
http://statistics.data.gov.uk/id/local-authority/29UP,Tonbridge & Malling Borough Council,11/30/2023,0041036110/1,41036110, 3944.05,WorldPay ,01568000,,Credit Card Commission,Banking Arrangements,D43QK000044082,
http://statistics.data.gov.uk/id/local-authority/29UP,Tonbridge & Malling Borough Council,11/30/2023,0041036110/2,41036110, 24.99,WorldPay ,01568000,,Credit Card Commission,Banking Arrangements,D43QK000044082,
